{"text_format":"1","workbook":"xlsx","n_sheets":26,"sheets":["HOME","External TFU-TDO","Important ISI","ASMA","Internal TFUs","AOT","TFU evolution","TFU solution planning","Cabin Top 20 (TFU and 4box)","QTR","HVN","FIN","TAM","SIA","CPA","ETH (MSN040)","THA","CAL","DLH","FWI MSN82","AAR MSN94","MAU MSN145","DAL MSN115","CRK MSN124","WARNING","Feuil1"],"not_rendered":{"charts":4,"images":0,"macros":1,"external_links":0,"defined_names":7,"comments":2,"pivot_tables":0},"unopened":[],"bounds":{"document_bytes":16777216,"sheet_cells":100000,"rows_first":2000,"rows_last":500,"rows_between":2000,"halvings":0,"cell_chars":16384,"cell_head_chars":4096},"cells_cut":0,"cells_raw":0,"read":"whole","date_system":"1900"}

{"sheet":"HOME","index":0,"n_rows":0,"n_cols":0,"rows_kept":0,"cut":false,"hidden":false,"merged":[]}

{"sheet":"External TFU-TDO","index":1,"n_rows":219,"n_cols":36,"rows_kept":219,"cut":false,"hidden":false,"merged":[]}
[null,null,null,null,5,6,7,8,9,10,11,12,13,14,15,16,"Applicability at delivery 17",18,19,20,21,22,23,24,25,26,27,28,29,30,31,32,33,34,35]
["Line last updated by specialist on DD/MM/YYYY \n(AUTOMATIC CALCULATION)","Subject addition date by specialist DD/MM/YYYY \n(AUTOMATIC CALCULATION)","Rating \n(AUTOMATIC CALCULATION)","Solution availability planning in format xQ 201Y (AUTOMATIC CALCULATION)","ATA","Engineering or manufacturing ","TDO","TDO Reference","Owner","Group","System","TFU","Title","Reference","Status","Internal/external","QTR","HVN","FIN","TAM","SIA","CPA","ETH (MSN040)","THA","CAL","DLH","FWI MSN82","AAR MSN94","MAU MSN145","DAL\nMSN115","CRK\nMSN124","POE","Solution","Solution availability planning (in format \n\"XQ 201Y\")","Monitored Retrofit","Comments"]
["2017-05-31","2017-01-01",{"$f":"COUNTIFS($Q3:$AE3, \"=P\")","v":0},null,1,"Engineering","No",null,"T. D",2,"Seats","TFU","Cfgfggf sfdfdf rgggfgf/dhhghf issue ","25.11.00.029","Open","External","x","x","x","x","x","x","x","x","x","x","x","x",null,null,null,"MSN63 / 104","SB",null,"No"]
["2017-05-31","2017-01-01",{"$f":"COUNTIFS($Q4:$AE4, \"=P\")","v":0},null,1,"Engineering","Yes","01250/2016","T. D",1,"Seats","No","Economy tables fxx","N/A","Open","External",null,null,null,null,"x"]
["2017-05-09","2017-01-01",0,null,1,"Manufacturing","Yes","01157/2016","T. D",1,"Seats","No","Economy Sxxx Fgfgfgfdgs","N/A","Closed","External",null,null,null,null,"x",null,null,null,null,null,null,null,null,null,null,"N/A","N/A","N/A","No"]
["2017-04-28","2017-01-01",1,null,1,"Engineering","Yes","01547/2016","T. D",1,"Seats","No","High Comfort CAS plastic Fan shroud & roller linkage","N/A","Open","External","x","x","x","x","P","x","x","x","x","x",null,"x",null,null,null,"TBD","TBD"]
["2017-05-31","2017-01-01",2,null,1,"Engineering","Yes","00226/2016","T. D",1,"Seats","No"," BROKEN","N/A","Open","External",null,null,"P","x","P",null,null,null,"x","x",null,"x",null,null,null,"TBD","TBD"]
["2017-04-28","2017-01-01",0,null,1,"Engineering and Manufacturing","Yes","00600/2016","T. D",1,"Seats","No","hghghg fjh ","N/A","Closed","Internal  ",null,null,null,null,"x",null,null,null,null,null,null,null,null,null,null,"TBD","VSB",null,"No"]
["2017-04-28","2017-01-01",0,null,1,"Engineering and Manufacturing","Yes","00445/2016","T. D",1,"Seats","No","gfhhghgh gfjhg hgffh","N/A","Closed","Internal",null,null,null,null,"x",null,null,null,null,null,null,null,null,null,null,"TBD","VSB",null,"No"]
["2017-04-28","2017-02-01",1,null,5,"Engineering","No",null,"T. D",1,"Seats","No","BC monitor cover and cup holder cracks","N/A","Open","External",null,"P",null,null,null,null,null,null,null,null,null,null,null,null,null,null,"TBD",null,"No"]
["2017-04-28","2017-03-03",0,"Fix under development",5,"Engineering","No",null,"T. D",1,"Seats","No","Opening of the l v hch on BC seats","N/A","Open","External",null,null,null,null,null,null,null,null,null,null,"x",null,null,null,null,"TBD","TBD","TBD","TBD"]
["2017-04-28","2017-03-03",0,null,5,"Engineering","No",null,"T. D",1,"Seats","No","Cover armrest detached/broken","N/A","Open","External",null,null,null,null,null,null,null,null,null,"x","x",null,null,null,null,"TBD","TBD",null,"TBD"]
["2017-04-28","2017-01-01",0,null,5,"Engineering","Yes","00434/2016","S.C",3,"Cabin & crew rest","No","Carpet_Fraying","N/A","Closed","External",null,null,null,null,"x"]
["2017-04-28","2017-01-01",1,null,5,"Engineering","No",null,"S.C",3,"Cabin & crew rest","No","NTF Indentation","N/A","Closed","External","P"]
["2017-04-28","2017-01-02",1,null,5,"Engineering","No",null,"S. S",2,"Water & Waste","TFU","Potable water pump","38.12.00.010","Open","External","x","x","x","x","P","x","x","x","x",null,null,null,null,null,null,"MSN65"]
["2017-04-28","2017-01-03",1,null,5,"Engineering","No",null,"S. S",2,"Water & Waste","TFU","Waste Tank indication not correct","38.30.00.012","Open","External","x","x","P","x","x",null,"x","x",null,null,null,null,null,null,null,"MSN28"]
["2017-04-28","2017-01-04",0,null,5,"Engineering","No",null,"S. S",2,"Water & Waste","TFU","Waste valve actuation unit damaged","38.30.00.014","Open","External","x","x","x","x","x","x","x","x",null,null,null,null,null,null,null,"MSN50"]
["2017-04-28","2017-01-05",2,null,5,"Engineering","No",null,"S. S",2,"Water & Waste","TFU","Low waste vacuum on ground","38.31.00.038","Open","External","x","x","P","x","x","x","x","x","P","x","x","x"]
["2017-04-28","2017-01-06",0,null,5,"Engineering","No",null,"S. S",2,"Water & Waste","TFU","Overboard vent line waste traces","38.30.00.013","Open","External","x","x","x","x","x","x","x","x","x","x","x","x"]
["2017-04-28","2017-01-01",0,null,5,"Manufacturing","Yes","01087/2016","S. S",2,"Water & Waste","No","L73 TOILET BOWL VACUUM WASTE LINE FOUND DISLODGED","N/A","Closed","External",null,null,null,null,"x"]
["2017-04-28","2017-01-01",0,null,5,"Engineering and Manufacturing","Yes","01362/2016","S. S",2,"Water & Waste","No","TH/V/EQ/16-18 - Adhhg","N/A","Open","Internal  "]
["2017-04-28","2017-01-01",0,null,5,"Manufacturing","Yes","00882/2016","S. S",2,"Water & Waste","No","YELLOW CAP FOUND IN DRAINAGE LINE","N/A","Open","External",null,null,null,null,null,"x"]
["2017-04-28","2017-01-01",0,null,1,"Manufacturing","Yes","00883/2016","S. S",2,"Water & Waste","No","SEALANT OF PAN ASSY NOT EFFICIENT","N/A","Open","External",null,null,null,null,null,"x"]
["2017-04-28","2017-01-01",0,null,1,"Engineering and Manufacturing","Yes","00881/2016","S. S",2,"Water & Waste","No","NO ACU DRAINAGE","N/A","Open","External"]
["2017-04-28","2017-01-01",1,null,1,"Engineering","Yes","00296/2016","S. S",2,"Water & Waste","No","No Lav Data - Coding Module","N/A","Open","External",null,null,"P"]
["2017-05-11","2017-01-01",0,null,1,"Engineering and Manufacturing","Yes","00990/2016","S. B",2,"Lavatories","No","TO/V/ST/16-09 - Sfhfh ABS0719M100EW gffgfgfg","N/A","Closed","Internal","X","X","X","X","X","X","X","X","X"]
["2017-04-28","2017-01-01",1,null,1,"Engineering","No",null,"R.B",3,"Cockpit","TFU","No cggfdfd in cgfgfdg","52.51.00.015","Open","External","x","P","x","x","x","x","x","x","x","x","x","x","x",null,null,"TBD","TBD",null,"TBD"]
["2017-04-28","2017-01-01",5,"Q2 2017",1,"Engineering","No",null,"R.B",3,"Cockpit","TFU","DDD)","52.51.00.013","Open","External","x","x","P","P","P","P","x","x","P","x","x","x","x",null,null,"MSN 159","SB + VSB","2017-06-01","Yes"]
["2017-04-28","2017-01-01",0,null,1,"Manufacturing","Yes","00885/2016","R.B",3,null,"No","NZ/V/ST/16-16 - gjfjgfjgf","N/A","Open","Internal","x","x","x","x","x","x","x","x",null,null,null,null,null,null,null,"MSN 46","SB",null,"TBD"]
["2017-04-28","2017-01-01",1,null,1,"Engineering","No",null,"O. C",3,"Cabin & crew rest","TFU","OverHead Stowage Compartment in conical area/ Plastic Ring Broken","25.24.00.017","Closed","External","x","P","x",null,null,null,null,null,null,null,null,null,null,null,null,"MSN21","SB",null,"Yes"]
["2017-05-10","2017-01-01",0,null,1,"Manufacturing","Yes","00852/2016","O. C",3,"Cabin & crew rest","No","Fallen OHSC screw disrupting oxygen containers switch function","N/A","Open","External",null,null,"x",null,null,null,null,null,null,null,null,null,null,null,null,"MSN219",null,null,"No"]
["2017-04-28","2017-01-01",0,null,1,"Manufacturing","Yes","01416/2016","O. C",3,"Cabin & crew rest","No","OHSC - TIE ROD NOT INSTALLED PROPERLY","N/A","Closed","External",null,null,null,null,null,null,null,null,"x"]
["2017-05-19","2017-01-01",4,null,1,"Engineering","Yes","00995/2016","O. C",3,"Cabin & crew rest","TFU","CCRC         ","25.23.00.019","Open","External","x","P","P","x","P","P",null,"x","x","x","x","x","x","x","x","TBD","TBD","TBD","TBD"]
["2017-05-10","2017-01-01",1,null,1,"Engineering","Yes","00480/2017","O. C",3,"Cabin & crew rest","TFU","fdgfd Afgfgs pfgf in gfgd gfg","25.24.00.026","Open","Internal","x","x","x","x","P","x","x","x","x","x","x","x","x","x","x","TBD","TBD","TBD","No"]
["2017-05-11","2017-01-01",3,null,1,"Engineering and Manufacturing","Yes","01203/2016","O. C",3,"Cabin & crew rest","TFU","OHSC Bushing Housing","25.24.00.023","Closed","External","P",null,"x",null,"P","P","x","x","x","x","x","x"]
["2017-05-11","2017-01-01",6,null,1,"Engineering","Yes","01201/2016","O. C",3,"Cabin & crew rest","TFU","Compartment gjhgj ","25.24.00.022","Open","External","P",null,"P",null,"P","P","x","x","P","x","P","x","x","x","x","TBD","TBD","TBD","TBD"]
["2017-05-11","2017-03-01",0,null,1,"Engineering","Yes","00357/2017","O. C",3,"Cabin & crew rest","No","REPLACING TEMP SENSOR FILTERS","N/A","Open","External","x","x","x","x","x","x","x","x","x","x","x","x","x","x","x","TBD","TBD","TBD","No"]
["2017-05-10","2017-03-13",0,null,1,"Engineering and Manufacturing","Yes","00372/2017","O. C",3,"Cabin & crew rest","TFU","DAMPER BRACKET SNATCHED FROM BIN SIDEWALL","25.24.00.024","Open","External","x","x","x","x","x","x","x","x","x","x","x","x",null,null,null,"MSN102","VSB","Q2 2017","Yes"]
["2017-04-28","2017-01-01",0,null,1,"Engineering","No",null,"N.M",3,"Heating","TFU","ICE DET FAULT AFTER LANDING AND NAI BITE DEVIATION","30.21.00.019","Open","External",null,null,null,null,"x","x","x","x","x"]
["2017-04-28","2017-01-01",0,null,1,"Engineering","No",null,"N.M",3,"Heating","TFU","SPURIOUS ORPHAN DISPATCH MESSAGE \"A-ICE NAI ENG1(2) NAI MON","30.80.00.001","Closed","External",null,null,null,null,"x","x","x","x","x"]
["2017-04-28","2017-01-01",0,null,1,"Engineering","No",null,"N.M",3,"Cabin & crew rest","TFU","Stowages Floor Attachments","25.27.00.010","Open","External","x","x","x","x",null,null,null,null,null,null,null,null,null,null,null,"MSN21"]
["2017-04-28","2017-01-01",0,null,1,"Engineering","Yes","00048/2016","N.M",3,"Cockpit","No","Light Visual Icing Indicator (LVII) removals","N/A","Open","External","x","x","x",null,"x"]
["2017-04-28","2017-01-01",1,"Available",1,"Engineering and Manufacturing","No",null,"N.D",3,"Cargo","TFU","PDU INOPERATIVE DUE TO MECHANICAL FAILURE","50.23.00.007","Open","External","P","x","x","x",null,null,null,null,null,null,null,null,null,null,null,"MSN 28","VSIL","Available","No"]
["2017-04-28","2017-01-01",4,"Q2 2017",1,"Engineering","No",null,"N.D",3,"Cargo","TFU","fdghhhgg jhfgjjhhgf hfjh","50.23.00.006","Open","External","P","P","x","x","x","x","P","x","P","x","x","x",null,null,null,"MSN 124\n","SB","Q2 2017","Yes"]
["2017-04-28","2017-01-01",1,null,1,"Engineering and Manufacturing","Yes","01012/2016","N.D",3,"Cargo","TFU","Collapsible ceiling panels - Missing fasteners/washers","50.13.00.001","Open","External","P","x","x","x","x","x","x","x","x","x","x","x"]
["2017-04-28","2017-01-01",0,null,1,"Engineering and Manufacturing","Yes","00046/2016","N.D",3,"Cargo","No","hgfh hgghfh setet ","N/A","Open","External","x",null,"x","x",null,null,null,null,"x"]
["2017-04-28","2017-01-01",0,null,1,"Engineering","Yes","01367/2016","N.D",3,"Cargo","No","fdgfdg ghhgjf ht","N/A","Open","External","x","x",null,null,"x",null,"x"]
["2017-04-28","2017-01-01",0,null,1,"Engineering","Yes","00444/2014","N.D",3,"Cargo","No","g dhhgfd ","N/A","Open","External","x","x","x","x","x","x","x","x","x"]
["2017-06-07","2017-01-01",2,"Q4 2017",1,"Engineering and Manufacturing","Yes","01281/2016","M. L",2,"Emergency Systems","TFU","ENGINE FIRE DETECTION ISSUES","26.12.00.055","Open","External","x","x","x","P","x","x","x","x","P","x","x","x","x",null,null,null,"VSB & SB","2017-12-01"]
["2017-04-28","2017-01-01",1,null,1,"Engineering","Yes","00952/2015","M. F",2,"SCS","TFU","VCRU -00 Refrigerant Leakage","21.59.00.023","Open","External",null,null,"x","P","x","x","x","x","x",null,null,null,null,null,null,"MSN54"]
["2017-04-28","2017-01-01",1,null,1,"Engineering","Yes","00115/2016","M. F",2,"SCS","TFU","VCRU Compressor Winding Short fault","21.59.00.029","Open","External","x","x","x","P","x","x","x","x","x","x","x","x"]
["2017-04-28","2017-01-01",1,null,1,"Engineering","Yes","00659/2014","M. F",2,"SCS","TFU","RACA -00 Potentially Reduced Reliability","21.59.00.018","Open","External","X","X","X","X","P","X"]
["2017-04-28","2017-01-01",0,null,1,"Engineering","Yes","00658/2014","M. F",2,"SCS","TFU","CDM -00 Potentially Reduced Reliability","21.59.00.019","Open ","External","X","X","X","X","X","X","X","X","X"]
["2017-04-28","2017-01-01",0,null,1,"Engineering","No",null,"M. F",2,"SCS","TFU","FAP - SCS Page - 'Automatic Power Saving Active' wrongly displayed","21.59.00.031","Open ","External","X","X","X","X","X","X","X","X","X","X","X","x"]
["2017-04-28","2017-01-01",0,null,1,"Engineering and Manufacturing","Yes","00986/2016","M. F",2,"SCS","No","TH/V/EQ/16-10 - ghfhfdh","N/A","Open","Internal  "]
["2017-04-28","2017-01-01",0,null,1,"Engineering and Manufacturing","Yes","00419/2016","M. F",2,"SCS","No","TH/V/EQ/16-06 - CDM - hghgfhh","N/A","Open","Internal  "]
["2017-04-28","2017-01-01",0,null,1,"Engineering and Manufacturing","Yes","01300/2016","M. F",2,"SCS","No","TH/V/ST/16-06 - hgkhgkkg","N/A","Open","Internal","X","X","X","X","X","X","X","X","X","X"]
["2017-04-28","2017-01-01",0,null,1,"Engineering and Manufacturing","Yes","01396/2015","M. F",2,"SCS","No","TO/V/ST/15-20 - ghfg ","N/A","Open","Internal","X","X","X","X","X"]
["2017-04-28","2017-01-01",1,null,1,"Engineering","No",null,"M. F",2,"SCS","No","Delay due to RACA failure","N/A","Open","External",null,null,null,null,"P"]
["2017-04-28","2017-01-01",0,null,1,"Engineering","No",null,"M. A",2,"Pax Door","TFU","DOOR INDICATION PANEL (DIP) - LED FAILURE","52.71.00.026","Open","External","x","x","x",null,null,null,null,null,null,null,null,null,null,null,null,"MSN19"]
["2017-04-28","2017-01-01",0,null,1,"Engineering","No",null,"M. A",2,"Emergency Systems","TFU","Slide girt retainer flap detachment","25.62.00.041","Open","External","x","x","x","x","x",null,null,null,null,null,null,null,null,null,null,"MSN29"]
["2017-04-28","2017-01-01",0,null,1,"Engineering and Manufacturing","Yes","01379/2015","M. A",2,"Pax Door","No","TH/V/EQ/15-15 - gfgfdgf","N/A","Open","Internal","X","X","X","X","X","X","X","X","X"]
["2017-04-28","2017-01-01",0,null,1,"Engineering and Manufacturing","Yes","00483/2015","M. A",2,"Pax Door","No"," - TH/V/EQ/14-24  gfdgdgfdggfd","N/A","Open","Internal","X","X","X","X","X","X"]
["2017-04-28","2017-01-01",0,null,1,"Engineering","No",null,"I. F",1,"Smoke Detection","TFU","SMOKE DETECTOR PRE-CONTAMINATION ALERT","26.10.00.020","Open","External","x","x","x","x","x","x","x","x","x","x","x","x",null,null,null,"MSN109","SB",null,"Yes"]
["2017-04-28","2017-01-01",0,null,1,"Engineering","No",null,"I. F",1,"Smoke Detection","TFU","gg hhh rerrs ","26.10.00.021","Open","External","x","x","x","x","x","x","x","x","x",null,null,null,null,null,null,"MSN64","SB",null,"No"]
["2017-04-28","2017-01-01",0,null,1,"Engineering","No",null,"I. F",1,"Smoke Detection","TFU","S/D PMC21_Series \"humidity out of range\" failure","26.10.00.026","Closed","External","x","x","x","x",null,null,null,null,null,null,null,null,null,null,null,"MSN25","VSB",null,"No"]
["2017-04-28","2017-01-01",1,null,1,"Engineering","No",null,"I. F",1,"Smoke Detection","TFU","DUCT SMOKE DETECTOR - FAULTY LOW FLOW DETECTION","26.18.00.003","Open","External","P",null,null,null,null,null,null,null,null,null,null,null,null,null,null,"MSN42","SB",null,"No"]
["2017-04-28","2017-01-01",{"$f":"COUNTIFS($Q68:$AE68, \"=P\")","v":1},null,1,"Engineering","No",null,"I. F",1,"IFE","No","IFE_ATA_4420_IFE stability vs Elec Power Transfer on ground","N/A","Open","External",null,null,"P"]
["2017-04-28","2017-01-01",1,null,1,"Engineering","Yes","01543/2016","G. S",3,"Cockpit","No","COAT STOWAGE COVER VELCRO DISBONDED","N/A","Open","External",null,null,null,null,"P"]
["2017-04-28","2017-01-01",7,null,1,"Engineering","No",null,"O. G",3,"Cabin & crew rest","TFU","Literature pocket premature damage","25.27.00.008","Open","External","P","P","P","P","P","P","P","x","x","x","x","x"]
["2017-04-28","2017-01-01",1,null,1,"Engineering","No",null,"O. G",3,"Cabin & crew rest","No","CURTAIN SYSTEM - CURTAIN GLIDER RELIABILITY","N/A","Closed","External","P",null,null,null,null,null,null,null,null,null,null,null,null,null,null,"N/A","N/A",null,"N/A"]
["2017-04-28","2017-01-01",1,null,1,"Engineering and Manufacturing","yes","01650/2016","O. G",3,"Cabin & crew rest","No","Incorrect Baby bassinet inserts installation","N/A","Closed","External",null,"P",null,null,null,null,null,null,null,null,null,null,null,null,null,"N/A (MSN56 only)","VSB",null,"No"]
["2017-04-28","2017-01-01",0,null,1,"Engineering","Yes","00691/2014","D. F",3,"Cockpit","No","Hfgfg bgfgfgfn cfgf and fgfgf","N/A","Closed","Internal"]
["2017-04-28","2017-01-01",1,"Available",1,"Engineering","No",null,"D. F",3,"Cabin & crew rest","No","Crew Rest Locking System Failures","N/A","Open","External","P",null,"x",null,null,null,null,null,null,null,null,null,null,null,null,"Around MSN 40","Available","Available","No"]
["2017-04-28","2017-03-01",3,null,1,"Engineering","Yes","00641/2016","D. F",3,"Cabin & crew rest","TFU","emergency hatch falling ","25.51.00.011","Open","External","x","x","P","P","x","x","x","x","P","x","x","x","x",null,null,"MSN 216","VSB and SB",null,"Yes"]
["2017-04-28","2017-01-01",0,"Q3 2016",1,"Engineering","No",null,"F. L",2,"Water & Waste","TFU","Residual Disinfectant in GAINS","38.10.00.016","Closed","External","x","x","x","x","x","x","x","x","x",null,null,null,null,null,null,"N/A","AMM update","2016-09-01","N/A"]
["2017-04-28","2017-01-01",5,"Q1 2018",1,"Engineering","Yes","00066/2015","F. L",2,"Oxygen","TFU","Passenger Oxygen Containers inadvertent opening during operation","35.20.00.020","Open","External","P","x","x","x","x","P","P","P","P","x","x","x","x",null,null,"TBD","TBD","2018-01-01","No"]
["2017-04-28","2017-01-01",1,"Q2 2017",1,"Engineering","No",null,"F. L",2,"Oxygen","TFU","Decentralized Gaseous Oxygen System - Oxygen Control Board (OCB) Issue","35.20.00.022","Open","External",null,null,"x",null,"x","P",null,null,null,null,null,null,null,null,null,"MSN41","SB","2017-06-01","Yes"]
["2017-04-28","2017-01-01",3,"Q2 2017",1,"Engineering","Yes","01072/2016","F. L",2,"Oxygen","TFU","Crew Oxygen Cylinder Regulator loose Filter Retainer","35.10.00.015","Open","External","x","x","x","P","P","x","P","x","x","x","x","x","x",null,null,"MSN109 TBC","VSB TBD","2017-06-01","No"]
["2017-04-28","2017-01-01",2,"Q4 2015",1,"Engineering","Yes","00071/2015","F. L",2,"Galley/gains","TFU","Galley - Vent Valve Water Leakage","25.30.00.012","Closed","External","x","P","P","x",null,null,null,null,null,null,null,null,null,null,null,"MSN24","VSB","2015-12-01","No"]
["2017-04-28","2017-01-01",1,"Q2 2017",1,"Engineering","Yes","00908/2015","F. L",2,"Galley/gains","TFU","Steam Ovens PN X200100 issues","25.36.00.001","Open","External",null,"P",null,null,null,null,null,null,null,null,null,null,null,null,null,"MSN94","SB","Q2 2017","No"]
["2017-04-28","2017-01-01",0,"Q1 2016",1,"Engineering","No",null,"F. L",2,"Galley/gains","TFU","GAINS Fault Code triggered due to CAM mismatch","25.36.00.002","Closed","External",null,null,"x",null,null,null,null,null,null,null,null,null,null,null,null,"MSN26","SB ","2016-02-01","Yes"]
["2017-04-28","2017-01-01",1,"Available",1,"Engineering","No",null,"F. L",2,"Galley/gains","TFU","SCS Chiller PN 688-2 issues","25.36.00.003","Closed","External",null,"P","x",null,null,null,"x",null,null,null,null,null,null,null,null,"MSN74","VSB","Available","No"]
["2017-04-28","2017-01-01",2,"Q2 2017",1,"Engineering","No",null,"F. L",2,"Galley/gains","TFU","Tri-mode refrigerator PN 600-6-02-00 issues","25.36.00.004","Open","External","P",null,null,"x","P",null,null,"x","x",null,null,"x","x",null,null,"UNK","VSB","2017-06-01","No"]
["2017-04-28","2017-01-01",4,"Q4 2016",1,"Engineering","No",null,"F. L",2,"Galley/gains","TFU","IGTC - Integrated Galley Trash Compactor issues","25.30.00.014","Open","External",null,null,"P",null,"P","P","P",null,null,null,null,null,null,null,null,"MSN77","SB","2016-10-01","Yes"]
["2017-04-28","2017-01-01",3,"Q4 2016",1,"Engineering","No",null,"F. L",2,"Galley/gains","TFU","IGTC - Inspection of the Compaction Chamber Assembly","25.36.00.005","Open","External",null,null,"x",null,"P","P","P",null,null,null,null,null,null,null,null,"MSN77","SB","2016-12-01","Yes"]
["2017-04-28","2017-01-01",4,"Fix under development",1,"Engineering and Manufacturing","Yes","00767/2016","F. L",2,"Galley/gains","TFU","Zodiac Trash Compactor issues","25.36.00.008","Open","External","P",null,null,"P","x","P","P",null,"x",null,"x","x",null,null,null,"TBD","TBD","TBD","TBD"]
["2017-04-28","2017-01-01",1,"Q1 2017",1,"Engineering and Manufacturing","Yes","00401/2016","F. L",2,"Galley/gains","TFU","SEAL BETWEEN THE CCRC AND THE AFT GALLEY","25.30.00.041","Open","External","P","x","x","x","x","x",null,null,null,null,null,"x",null,null,null,"MSN046",null,"2017-03-01","FOC-MON ALL"]
["2017-04-28","2017-01-01",2,"Q3 2017",1,"Engineering","Yes","00705/2016","F. L",2,"Galley/gains","TFU","B/E Aerospace GAINS CAN Bus disturbance","25.36.00.007","Open","External","x",null,null,"x","P",null,null,"x","P","x",null,"x","x",null,null,"TBD","TBD","2017-09-01","TBD"]
["2017-04-28","2017-01-01",6,"Q2 2017",8,"Engineering","Yes","00851/2016","F. L",2,"Galley/gains","TFU","Espresso makers 4670-0001 series high removal rate","25.36.00.006","Open","External","P","x","P","x","P","P","P","P","x",null,null,"x",null,null,null,"UNK","VSB","2017-06-01","No"]
["2017-04-28","2017-01-01",1,null,8,"Engineering and Manufacturing","Yes","01312/2015","F. L",2,"Galley/gains","TFU","gdd ghfh ","25.30.00.030","Open","External",null,null,"P"]
["2017-04-28","2017-01-01",0,null,8,"Engineering and Manufacturing","Yes","00553/2015","F. L",2,"Galley/gains","No","G1AL FOLDING TROLLEY HARD TO REMOVE/INSTALL","N/A","Open","External","x"]
["2017-04-28","2017-01-01",0,null,8,"Manufacturing","Yes","00850/2016","F. L",2,"Galley/gains","No","CONfgfggd IN CHfgf fxggfxf","N/A","Open","Internal  ",null,null,null,null,null,"x"]
["2017-04-28","2017-01-01",0,"N/A",8,"Manufacturing","Yes","01121/2016","F. L",2,"Galley/gains","No","BROKEN FOOT PEDAL","N/A","Open","External",null,null,null,null,"x",null,null,null,null,null,null,null,null,null,null,"N/A","N/A","N/A","N/A"]
["2017-04-28","2017-01-01",0,null,8,"Manufacturing","Yes","00871/2016","F. L",2,"Galley/gains","No","LAVATORY OCCUPIED SIGN STUCK FULL BRIGHT","N/A","Open","External",null,null,null,null,"x"]
["2017-04-28","2017-01-01",0,null,8,"Manufacturing","Yes","00831/2016","F. L",2,"Galley/gains","No","MISSING SCREWS FOR COMPT 1104","N/A","Closed","External",null,null,null,null,"x"]
["2017-04-28","2017-01-01",0,null,8,"Manufacturing","Yes","00826/2016","F. L",2,"Galley/gains","No","UNWANTED INSERT HOLES ON CART COMPT DOOR","N/A","Closed","External",null,null,null,null,"x"]
["2017-04-28","2017-01-01",0,"N/A",8,"Manufacturing","Yes","00800/2016","F. L",2,"Galley/gains","No","IGTC INOP ON A NEWLY DELIVERED AIRCRAFT","N/A","Closed","External",null,null,null,null,null,null,null,null,null,null,null,null,null,null,null,"N/A","N/A","N/A","N/A"]
["2017-04-28","2017-01-01",0,null,8,"Manufacturing","Yes","00782/2016","F. L",2,"Galley/gains","No","MISSING STRIKER PLATE","N/A","Open","External",null,null,null,null,"x"]
["2017-04-28","2017-01-01",0,null,8,"Manufacturing","Yes","00772/2016","F. L",2,"Galley/gains","No","MISSING DUST COVER","N/A","Open","External",null,null,null,null,"x"]
["2017-04-28","2017-01-01",0,null,8,"Manufacturing","Yes","00768/2016","F. L",2,"Galley/gains","No","WRONG ARRANGEMENT OF PLACARDS","N/A","Open","External",null,null,null,null,"x"]
["2017-04-28","2017-01-01",0,"N/A",8,"Manufacturing","Yes","00681/2016","F. L",2,"Galley/gains","No","TRASH COMPACTOR SLIDER MISSING","N/A","Open","External","x",null,null,"x","x","x","x",null,"x",null,"x","x",null,null,null,"N/A","N/A","N/A","N/A"]
["2017-04-28","2017-01-01",0,"N/A",8,"Manufacturing","Yes","00680/2016","F. L",2,"Galley/gains","No","WATER BOILER AERATOR CORRODED","N/A","Closed","External","x","x","x","x","x",null,"x","x","x","x","x","x","x",null,null,"N/A","N/A","N/A","No"]
["2017-04-28","2017-01-01",0,null,1,"Engineering and Manufacturing","Yes","01269/2016","F. L",2,"Galley/gains","No","GALLEY CHILLED COMPT 910 DOOR FOUND DETACHED ","N/A","Open","External",null,null,null,null,"x","x","x",null,"x",null,null,"x"]
["2017-04-28","2017-01-01",1,null,1,"Engineering and Manufacturing","Yes","00773/2016","F. L",2,"Galley/gains","No","GALLEY G4M BUMP STRIP DAMAGED","N/A","Open","External","x","x","x","x","x","x","P","x","x","x","x","x"]
["2017-04-28","2017-01-01",0,null,1,"Engineering and Manufacturing","Yes","00552/2016","F. L",2,"Galley/gains","No","DELAMINATION OF IGWI 706 CONTROL PANEL","N/A","Open","External",null,null,null,null,"x",null,null,null,null,null,null,"x"]
["2017-04-28","2017-01-01",2,null,1,"Engineering and Manufacturing","Yes","01609/2016","F. G",2,"Galley/gains","No","Ice Drawer Drip Tray leakages","N/A","Open","External","x","P",null,null,null,"P","x",null,"x",null,"x","x"]
["2017-04-28","2017-03-01",0,"Q4 2015",1,"Engineering and Manufacturing","Yes","00763/2016","F. L",2,"Galley/gains","No","B/E Aerospace Ovens Door Scratches","N/A","Open","External","x",null,"x","x","x","x","x","x","x","x","x","x","x",null,null,"UNK","N/A","2015-12-01","No"]
["2017-04-28","2017-01-01",0,null,1,"Engineering and Manufacturing","Yes","00456/2016","F. G",2,"Galley/gains","TFU","CHILLING COMPT WALL DELAMINATED","25.36.00.009","Open","External",null,null,null,null,"x",null,null,null,null,null,null,"x"]
["2017-04-28","2017-01-01",0,null,1,"Engineering and Manufacturing","Yes","00455/2016","F. G",2,"Galley/gains","TFU","CHILLING COMPARTMENTS UNABLE TO LATCH SECURELY","25.30.00.040","Open","External",null,null,null,null,"x",null,null,null,null,null,null,"x"]
["2017-04-28","2017-01-01",0,"Available",1,"Engineering","Yes","00216/2015","F. G",2,"Galley/gains","TFU","LEAKS FROM GLUED DRAINS IN GALLEYS","25.00.00.037","Closed","External","x","x","x","x",null,null,null,null,null,null,null,null,null,null,null,"MSN24","VSB","Available","Yes"]
["2017-04-28","2017-01-01",4,"Fix under development",1,"Engineering and Manufacturing","Yes","00887/2016","F. G",2,"Galley/gains","TFU","ACU DRAINAGE PIPE ISSUE","25.30.00.029","Open","External","x","x","P","x","x","P","x","P","P","x","x","x","x",null,null,"TBD","TBD","TBD","TBD"]
["2017-04-28","2017-01-01",3,null,1,"Engineering","No",null,"F. G",2,"Galley/gains","TFU","Galley - Roller Blind Damages","25.30.00.013","Open","External","P",null,"P",null,null,"P",null,null,null,null,null,null,null,null,null,"MSN104","VSB",null,"Yes"]
["2017-04-28","2017-01-01",1,"Q1 2017",1,"Engineering and Manufacturing","Yes","00431/2016","F. G",2,"Galley/gains","TFU","Galley - Integrated Wine Bottle Opener","25.30.00.027","Closed","External",null,null,null,null,"P",null,null,null,null,null,null,null,null,null,null,"MSN77","VSB","2017-01-01","No"]
["2017-04-28","2017-01-01",0,null,1,"Engineering and Manufacturing","Yes","01086/2016","F. G",2,"Galley/gains","TFU","INCORRECT GALLEY COMPT 516/517 T DIVIDER IN G2A","25.30.00.032","Open","External",null,null,null,null,"x",null,null,null,null,null,null,"TBC"]
["2017-04-28","2017-01-01",0,"Q1 2017",1,"Engineering and Manufacturing","Yes","01078/2016","F. G",2,"Galley/gains","TFU","Gal Wff Fdfd pffds not vffd anffffd","25.30.00.034","Closed","Internal","x",null,null,null,null,null,null,null,null,null,null,null,null,null,null,"N/A","CMP","2017-01-01","N/A"]
["2017-04-28","2017-01-01",0,"Fix under development",1,"Engineering and Manufacturing","Yes","01067/2016","F. G",2,"Galley/gains","TFU","GALLEY DOOR HINGE COVER SEALS DAMAGES","25.30.00.035","Open","External","x","x","x","x","x","x","x","x","x","x","x","x","x",null,null,"TBD","TBD","TBD","TBD"]
["2017-04-28","2017-01-01",0,"Fix under development",1,"Engineering and Manufacturing","Yes","00925/2016","F. G",2,"Galley/gains","TFU","MISSING BUMPERS IN GALLEY","25.30.00.036","Open","External",null,null,null,null,"x",null,null,null,null,null,null,null,null,null,null,"N/A","VSB TBC","TBD","No"]
["2017-04-28","2017-01-01",1,"Q1 2017",1,"Engineering and Manufacturing","Yes","00758/2016","F. G",2,"Galley/gains","TFU","RETAINER COVER DETACHED WITH SCREW MISSING","25.30.00.037","Open","External","x","P","x","x","x","x","x","x","x","x","x",null,null,null,null,"N/A","CMM update","2017-02-01","No"]
["2017-04-28","2017-01-01",3,"Fix under development",1,"Engineering and Manufacturing","Yes","00687/2016","F. G",2,"Galley/gains","TFU","Galley Standard Unit slide extractor damage","25.30.00.028","Open","External","P","x","P","x","P","x","x","x","x","x","x","x","x",null,null,"TBD","TBD","TBD","Yes"]
["2017-04-28","2017-01-01",0,"N/A",1,"Engineering and Manufacturing","Yes","00673/2016","F. G",2,"Galley/gains","TFU","GREY DEPOSIT OR SCRATCHES ON COUNTER TOP","25.30.00.038","Closed","External","x",null,null,null,"x",null,null,null,null,null,null,null,null,null,null,"N/A","N/A","N/A","N/A"]
["2017-04-28","2017-01-01",0,"Fix under development",1,"Engineering and Manufacturing","Yes","00572/2016","F. G",2,"Galley/gains","TFU","COMPARTMENT DOOR STOPPER STUCK IN BETWEEN HINGE AND TRIM","25.30.00.039","Open","External",null,null,null,null,"x",null,null,null,null,null,null,null,null,null,null,"TBD","TBD","TBD","No"]
["2017-04-28","2017-01-01",0,"N/A",1,"Engineering and Manufacturing","Yes","00510/2016","F. G",2,"Galley/gains","No","GALLEY FAUCET AERATOR MISSING","N/A","Closed","External",null,null,null,null,"x",null,null,null,null,null,null,null,null,null,null,"N/A","N/A","N/A","N/A"]
["2017-04-28","2017-01-01",0,"N/A",1,"Manufacturing","Yes","01220/2016","F. G",2,"Galley/gains","No","G1L COMPT L114 ID LABEL INCORRECT","N/A","Closed","External",null,null,null,null,null,"x",null,null,null,null,null,null,null,null,null,"N/A","N/A","N/A","N/A"]
["2017-04-28","2017-01-01",1,"Fix under development",1,"Engineering and Manufacturing","Yes","00762/2016","F. G",2,"Galley/gains","No","Steam Oven Fault - Pin Programming Issue","N/A","Open","External","x","x","x","x","x","x","P","x","x","x","x","x","x",null,null,"TBD","TBD","TBD","TBD"]
["2017-04-28","2017-02-01",1,null,1,"Engineering","Yes","01665/2016","F. G",2,"Galley/gains","No","Aft Galley waste bin door gap","N/A","Open","External",null,"P",null,null,null,null,null,"x"]
["2017-04-28","2017-02-01",1,null,1,"Engineering","Yes","01706/2016","F. G",2,"Galley/gains","No","Galley surface lifted caused by leakage","N/A","Open","External",null,"P"]
["2017-04-28","2017-02-01",1,null,1,"Engineering","Yes","01654/2016","F. G",2,"Galley/gains","No","Galley waste compartment bi-fold door issue","N/A","Open","External","x","P"]
["2017-04-28","2017-02-01",0,null,1,"Engineering","Yes","01413/2016","F. G",2,"Galley/gains","No","Galley Cup Dispenser","N/A","Open","External",null,null,null,null,null,null,null,null,"x",null,null,null,null,null,null,"TBD","TBD",null,"No"]
["2017-04-28","2017-02-01",0,null,1,"Engineering and Manufacturing","Yes","00575/2016","F. G",2,"Galley/gains","No","Galley Sink Disbonded","N/A","Open","External","x",null,null,null,"x",null,null,null,"x",null,null,null,null,null,null,"TBD","TBD"]
["2017-04-28","2017-02-01",1,"Fix under development",1,"Engineering and Manufacturing","Yes","00062/2017","F. G",2,"Galley/gains","No","Galley faucet flowing continuously","N/A","Open","External",null,null,null,null,null,null,null,null,"P","x","x",null,null,null,null,"TBD","TBD","TBD","TBD"]
["2017-04-28","2017-01-01",{"$f":"COUNTIFS($Q132:$AE132, \"=P\")","v":1},null,1,"Engineering","No",null,"F. B",3,"Heating","TFU","Heated Floor Panel (HFP) overheating","25.27.00.009","Open","External","P",null,null,null,null,null,null,null,null,null,null,"x"]
["2017-04-28","2017-01-01",1,null,1,"Manufacturing","Yes","01030/2016","F. B",3,"Cabin & crew rest","No","Class divider decor foil bubbling","N/A","Open","External",null,null,null,null,null,"P"]
["2017-04-28","2017-01-01",0,null,1,"Manufacturing","Yes","00901/2016","F. B",3,"Cabin & crew rest","No","SHARP EDGE ON DISARM HANDLE SLIDING COVER","N/A","Open","External",null,null,"x",null,null,null,null,null,null,null,null,null,null,null,null,null,null,null,"No"]
["2017-04-28","2017-01-01",2,null,1,"Engineering and Manufacturing","Yes","01370/2016","F. B",3,"Cabin & crew rest","TFU"," Door window shade blocked","25.23.00.021","Open","External","x","P","x","x","x","x","x","x","P","x","x","x"]
["2017-04-28","2017-01-01",0,null,1,"Engineering","No",null,"F. B",3,"Cabin & crew rest","No","Partition rattling","N/A","Open","External",null,null,null,null,null,"x","x"]
["2017-04-28","2017-01-01",0,null,1,"Engineering","No",null,"F. B",3,"Cabin & crew rest","TFU","Interference between trolley and door frame lining & door hinge arm cover","25.23.00.020","Open","External","x","x","x","x","x","x","x","x","x","x","x","x"]
["2017-04-28","2017-01-01",0,null,1,"Engineering and Manufacturing","Yes","00433/2016","F. B",3,"Cabin & crew rest","No","Partition_foot_cover_detached","N/A","Open","External",null,null,null,null,"x"]
["2017-04-28","2017-01-01",1,null,1,"Engineering","No",null,"F. B",3,"Cabin & crew rest","No","Side literature pocket net and plastic attachments","N/A","Open","External",null,null,null,null,"P"]
["2017-04-28","2017-01-01",1,null,1,"Engineering","No",null,"E.S",3,"Cockpit","TFU","sliding table hard to operate","25.13.00.012","Open","External",null,null,null,null,null,null,null,"x","P","x","x","x"]
["2017-04-28","2017-01-01",1,null,1,"Engineering","No",null,"E.S",3,"Cabin & crew rest","TFU","CDSS data loading deviation","44.52.00.002","Open","External","x","x","x","P","x","x","x","x","x","x","x"]
["2017-05-11","2017-01-01",0,null,1,"Engineering and Manufacturing","Yes","01377/2016","E.S",3,"Cockpit","TFU","CAPT sliding table blocked in deployed position","25.14.00.002","Open","External",null,null,null,null,"X","x","x","x","x","x","x","x"]
["2017-04-28","2017-01-01",0,null,1,"Manufacturing","Yes","01396/2016","E.S",3,"Cockpit","No","Cfgfgf Igfg Ogfgfg WhhhL Ffdhdh Lhdfhdh Cdhdh Hhfjgj","N/A","Closed","Internal",null,null,null,null,null,null,null,null,"x"]
["2017-04-28","2017-01-01",0,null,1,"Manufacturing","Yes","01395/2016","E.S",3,"Cockpit","No","FIRST OFFICER SLIDING TABLE PN ISSUE","N/A","Closed","External","x"]
["2017-04-28","2017-01-01",0,null,1,"Manufacturing","Yes","01524/2016","E.S",3,"Cockpit","No","REAR SIDE PANEL 212PW","N/A","Closed","External",null,null,null,null,"x"]
["2017-04-28","2017-01-01",1,null,1,"Engineering","No",null,"E.S",3,"Cockpit","No","gffgfh","N/A","Open","External",null,null,null,null,"P","x"]
["2017-04-28","2017-01-01",0,null,1,"Manufacturing","Yes","01438/2016","C.A",3,"Cabin & crew rest","No","Exit signs hidden by curtains at door 2","N/A","Open","External",null,null,null,null,null,null,null,null,"x"]
["2017-04-28","2017-01-01",0,null,1,"Engineering","No",null,"C. Z",1,"Lights","TFU","SPOTLIGHT (FIN 300WL3) CONNECTOR INTERFACE ISSUE","33.20.00.003","Closed","External",null,null,"x",null,null,null,null,null,null,null,null,null,null,null,null,"MSN18","VSB",null,"No"]
["2017-04-28","2017-01-01",1,null,1,"Engineering","No",null,"C. Z",1,"Lights","TFU","Illumination Device (ILD) loading & system configuration deviation","33.20.00.001","Open","External","x","x","x","x","P","x","x","x","x","x","x","x"]
["2017-04-28","2017-01-01",1,null,1,"Engineering","No",null,"C. Z",1,"Lights","TFU","LOSS OF LAVATORY ILLUMINATION (Lights \"OFF\")","33.20.00.004","Open","External","x","x","x","x","x","x","x","x","P","x","x","x",null,null,null,"MSN109","SB",null,"Yes"]
["2017-04-28","2017-01-01",0,null,1,"Engineering","No",null,"C. Z",1,"Lights (Emer)","TFU","EPSU SYSTEM CONFIGURATION REPORTING ISSUE","33.51.00.019","Open","External","x","x","x","x","x","x","x","x","x","x","x","x",null,null,null,"MSN109","SB",null,"Yes"]
["2017-04-28","2017-01-01",0,null,1,"Engineering","No",null,"C. Z",1,"IFE","TFU","Temperature Limitation at 0°C for Panasonic IFE Equipment","44.20.00.003","Closed","External","x","x",null,null,null,null,null,null,null,null,null,null,null,null,null,"MSN18","VSB",null,"No"]
["2017-04-28","2017-01-01",5,null,1,"Engineering","No",null,"C. Z",1,"IFE","TFU","IFE POWER LOSS - AUTO RESET DURING FLIGHT","44.20.00.004","Open","External","P","P","x","P","P","x","P","x","x","x","x","x"]
["2017-04-28","2017-01-01",0,null,1,"Engineering","No",null,"C. Z",1,"CIDS","TFU","Entry Into Service CIDS Deviations","44.11.00.012","Closed","External","x","x","x","x",null,null,null,null,null,null,null,null,null,null,null,"MSN26","SB",null,"Yes"]
["2017-04-28","2017-01-01",0,null,1,"Engineering","No",null,"C. Z",1,"CIDS","TFU","FLOOR PANEL HEATER CONTROL FROM CIDS","44.11.00.014","Closed","External",null,null,null,null,null,null,null,null,null,null,null,null,null,null,null,"MSN6","None",null,"No"]
["2017-04-28","2017-01-01",0,null,1,"Engineering","No",null,"C. Z",1,"CIDS","TFU","CIDS - IFE INTERFACE ISSUES","44.11.00.015","Open","External","x","x","x","x",null,null,null,null,null,null,null,null,null,null,null,"MSN26","SB",null,"Yes"]
["2017-04-28","2017-01-01",1,null,1,"Engineering","No",null,"C. Z",1,"CIDS","TFU","CIDS OBRM DATA INTEGRITY","44.11.00.013","Open","External","x","x","x","P","x","x","x","x","x","x","x","x",null,null,null,"MSN109","SB",null,"Yes"]
["2017-04-28","2017-01-01",1,null,1,"Engineering","No",null,"C. Z",1,"CIDS","TFU","fggf htytr","44.11.00.017","Open","External","x","x","x","x","x","P","x","x","x","x","x","x"]
["2017-04-28","2017-01-01",0,null,1,"Engineering","No",null,"C. Z",1,"CIDS","TFU","FAP Set-up page: Loss of CF-Card mounted status","44.11.00.018","Open","External","x","x","x","x","x","x","x","x","x","x","x","x"]
["2017-04-28","2017-01-01",2,null,1,"Engineering","No",null,"C. Z",1,"CIDS","TFU","CIDS AUTO-RESET EVENTS","44.11.00.019","Open","External","x","P","x","P","x","x","x","x","x","x","x","x",null,null,null,"MSN109","SB",null,"Yes"]
["2017-04-28","2017-01-01",0,null,1,"Manufacturing","Yes","01004/2016","C. Z",1,"CIDS","No","hghgf","N/A","Closed","External",null,null,"X",null,null,null,null,null,null,null,null,null,null,null,null,"N/A","None",null,"No"]
["2017-04-28","2017-01-01",0,null,1,"Engineering and Manufacturing","Yes","00344/2016","C. Z",1,"Lights","No","Lavatory Occupied Sign - Logic and brightness","N/A","Closed","External",null,null,null,null,"x",null,null,null,null,null,null,null,null,null,null,"N/A","None",null,"No"]
["2017-04-28","2017-01-01",0,null,1,"Engineering and Manufacturing","Yes","01383/2015","C. Z",1,"Lights (Emer)","No","Missing Forward Emergency Escape Path light","N/A","Closed","External","x",null,null,null,"x",null,null,null,null,null,null,null,null,null,null,"N/A","None",null,"No"]
["2017-04-28","2017-01-01",1,null,1,"Engineering","No",null,"C. Z",1,"Lights","No","ytyrt  ","N/A","Open","External",null,null,null,null,"P",null,null,null,null,null,null,null,null,null,null,"MSN68","SB",null,"Yes"]
["2017-04-28","2017-01-01",0,null,1,"Manufacturing","Yes","01782/2016","C. Z",1,"IFE","No","INCORRECT S TO S CABLE FOUND INSTALLED","N/A","Closed","External",null,null,null,null,null,"x"]
["2017-04-28","2017-01-01",0,null,1,"Manufacturing","Yes","01801/2016","C. Z",1,"IFE","No","FDB 80MK14 FOUND WITH NON CONFORMITY STICKER & NOT CONNECTED","N/A","Closed","External",null,null,null,null,null,"x"]
["2017-04-28","2017-01-01",0,null,1,"Manufacturing","Yes","00038/2017","C. Z",1,"Lights (Emer)","No","SMEL CABLE PIN BROKEN","N/A","Closed","External",null,null,null,null,null,"x"]
["2017-04-28","2017-01-01",0,null,1,"Engineering","Yes","00827/2016","C. Z",1,"Lights (Emer)","TFU","EMERGENCY EXIT SIGNS \"ON\" DURING FLIGHT","33.51.00.020","Open","External","x","x","x","x","x","x","x","x","x","x","x","x"]
["2017-04-28","2017-01-01",0,null,1,"Engineering","Yes","00973/2016","C. Z",1,"CIDS","TFU","Failure 3 durin Systems dataloading","44.10.00.001","Open","External","x","x","x","x","x","x","x","x","x","x","x","x"]
["2017-04-28","2017-01-01",0,null,1,"Manufacturing","Yes","00152/2017","C. Z",1,"IFE","No","S2S CABLE P/N RD-FM6501-A070 DEFECTIVE","N/A","Open","External",null,null,null,null,null,"x"]
["2017-04-28","2017-02-01",1,null,1,"Engineering","No",null,"C. Z",1,"IFE","No","IFE failure after CIDS Software Loading","N/A","Closed","External",null,"P",null,null,null,null,null,null,null,null,null,null,null,null,null,"N/A MSN 14 only","AFI",null,"No"]
["2017-04-28","2017-02-01",0,null,1,"Engineering","No",null,"C. Z",1,"Lights (Emer)","No","Emer Floor Path hidden by CAL brand panel","N/A","Open","External",null,null,null,null,null,null,null,null,null,null,null,null,null,null,null,null,"SB",null,"No"]
["2017-04-28","2017-03-23",0,null,1,"Manufacturing","Yes","00275/2017","C. Z",1,"IFE","No","FDB-to-SIB Harness RD-FM6500-078 Found Damaged","N/A","Closed","External",null,null,null,null,null,"x",null,null,null,null,null,null,null,null,null,"MSN070"]
["2017-04-28","2017-01-01",8,null,1,"Engineering","No",null,"D. Y",2,"Lavatories","TFU","Thermostat Unit Control device","25.40.00.047","Open","External","P","P","P","P","P","P","P","P","x","x","x",null,null,null,null,"MSN94","VSB"]
["2017-04-28","2017-01-01",6,"1Q 2017",1,"Engineering","No",null,"D. Y",2,"Lavatories","TFU","Toilet shrouds broken brackets","25.40.00.049","Open","External","P","P","x","P","P","P","P",null,null,null,null,null,null,null,null,"MSN44","VSB","1Q 2017"]
["2017-04-28","2017-01-01",3,null,1,"Engineering","No",null,"D. Y",2,"Lavatories","TFU","Nonfunctioning LOS microswitch","25.40.00.058","Open","External","P","P","P","x","x",null,null,null,null,null,null,null,null,null,null,"MSN28","VSB"]
["2017-04-28","2017-01-01",0,"4Q 2017",1,"Engineering","No",null,"D. Y",2,"Lavatories","TFU","Broken OCCUPIED/VACANT sign","25.40.00.060","Open","External","x","x","x","x","x",null,null,null,null,null,null,null,null,null,null,"MSN26","VSB","4Q 2017"]
["2017-04-28","2017-01-01",0,"1Q 2016",3,"Engineering","No",null,"D. Y",2,"Lavatories","TFU","Lavatory flush switch","25.40.00.059","Open","External","x","x","x",null,null,null,null,null,null,null,null,null,null,null,null,"MSN24","VSB","1Q 2016"]
["2017-04-28","2017-01-01",4,"1Q 2017",3,"Engineering","No",null,"D. Y",2,"Lavatories","TFU","Lavatory Mirror damaged","25.40.00.061","Open","External","P","P","P","x","x","x","P","x","x",null,null,null,null,null,null,"MSN61","VSB","1Q 2017"]
["2017-04-28","2017-01-01",5,null,3,"Engineering","No",null,"D. Y",2,"Lavatories","TFU","Waste bin flap paint damage","25.40.00.063","Open","External","P","x","P","x","P","x","P","P","x","x","x","x",null,null,null,"TBD"]
["2017-04-28","2017-01-01",2,null,3,"Engineering","No",null,"D. Y",2,"Lavatories","TFU","Lavatory countertop cracks","25.40.00.062","Open","External","x","x","P","x","P","x","x","x","x","x","x","x",null,null,null,"TBD","VSB"]
["2017-04-28","2017-01-01",6,null,3,"Engineering and Manufacturing","Yes","00531/2016","D. Y",2,"Lavatories","TFU","Lights not working properly","25.40.00.064","Open","External","P","x","P","P","P","P","P","x","x","x",null,null,null,null,null,"MSN82","VSB"]
["2017-04-28","2017-01-01",3,"4Q 2017",3,"Engineering","No",null,"D. Y",2,"Lavatories","TFU","Ash Tray dislodge easily","25.40.00.069","Open","External","x","P","x","x","P","x","P","x","x","x","x",null,null,null,null,"TBD","VSB","4Q 2017"]
["2017-05-02","2017-01-01",2,null,3,"Engineering and Manufacturing","Yes","01108/2016","D. Y",2,"Lavatories","TFU","Pelmet and upper lateral fairing found dislodged","25.40.00.066","Open","External","x","x","x","x","P","x","x","P","x","x","x","x",null,null,null,"MSN52","VSB"]
["2017-05-02","2017-01-01",4,null,3,"Engineering","No",null,"D. Y",2,"Lavatories","TFU","Toilet paper roll holder missing","25.40.00.070","Open","External","P","x","x","x","P","P","P","x","x",null,null,null,null,null,null,"MSN54","VSB"]
["2017-05-02","2017-01-01",0,null,3,"Engineering","No",null,"D. Y",2,"Lavatories","TFU","Toilet cover missing bumper","25.40.00.071","Open","External","x","x","x","x","x","x","x","x","x","x","x","x",null,null,null,"TBD","New Design"]
["2017-04-28","2017-01-01",2,null,3,"Engineering and Manufacturing","Yes","00917/2016","A. L",2,"Lavatories","TFU","Hinge Latch screws on bi-folding door found loosen/missing","25.40.00.068","Open","External","x","x","x","x","P","P","x","x","x","x","x"]
["2017-05-02","2017-01-01",7,null,3,"Engineering and Manufacturing","Yes","00486/2015","D. Y",2,"Lavatories","TFU","Toilet shrouds issues: paint peeling, material cracks and brackets","25.40.00.046","Open","External","P","P","P","P","P","P","P","x","x","x","x",null,null,null,null,"MSN74","VSB","4Q 2016"]
["2017-04-28","2017-01-01",1,null,3,"Engineering and Manufacturing","Yes","00130/2015","A. L",2,"Lavatories","TFU","Water Drain Knob actuator found broken","25.40.00.045","Open","External","x",null,null,null,null,"P","x"]
["2017-04-28","2017-01-01",0,null,3,"Manufacturing","Yes","00087/2015","A. L",2,"Lavatories","No","QSR - TF/V/CB/15 - Lgfgd Cgfdgdfgfd Dfdgfg Lffdgdfg Mgfgfdg","N/A","Open","Internal  ","x"]
["2017-04-28","2017-01-01",0,null,3,"Manufacturing","Yes","01305/2016","A. L",2,"Lavatories","No"," FLOODED FROM LAVATORY L61, LIKELY DUE TO SHUTOFF VALVE PACKING DETERIORATED / DAMAGED","N/A","Open","External",null,null,null,null,"x"]
["2017-05-02","2017-01-01",0,null,3,"Manufacturing","Yes","01123/2016","D. Y",2,"Lavatories","No","MULTIPLE TOILET ","N/A","Closed","External",null,null,null,null,"x"]
["2017-04-28","2017-01-01",1,null,3,"Manufacturing","Yes","01104/2016","A. L",2,"Lavatories","No","DOOR OPENING IN FLIGHT","N/A","Open","External",null,null,null,null,"x","P"]
["2017-04-28","2017-01-01",1,null,3,"Manufacturing","Yes","01324/2016","A. L",2,"Lavatories","No","LAVATORY WATER FILTER NOT INSTALLED FROM PRODUCTION","N/A","Open","External","P"]
["2017-04-28","2017-01-01",0,null,3,"Manufacturing","Yes","01321/2016","A. L",2,"Lavatories","No","LAVATORY L14 - WIRING HARNESS IDENTIFICATION","N/A","Open","External",null,null,null,null,null,"x"]
["2017-04-28","2017-01-01",{"$f":"COUNTIFS($Q196:$AE196, \"=P\")","v":0},null,3,"Manufacturing","Yes","01275/2016","A. L",2,"Lavatories","No","WATER LEAK DUE WRONG CLAMP INSTALLED AT DELIVERY","N/A","Closed","External",null,null,null,null,null,null,"x"]
["2017-05-02","2017-01-01",0,null,3,"Manufacturing","Yes","01255/2016","D. Y",2,"Lavatories","No","BABY CRADLE SOCKET ISSUE","N/A","Closed","External",null,null,null,null,null,null,null,"x"]
["2017-05-02","2017-01-01",1,null,3,"Manufacturing","Yes","01143/2016","D. Y",2,"Lavatories","No","SOAP DISPENSER UNSERVICEABLE","N/A","Closed","External",null,null,"x",null,null,"P"]
["2017-04-28","2017-01-01",0,null,3,"Manufacturing","Yes","01122/2016","D. Y",2,"Lavatories","No","LAV14 INFRARED FAUCET INOP (NO WATER)","N/A","Open","External",null,null,null,null,null,null,"x"]
["2017-04-28","2017-01-01",2,null,3,"Manufacturing","Yes","01003/2016","A. L",2,"Lavatories","No","CPA MSN029 - DRAIN KNOB ACTUATOR ISSUES","N/A","Closed","External",null,null,null,null,null,"P","P"]
["2017-04-28","2017-01-01",1,null,3,"Manufacturing","Yes","00818/2016","D. Y",2,"Lavatories","No","MISSING RUBBER SEALS ON LAVATORY DOORS","N/A","Closed","External",null,null,null,null,"P"]
["2017-04-28","2017-01-01",0,null,3,"Manufacturing","Yes","00722/2016","D. Y",2,"Lavatories","No","PLACARDS MISSING IN LAV 61 AND LAV 73","N/A","Closed","External",null,null,null,null,"x"]
["2017-04-28","2017-01-01",0,null,3,"Engineering and Manufacturing","Yes","00323/2016","D. Y",2,"Lavatories","No","Lavatory waste bin flap attachment issue","N/A","Closed","External","x"]
["2017-04-28","2017-01-01",0,null,1,"Manufacturing","Yes","00578/2016","D. Y",2,"Lavatories","No","DIFFERENT LAV ICS AND DESIGN BETWEEN MSN 0026 & MSN 0030 ","N/A","Open","External",null,null,null,null,"x"]
["2017-04-28","2017-01-01",0,null,1,"Manufacturing","Yes","00480/2016","D. Y",2,"Lavatories","No","LAVATORY CUP HOLDER WRONG POSITION","N/A","Closed","External",null,null,null,null,"x"]
["2017-04-28","2017-01-01",0,null,1,"Engineering and Manufacturing","Yes","00393/2015","D. Y",2,"Lavatories","No","CHIMNEY FAIRING MISSING","N/A","Closed","External"]
["2017-05-31","2017-01-01",0,null,1,"Manufacturing","Yes","00474/2016","D. Y",2,"Lavatories","No","L11 SEAL IN BETWEEN MIRRORS MISSING","N/A","Open","External",null,null,null,null,"x"]
["2017-04-28","2017-01-01",0,null,1,"Manufacturing","Yes","01441/2016","D. Y",2,"Lavatories","No","Missing flower holder l34","N/A","Open","External",null,null,null,null,"x"]
["2017-05-02","2017-01-01",1,null,1,"Manufacturing","Yes","01440/2016","D. Y",2,"Lavatories","No"," Bifold door interference with shroud","N/A","Open","External",null,null,null,null,"P",null,null,null,"x"]
["2017-04-28","2017-01-01",0,null,1,"Manufacturing","Yes","00483/2016","D. Y",2,"Lavatories","No","Amenity stowage bar end cap loose","N/A","Open","External",null,null,"x"]
["2017-05-11","2017-01-01",1,null,1,"Engineering","Yes","01055/2016","D. Y",2,"Lavatories","TFU","Lavatory door lock stiff in flight ","25.40.00.072","draft","External",null,null,"P",null,null,null,null,null,null,null,null,null,null,null,null,null,null,"2Q 2016"]
["2017-04-28","2017-03-31",0,null,1,"Manufacturing","Yes",null,"I. F",1,"IFE","No","IFE_AT4421_loose monitor arm","N/A","Open","External",null,null,"x"]
["2017-04-28","2017-03-31",0,null,1,"Manufacturing","Yes","01613/2016","I. F",1,"IFE","No","tp seat cable missing","N/A","Open","External",null,null,null,null,null,null,null,null,"x"]
["2017-04-28","2017-04-12",0,null,1,"Engineering and Manufacturing","Yes","00482/2017","T. D",1,"Seats","No","LOWER ATTACHMENT FOR BACKREST SHROUD DETACHED","N/A","Open","External",null,null,"x","x","x",null,null,null,"x","x",null,"x"]
["2017-04-28","2017-04-13",0,null,1,"Manufacturing","Yes","00645/2017","C. K",1,"Lights (Emer)","No","Door 4L Emergency Flood WMEL light unit always ON","N/A","Open","External",null,null,null,null,null,null,null,null,"x"]
["2017-04-28","2017-04-13",0,null,1,"Manufacturing","Yes","00641/2017","C. Z",1,"Lights","No","Incorrect Cabin Lights software installed","N/A","Open","External",null,null,null,null,null,null,null,null,null,"x"]
["2017-04-28","2017-04-19",0,"N/A",1,"Manufacturing","Yes","00465/2017","F. L",2,"Galley/gains","No","IGTC SENSOR INSTALLATION ISSUE","N/A","Open","External",null,null,"x",null,"x","x","x",null,null,null,"x",null,null,null,null,"N/A","N/A","N/A","N/A"]
["2017-05-10","2017-05-10",null,null,1,"Manufacturing","Yes","00843/2017","T. D",1,"Seats","No","belts not connected","N/A","Open","External",null,null,null,null,null,"x",null,null,null,null,null,null,null,null,null,"N/A","N/A","N/A","N/A"]
["2017-05-31","2017-05-12",null,null,1,"Manufacturing","Yes","00869/2017","C. K",1,"Seats","No"," UNABLE TO RECLINE","N/A","Open","External",null,null,null,null,null,"x",null,null,null,null,null,null,null,null,null,"N/A","N/A","N/A","N/A"]

{"sheet":"Important ISI","index":2,"n_rows":2,"n_cols":17,"rows_kept":2,"cut":false,"hidden":false,"merged":[]}
[null,null,null,null,null,"Applicability at delivery"]
["ATA","Reference","Owner","Group","Title","QTR","HVN","FIN","TAM","SIA","CPA","ETH","THA","CAL","ALK","DLH","FWI"]

{"sheet":"ASMA","index":3,"n_rows":1,"n_cols":5,"rows_kept":1,"cut":false,"hidden":false,"merged":[]}
["ATA","Reference","Owner","Group","Title"]

{"sheet":"Internal TFUs","index":4,"n_rows":0,"n_cols":0,"rows_kept":0,"cut":false,"hidden":false,"merged":[]}

{"sheet":"AOT","index":5,"n_rows":0,"n_cols":0,"rows_kept":0,"cut":false,"hidden":false,"merged":[]}

{"sheet":"TFU evolution","index":6,"n_rows":75,"n_cols":47,"rows_kept":75,"cut":false,"hidden":false,"merged":[[57,35,57,37],[57,38,57,40],[57,41,57,43],[57,44,57,46],[7,2,7,4],[8,2,8,4],[9,2,9,4],[10,2,10,4],[57,20,57,22],[57,23,57,25],[57,26,57,28],[57,29,57,31],[57,32,57,34],[10,38,10,40],[10,41,10,43],[10,44,10,46],[13,32,13,34],[13,35,13,37],[13,38,13,40],[13,41,13,43],[13,44,13,46],[11,2,11,3],[10,5,10,7],[13,2,13,4],[13,5,13,7],[15,44,15,46],[14,5,14,7],[16,5,16,7],[15,11,15,13],[15,14,15,16],[15,35,15,37],[15,38,15,40],[15,41,15,43],[16,35,16,37],[16,38,16,40],[16,41,16,43],[14,8,14,10],[14,11,14,13],[14,14,14,16],[14,17,14,19],[14,20,14,22],[14,23,14,25],[16,44,16,46],[16,32,16,34],[14,32,14,34],[14,35,14,37],[14,38,14,40],[14,41,14,43],[9,23,9,25],[14,44,14,46],[7,44,7,46],[7,41,7,43],[7,38,7,40],[7,35,7,37],[7,26,7,28],[7,29,7,31],[8,38,8,40],[9,38,9,40],[8,44,8,46],[9,44,9,46],[13,26,13,28],[13,29,13,31],[8,41,8,43],[9,41,9,43],[7,32,7,34],[8,26,8,28],[9,26,9,28],[8,32,8,34],[9,32,9,34],[6,2,6,4],[10,8,10,10],[8,29,8,31],[9,29,9,31],[7,20,7,22],[7,23,7,25],[8,20,8,22],[8,23,8,25],[9,20,9,22],[7,8,7,10],[7,11,7,13],[7,14,7,16],[7,17,7,19],[8,8,8,10],[8,17,8,19],[9,8,9,10],[8,11,8,13],[9,11,9,13],[8,14,8,16],[9,14,9,16],[9,17,9,19],[10,20,10,22],[10,23,10,25],[7,5,7,7],[57,2,57,4],[57,8,57,10],[57,5,57,7],[57,11,57,13],[57,14,57,16],[57,17,57,19],[15,32,15,34],[15,8,15,10],[13,8,13,10],[13,11,13,13],[15,5,15,7],[16,8,16,10],[16,11,16,13],[16,14,16,16],[16,17,16,19],[16,20,16,22],[16,23,16,25],[16,26,16,28],[16,29,16,31],[14,26,14,28],[14,29,14,31],[14,2,14,4],[15,2,15,4],[16,2,16,4],[36,2,36,4],[37,2,37,4],[37,5,37,7],[37,8,37,10],[8,35,8,37],[9,35,9,37],[15,17,15,19],[15,20,15,22],[15,23,15,25],[15,26,15,28],[15,29,15,31],[10,26,10,28],[10,29,10,31],[10,32,10,34],[10,11,10,13],[10,14,10,16],[10,17,10,19],[10,35,10,37],[8,5,8,7],[9,5,9,7],[13,14,13,16],[13,17,13,19],[13,20,13,22],[13,23,13,25]]}
[{"$f":"TODAY()","v":"2017-07-04"},null,"Last available date:",null,null,{"$f":"MAX('External TFU-TDO'!A:A)","v":"2017-06-07"},{"$f":"MONTH($F$1)","v":6},null,{"$f":"YEAR($F$1)","v":2017}]
[null,null,null,null,null,{"$f":"F1-DAY(F1)+1","v":"2017-06-01"}]
["GLOBAL:"]
[]
[null,"External","Open","OR",null,"Closed","TFU"]
[]
[null,null,"CURRENT MONTH"]
[null,null,{"$f":"F2","v":"2017-06-01"},null,null,{"$f":"EDATE(C8,1)","v":"2017-07-01"},null,null,{"$f":"EDATE(F8,1)","v":"2017-08-01"}]
[null,"Open TFU",{"$f":"COUNTIFS('External TFU-TDO'!$P:$P,\"=\"&$B$5, 'External TFU-TDO'!$O:$O,\"=\"&$C$5, 'External TFU-TDO'!$L:$L,\"=\"&$G$5, 'External TFU-TDO'!$B:$B, \"<\"&F$8)","v":82}]
[null,"Closed TFU",{"$f":"-COUNTIFS('External TFU-TDO'!$P:$P, \"=\"&$B$5, 'External TFU-TDO'!$O:$O, \"=\"&$F$5, 'External TFU-TDO'!$L:$L, \"=\"&'TFU evolution'!$G$5, 'External TFU-TDO'!$B:$B, \"<\"&F$8)","v":-15}]
[null,"New open TFU",{"$f":"COUNTIFS('External TFU-TDO'!$P:$P,\"=\"&$B$5, 'External TFU-TDO'!$O:$O,\"=\"&$C$5, 'External TFU-TDO'!$L:$L,\"=\"&$G$5, 'External TFU-TDO'!$B:$B, \"<\"&F$8, 'External TFU-TDO'!$B:$B, \">=\" &'TFU evolution'!C$8)","v":0}]
[]
[]
["(Frozen values)",null,"2017-03-01",null,null,"2017-04-01",null,null,"2017-05-01",null,null,"2017-06-01",null,null,"2017-07-01",null,null,"2017-08-01",null,null,"2017-09-01",null,null,"2017-10-01",null,null,"2017-11-01",null,null,"2017-12-01",null,null,"2018-01-01",null,null,"2018-02-01",null,null,"2018-03-01",null,null,"2018-04-01",null,null,"2018-05-01"]
[null,"Open TFU",82,null,null,81]
[null,"Closed TFU",-15,null,null,-15]
[null,"New open TFU",3,null,null,0]
[]
[]
[]
[]
[]
[]
[]
[]
[]
[]
[]
[]
[]
[]
[]
[]
[]
["PER SYSTEM (monthly status):"]
[]
[null,null,"CURRENT MONTH"]
[null,null,{"$f":"F2","v":"2017-06-01"},null,null,{"$f":"EDATE(C38,1)","v":"2017-07-01"},null,null,{"$f":"EDATE(F38,1)","v":"2017-08-01"}]
[null,null,"Open TFU","Closed TFU","New TFU"]
[null,"Water & Waste",{"$f":"COUNTIFS('External TFU-TDO'!$P:$P,\"=\"&$B$5, 'External TFU-TDO'!$O:$O,\"=\"&$C$5, 'External TFU-TDO'!$L:$L,\"=\"&G$5, 'External TFU-TDO'!$K:$K, \"=Water & Waste\")","v":5},{"$f":"COUNTIFS('External TFU-TDO'!$P:$P,\"=\"&$B$5, 'External TFU-TDO'!$O:$O,\"=\"&$F$5, 'External TFU-TDO'!$L:$L,\"=\"&$G$5, 'External TFU-TDO'!$K:$K, \"=\"&$B40)","v":1},{"$f":"COUNTIFS('External TFU-TDO'!$P:$P,\"=\"&$B$5, 'External TFU-TDO'!$O:$O,\"=\"&$C$5, 'External TFU-TDO'!$L:$L,\"=\"&$G$5, 'External TFU-TDO'!$K:$K, \"=\"&$B40, 'External TFU-TDO'!$B:$B, \"<\"&F$38, 'External TFU-TDO'!$B:$B, \">=\"&C$38)","v":0}]
[null,"Smoke Detection",{"$f":"COUNTIFS('External TFU-TDO'!$P:$P,\"=\"&$B$5,'External TFU-TDO'!$O:$O,\"=\"&$C$5,'External TFU-TDO'!$L:$L,\"=\"&$G$5,'External TFU-TDO'!$K:$K,\"=Smoke Detection\")","v":3},{"$f":"COUNTIFS('External TFU-TDO'!$P:$P,\"=\"&$B$5, 'External TFU-TDO'!$O:$O,\"=\"&$F$5, 'External TFU-TDO'!$L:$L,\"=\"&$G$5, 'External TFU-TDO'!$K:$K, \"=\"&$B41)","v":1},{"$f":"COUNTIFS('External TFU-TDO'!$P:$P,\"=\"&$B$5, 'External TFU-TDO'!$O:$O,\"=\"&$C$5, 'External TFU-TDO'!$L:$L,\"=\"&$G$5, 'External TFU-TDO'!$K:$K, \"=\"&$B41, 'External TFU-TDO'!$B:$B, \"<\"&F$38, 'External TFU-TDO'!$B:$B, \">=\"&C$38)","v":0}]
[null,"Seats",{"$f":"COUNTIFS('External TFU-TDO'!$P:$P,\"=\"&$B$5, 'External TFU-TDO'!$O:$O,\"=\"&$C$5, 'External TFU-TDO'!$L:$L,\"=\"&$G$5, 'External TFU-TDO'!$K:$K, \"=Seats\")","v":1},{"$f":"COUNTIFS('External TFU-TDO'!$P:$P,\"=\"&$B$5, 'External TFU-TDO'!$O:$O,\"=\"&$F$5, 'External TFU-TDO'!$L:$L,\"=\"&$G$5, 'External TFU-TDO'!$K:$K, \"=\"&$B42)","v":0},{"$f":"COUNTIFS('External TFU-TDO'!$P:$P,\"=\"&$B$5, 'External TFU-TDO'!$O:$O,\"=\"&$C$5, 'External TFU-TDO'!$L:$L,\"=\"&$G$5, 'External TFU-TDO'!$K:$K, \"=\"&$B42, 'External TFU-TDO'!$B:$B, \"<\"&F$38, 'External TFU-TDO'!$B:$B, \">=\"&C$38)","v":0}]
[null,"SCS",{"$f":"COUNTIFS('External TFU-TDO'!$P:$P,\"=\"&$B$5, 'External TFU-TDO'!$O:$O,\"=\"&$C$5, 'External TFU-TDO'!$L:$L,\"=\"&$G$5, 'External TFU-TDO'!$K:$K, \"=SCS\")","v":3},{"$f":"COUNTIFS('External TFU-TDO'!$P:$P,\"=\"&$B$5, 'External TFU-TDO'!$O:$O,\"=\"&$F$5, 'External TFU-TDO'!$L:$L,\"=\"&$G$5, 'External TFU-TDO'!$K:$K, \"=\"&$B43)","v":0},{"$f":"COUNTIFS('External TFU-TDO'!$P:$P,\"=\"&$B$5, 'External TFU-TDO'!$O:$O,\"=\"&$C$5, 'External TFU-TDO'!$L:$L,\"=\"&$G$5, 'External TFU-TDO'!$K:$K,\"=\"&$B43, 'External TFU-TDO'!$B:$B, \"<\"&F$38, 'External TFU-TDO'!$B:$B, \">=\"&C$38)","v":0}]
[null,"Pax Door",{"$f":"COUNTIFS('External TFU-TDO'!$P:$P,\"=\"&$B$5, 'External TFU-TDO'!$O:$O,\"=\"&$C$5, 'External TFU-TDO'!$L:$L,\"=\"&$G$5, 'External TFU-TDO'!$K:$K, \"=Pax Door\")","v":1},{"$f":"COUNTIFS('External TFU-TDO'!$P:$P,\"=\"&$B$5, 'External TFU-TDO'!$O:$O,\"=\"&$F$5, 'External TFU-TDO'!$L:$L,\"=\"&$G$5, 'External TFU-TDO'!$K:$K, \"=\"&$B44)","v":0},{"$f":"COUNTIFS('External TFU-TDO'!$P:$P,\"=\"&$B$5, 'External TFU-TDO'!$O:$O,\"=\"&$C$5, 'External TFU-TDO'!$L:$L,\"=\"&$G$5, 'External TFU-TDO'!$K:$K, \"=\"&$B44, 'External TFU-TDO'!$B:$B, \"<\"&F$38, 'External TFU-TDO'!$B:$B, \">=\"&C$38)","v":0}]
[null,"Oxygen",{"$f":"COUNTIFS('External TFU-TDO'!$P:$P,\"=\"&$B$5, 'External TFU-TDO'!$O:$O,\"=\"&$C$5, 'External TFU-TDO'!$L:$L,\"=\"&$G$5, 'External TFU-TDO'!$K:$K, \"=Oxygen\")","v":3},{"$f":"COUNTIFS('External TFU-TDO'!$P:$P,\"=\"&$B$5, 'External TFU-TDO'!$O:$O,\"=\"&$F$5, 'External TFU-TDO'!$L:$L,\"=\"&$H$5, 'External TFU-TDO'!$K:$K, \"=\"&$B44)","v":0},{"$f":"COUNTIFS('External TFU-TDO'!$P:$P,\"=\"&$B$5, 'External TFU-TDO'!$O:$O,\"=\"&$C$5, 'External TFU-TDO'!$L:$L,\"=\"&$G$5, 'External TFU-TDO'!$K:$K, \"=Oxygen\", 'External TFU-TDO'!$B:$B, \"<\"&F$38, 'External TFU-TDO'!$B:$B, \">=\"&C$38)","v":0}]
[null,"Lights + Lights (Emer)",{"$f":"COUNTIFS('External TFU-TDO'!$P:$P,\"=\"&$B$5, 'External TFU-TDO'!$O:$O,\"=\"&$C$5, 'External TFU-TDO'!$L:$L,\"=\"&$G$5, 'External TFU-TDO'!$K:$K, \"=Lights\") + COUNTIFS('External TFU-TDO'!$P:$P,\"=\"&$B$5, 'External TFU-TDO'!$O:$O,\"=\"&$C$5, 'External TFU-TDO'!$L:$L,\"=\"&$G$5, 'External TFU-TDO'!$K:$K, \"=Lights (Emer)\")","v":4},{"$f":"COUNTIFS('External TFU-TDO'!$P:$P,\"=\"&$B$5, 'External TFU-TDO'!$O:$O,\"=\"&$F$5, 'External TFU-TDO'!$L:$L,\"=\"&$G$5, 'External TFU-TDO'!$K:$K, \"=Lights\") + COUNTIFS('External TFU-TDO'!$P:$P,\"=\"&$B$5, 'External TFU-TDO'!$O:$O,\"=\"&$F$5, 'External TFU-TDO'!$L:$L,\"=\"&$G$5, 'External TFU-TDO'!$K:$K, \"=Lights (Emer)\")","v":1},{"$f":"COUNTIFS('External TFU-TDO'!$P:$P,\"=\"&$B$5, 'External TFU-TDO'!$L:$L,\"=\"&$G$5, 'External TFU-TDO'!$B:$B, \"<\"&F$58, 'External TFU-TDO'!$B:$B, \">=\"&C$58, 'External TFU-TDO'!$K:$K, \"=Lights\") + COUNTIFS('External TFU-TDO'!$P:$P,\"=\"&$B$5, 'External TFU-TDO'!$L:$L,\"=\"&$G$5, 'External TFU-TDO'!$B:$B, \"<\"&F$58, 'External TFU-TDO'!$B:$B, \">=\"&C$58, 'External TFU-TDO'!$K:$K, \"=Lights (Emer)\")","v":0}]
[null,"Lavatories",{"$f":"COUNTIFS('External TFU-TDO'!$P:$P,\"=\"&$B$5, 'External TFU-TDO'!$O:$O,\"=\"&$C$5, 'External TFU-TDO'!$L:$L,\"=\"&$G$5, 'External TFU-TDO'!$K:$K, \"=Lavatories\")","v":16},{"$f":"COUNTIFS('External TFU-TDO'!$P:$P,\"=\"&$B$5, 'External TFU-TDO'!$O:$O,\"=\"&$F$5, 'External TFU-TDO'!$L:$L,\"=\"&$G$5, 'External TFU-TDO'!$K:$K, \"=\"&$B47)","v":0},{"$f":"COUNTIFS('External TFU-TDO'!$P:$P,\"=\"&$B$5, 'External TFU-TDO'!$O:$O,\"=\"&$C$5, 'External TFU-TDO'!$L:$L,\"=\"&$G$5, 'External TFU-TDO'!$K:$K, \"=\"&$B47, 'External TFU-TDO'!$B:$B, \"<\"&F$38, 'External TFU-TDO'!$B:$B, \">=\"&C$38)","v":0}]
[null,"IFE",{"$f":"COUNTIFS('External TFU-TDO'!$P:$P,\"=\"&$B$5, 'External TFU-TDO'!$O:$O,\"=\"&$C$5, 'External TFU-TDO'!$L:$L,\"=\"&$G$5, 'External TFU-TDO'!$K:$K, \"=IFE\")","v":1},{"$f":"COUNTIFS('External TFU-TDO'!$P:$P,\"=\"&$B$5, 'External TFU-TDO'!$O:$O,\"=\"&$F$5, 'External TFU-TDO'!$L:$L,\"=\"&$G$5, 'External TFU-TDO'!$K:$K, \"=\"&$B48)","v":1},{"$f":"COUNTIFS('External TFU-TDO'!$P:$P,\"=\"&$B$5, 'External TFU-TDO'!$O:$O,\"=\"&$C$5, 'External TFU-TDO'!$L:$L,\"=\"&$G$5, 'External TFU-TDO'!$K:$K, \"=IFE\", 'External TFU-TDO'!$B:$B, \"<\"&F$38, 'External TFU-TDO'!$B:$B, \">=\"&C$38)","v":0}]
[null,"Heating",{"$f":"COUNTIFS('External TFU-TDO'!$P:$P,\"=\"&$B$5, 'External TFU-TDO'!$O:$O,\"=\"&$C$5, 'External TFU-TDO'!$L:$L,\"=\"&$G$5, 'External TFU-TDO'!$K:$K, \"=Heating\")","v":2},{"$f":"COUNTIFS('External TFU-TDO'!$P:$P,\"=\"&$B$5, 'External TFU-TDO'!$O:$O,\"=\"&$F$5, 'External TFU-TDO'!$L:$L,\"=\"&$G$5, 'External TFU-TDO'!$K:$K,\"=\"&$B49)","v":1},{"$f":"COUNTIFS('External TFU-TDO'!$P:$P,\"=\"&$B$5, 'External TFU-TDO'!$O:$O,\"=\"&$C$5, 'External TFU-TDO'!$L:$L,\"=\"&$G$5, 'External TFU-TDO'!$K:$K,\"=\"&$B49, 'External TFU-TDO'!$B:$B, \"<\"&F$38, 'External TFU-TDO'!$B:$B, \">=\"&C$38)","v":0}]
[null,"Galley/gains",{"$f":"COUNTIFS('External TFU-TDO'!$P:$P,\"=\"&$B$5, 'External TFU-TDO'!$O:$O,\"=\"&$C$5, 'External TFU-TDO'!$L:$L,\"=\"&$G$5, 'External TFU-TDO'!$K:$K, \"=Galley/gains\")","v":19},{"$f":"COUNTIFS('External TFU-TDO'!$P:$P,\"=\"&$B$5, 'External TFU-TDO'!$O:$O,\"=\"&$F$5, 'External TFU-TDO'!$L:$L,\"=\"&$G$5, 'External TFU-TDO'!$K:$K, \"=\"&$B50)","v":6},{"$f":"COUNTIFS('External TFU-TDO'!$P:$P,\"=\"&$B$5, 'External TFU-TDO'!$O:$O,\"=\"&$C$5, 'External TFU-TDO'!$L:$L,\"=\"&$G$5, 'External TFU-TDO'!$K:$K, \"=\"&$B50, 'External TFU-TDO'!$B:$B, \"<\"&F$38, 'External TFU-TDO'!$B:$B, \">=\"&C$38)","v":0}]
[null,"Emergency Systems",{"$f":"COUNTIFS('External TFU-TDO'!$P:$P,\"=\"&$B$5, 'External TFU-TDO'!$O:$O,\"=\"&$C$5, 'External TFU-TDO'!$L:$L,\"=\"&$G$5, 'External TFU-TDO'!$K:$K, \"=Emergency Systems\")","v":2},{"$f":"COUNTIFS('External TFU-TDO'!$P:$P,\"=\"&$B$5, 'External TFU-TDO'!$O:$O,\"=\"&$F$5, 'External TFU-TDO'!$L:$L,\"=\"&$G$5, 'External TFU-TDO'!$K:$K, \"=\"&$B51)","v":0},{"$f":"COUNTIFS('External TFU-TDO'!$P:$P,\"=\"&$B$5, 'External TFU-TDO'!$O:$O,\"=\"&$C$5, 'External TFU-TDO'!$L:$L,\"=\"&$G$5, 'External TFU-TDO'!$K:$K, \"=\"&$B51, 'External TFU-TDO'!$B:$B, \"<\"&F$38, 'External TFU-TDO'!$B:$B, \">=\"&C$38)","v":0}]
[null,"Cockpit",{"$f":"COUNTIFS('External TFU-TDO'!$P:$P,\"=\"&$B$5, 'External TFU-TDO'!$O:$O,\"=\"&$C$5, 'External TFU-TDO'!$L:$L,\"=\"&$G$5, 'External TFU-TDO'!$K:$K, \"=Cockpit\")","v":4},{"$f":"COUNTIFS('External TFU-TDO'!$P:$P,\"=\"&$B$5, 'External TFU-TDO'!$O:$O,\"=\"&$F$5, 'External TFU-TDO'!$L:$L,\"=\"&$G$5, 'External TFU-TDO'!$K:$K, \"=\"&$B52)","v":0},{"$f":"COUNTIFS('External TFU-TDO'!$P:$P,\"=\"&$B$5, 'External TFU-TDO'!$O:$O,\"=\"&$C$5, 'External TFU-TDO'!$L:$L,\"=\"&$G$5, 'External TFU-TDO'!$K:$K,\"=\"&$B52, 'External TFU-TDO'!$B:$B, \"<\"&F$38, 'External TFU-TDO'!$B:$B, \">=\"&C$38)","v":0}]
[null,"CIDS",{"$f":"COUNTIFS('External TFU-TDO'!$P:$P,\"=\"&$B$5, 'External TFU-TDO'!$O:$O,\"=\"&$C$5, 'External TFU-TDO'!$L:$L,\"=\"&$G$5, 'External TFU-TDO'!$K:$K, \"=CIDS\")","v":6},{"$f":"COUNTIFS('External TFU-TDO'!$P:$P,\"=\"&$B$5, 'External TFU-TDO'!$O:$O,\"=\"&$F$5, 'External TFU-TDO'!$L:$L,\"=\"&$G$5, 'External TFU-TDO'!$K:$K, \"=\"&$B53)","v":2},{"$f":"COUNTIFS('External TFU-TDO'!$P:$P,\"=\"&$B$5, 'External TFU-TDO'!$O:$O,\"=\"&$C$5, 'External TFU-TDO'!$L:$L,\"=\"&$G$5, 'External TFU-TDO'!$K:$K, \"=CIDS\", 'External TFU-TDO'!$B:$B, \"<\"&F$38, 'External TFU-TDO'!$B:$B, \">=\"&C$38)","v":0}]
[null,"Cargo",{"$f":"COUNTIFS('External TFU-TDO'!$P:$P,\"=\"&$B$5, 'External TFU-TDO'!$O:$O,\"=\"&$C$5, 'External TFU-TDO'!$L:$L,\"=\"&$G$5, 'External TFU-TDO'!$K:$K, \"=Cargo\")","v":3},{"$f":"COUNTIFS('External TFU-TDO'!$P:$P,\"=\"&$B$5, 'External TFU-TDO'!$O:$O,\"=\"&$F$5, 'External TFU-TDO'!$L:$L,\"=\"&$G$5, 'External TFU-TDO'!$K:$K, \"=\"&$B54)","v":0},{"$f":"COUNTIFS('External TFU-TDO'!$P:$P,\"=\"&$B$5, 'External TFU-TDO'!$O:$O,\"=\"&$C$5, 'External TFU-TDO'!$L:$L,\"=\"&$G$5, 'External TFU-TDO'!$K:$K,\"=\"&$B54, 'External TFU-TDO'!$B:$B, \"<\"&F$38, 'External TFU-TDO'!$B:$B, \">=\"&C$38)","v":0}]
[null,"Cabin & crew rest",{"$f":"COUNTIFS('External TFU-TDO'!$P:$P,\"=\"&$B$5, 'External TFU-TDO'!$O:$O,\"=\"&$C$5, 'External TFU-TDO'!$L:$L,\"=\"&$G$5, 'External TFU-TDO'!$K:$K, \"=Cabin & crew rest\")","v":9},{"$f":"COUNTIFS('External TFU-TDO'!$P:$P,\"=\"&$B$5, 'External TFU-TDO'!$O:$O,\"=\"&$F$5, 'External TFU-TDO'!$L:$L,\"=\"&$G$5, 'External TFU-TDO'!$K:$K, \"=\"&$B55)","v":2},{"$f":"COUNTIFS('External TFU-TDO'!$P:$P,\"=\"&$B$5, 'External TFU-TDO'!$O:$O,\"=\"&$C$5, 'External TFU-TDO'!$L:$L,\"=\"&$G$5, 'External TFU-TDO'!$K:$K, \"=\"&$B55, 'External TFU-TDO'!$B:$B, \"<\"&F$38, 'External TFU-TDO'!$B:$B, \">=\"&C$38)","v":0}]
[]
[]
["(Frozen values)",null,{"$f":"C14","v":"2017-03-01"},null,null,{"$f":"EDATE(C58,1)","v":"2017-04-01"},null,null,{"$f":"EDATE(F58,1)","v":"2017-05-01"},null,null,{"$f":"EDATE(I58,1)","v":"2017-06-01"},null,null,{"$f":"EDATE(L58,1)","v":"2017-07-01"},null,null,{"$f":"EDATE(O58,1)","v":"2017-08-01"},null,null,{"$f":"EDATE(R58,1)","v":"2017-09-01"},null,null,{"$f":"EDATE(U58,1)","v":"2017-10-01"},null,null,{"$f":"EDATE(X58,1)","v":"2017-11-01"},null,null,{"$f":"EDATE(AA58,1)","v":"2017-12-01"},null,null,{"$f":"EDATE(AD58,1)","v":"2018-01-01"},null,null,{"$f":"EDATE(AG58,1)","v":"2018-02-01"},null,null,{"$f":"EDATE(AJ58,1)","v":"2018-03-01"},null,null,{"$f":"EDATE(AM58,1)","v":"2018-04-01"},null,null,{"$f":"EDATE(AP58,1)","v":"2018-05-01"}]
[null,null,"Open TFU","Closed TFU","New TFU","Open TFU","Closed TFU","New TFU","Open TFU","Closed TFU","New TFU","Open TFU","Closed TFU","New TFU","Open TFU","Closed TFU","New TFU","Open TFU","Closed TFU","New TFU","Open TFU","Closed TFU","New TFU","Open TFU","Closed TFU","New TFU","Open TFU","Closed TFU","New TFU","Open TFU","Closed TFU","New TFU","Open TFU","Closed TFU","New TFU","Open TFU","Closed TFU","New TFU","Open TFU","Closed TFU","New TFU","Open TFU","Closed TFU","New TFU","Open TFU","Closed TFU","New TFU"]
[null,"Water & Waste",5,1,0,5,1,0]
[null,"Smoke Detection",3,1,0,3,1,0]
[null,"Seats",1,0,0,1,0,0]
[null,"SCS",3,0,0,3,0,0]
[null,"Pax Door",1,0,0,1,0,0]
[null,"Oxygen",3,0,0,3,0,0]
[null,"Lights + Lights (Emer)",4,1,0,4,1,0]
[null,"Lavatories",16,0,0,16,0,0]
[null,"IFE",1,1,0,1,1,0]
[null,"Heating",2,1,0,2,1,0]
[null,"Galley/gains",19,6,0,19,6,0]
[null,"Emergency Systems",2,0,0,2,0,0]
[null,"Cockpit",3,0,0,3,0,0]
[null,"CIDS",7,2,1,6,2,0]
[null,"Cargo",3,0,0,3,0,0]
[null,"Cabin & crew rest",9,2,2,9,2,0]

{"sheet":"TFU solution planning","index":7,"n_rows":23,"n_cols":45,"rows_kept":23,"cut":false,"hidden":false,"merged":[[17,41,17,43],[18,41,18,43],[19,41,19,43],[20,41,20,43],[21,41,21,43],[22,41,22,43],[17,44,17,46],[18,44,18,46],[19,44,19,46],[20,44,20,46],[21,44,21,46],[22,44,22,46],[22,35,22,37],[21,35,21,37],[20,35,20,37],[19,35,19,37],[18,35,18,37],[17,35,17,37],[17,38,17,40],[18,38,18,40],[19,38,19,40],[20,38,20,40],[21,38,21,40],[22,38,22,40],[22,2,22,4],[22,5,22,7],[16,8,16,10],[16,11,16,13],[16,14,16,16],[16,17,16,19],[21,8,21,10],[22,11,22,13],[21,11,21,13],[20,11,20,13],[19,2,19,4],[19,5,19,7],[20,2,20,4],[20,5,20,7],[21,2,21,4],[21,5,21,7],[16,2,16,4],[16,5,16,7],[17,2,17,4],[17,5,17,7],[18,2,18,4],[18,5,18,7],[17,8,17,10],[18,8,18,10],[16,38,16,40],[16,41,16,43],[16,44,16,46],[16,20,16,22],[16,23,16,25],[16,26,16,28],[16,29,16,31],[16,32,16,34],[16,35,16,37],[19,8,19,10],[20,8,20,10],[22,8,22,10],[17,32,17,34],[18,32,18,34],[19,32,19,34],[20,32,20,34],[21,32,21,34],[22,32,22,34],[17,17,17,19],[18,17,18,19],[19,17,19,19],[20,17,20,19],[21,17,21,19],[22,17,22,19],[19,11,19,13],[17,11,17,13],[18,11,18,13],[17,14,17,16],[18,14,18,16],[22,14,22,16],[21,14,21,16],[20,14,20,16],[19,14,19,16],[17,23,17,25],[18,23,18,25],[19,23,19,25],[22,23,22,25],[21,23,21,25],[20,23,20,25],[17,20,17,22],[18,20,18,22],[19,20,19,22],[20,20,20,22],[21,20,21,22],[22,20,22,22],[22,29,22,31],[17,29,17,31],[18,29,18,31],[19,29,19,31],[20,29,20,31],[21,29,21,31],[17,26,17,28],[18,26,18,28],[19,26,19,28],[20,26,20,28],[21,26,21,28],[22,26,22,28],[6,2,6,4],[7,2,7,4],[7,5,7,7],[8,2,8,4],[8,5,8,7],[9,2,9,4],[9,5,9,7],[10,2,10,4],[11,2,11,4],[10,5,10,7],[7,8,7,10],[8,8,8,10],[9,8,9,10],[10,8,10,10],[11,8,11,10],[12,8,12,10],[13,8,13,10],[12,2,12,4],[13,2,13,4],[11,5,11,7],[12,5,12,7],[13,5,13,7]]}
[{"$f":"TODAY()","v":"2017-07-04"},null,"Last available date:",null,null,{"$f":"MAX('External TFU-TDO'!A:A)","v":"2017-06-07"},{"$f":"MONTH($F$1)","v":6},null,{"$f":"YEAR($F$1)","v":2017}]
[null,null,null,null,null,{"$f":"F1-DAY(F1)+1","v":"2017-06-01"}]
["CABIN TFU SOLUTION PLANNING:"]
[]
[null,"External","TFU"]
[]
[null,null,"CURRENT MONTH"]
[null,null,{"$f":"F2","v":"2017-06-01"},null,null,{"$f":"EDATE(C8,1)","v":"2017-07-01"},null,null,{"$f":"EDATE(F8,1)","v":"2017-08-01"}]
[null,"Q1 2017",{"$f":"COUNTIFS('External TFU-TDO'!$P:$P, \"=\" &'TFU solution planning'!$B$5, 'External TFU-TDO'!$L:$L, \"=\" & 'TFU solution planning'!$C$5, 'External TFU-TDO'!$D:$D, \"=\" &'TFU solution planning'!$B9)","v":3}]
[null,"Q2 2017",{"$f":"COUNTIFS('External TFU-TDO'!$P:$P, \"=\" &'TFU solution planning'!$B$5, 'External TFU-TDO'!$L:$L, \"=\" & 'TFU solution planning'!$C$5, 'External TFU-TDO'!$D:$D, \"=\" &'TFU solution planning'!$B10)","v":7}]
[null,"Q3 2017",{"$f":"COUNTIFS('External TFU-TDO'!$P:$P, \"=\" &'TFU solution planning'!$B$5, 'External TFU-TDO'!$L:$L, \"=\" & 'TFU solution planning'!$C$5, 'External TFU-TDO'!$D:$D, \"=\" &'TFU solution planning'!$B11)","v":1}]
[null,"Q4 2017",{"$f":"COUNTIFS('External TFU-TDO'!$P:$P, \"=\" &'TFU solution planning'!$B$5, 'External TFU-TDO'!$L:$L, \"=\" & 'TFU solution planning'!$C$5, 'External TFU-TDO'!$D:$D, \"=\" &'TFU solution planning'!$B12)","v":1}]
[null,"Available",{"$f":"COUNTIFS('External TFU-TDO'!$P:$P, \"=\" &'TFU solution planning'!$B$5, 'External TFU-TDO'!$L:$L, \"=\" & 'TFU solution planning'!$C$5, 'External TFU-TDO'!$D:$D, \"=\" &'TFU solution planning'!$B13)","v":3}]
[null,"Fix under development",{"$f":"COUNTIFS('External TFU-TDO'!$P:$P, \"=\" &'TFU solution planning'!$B$5, 'External TFU-TDO'!$L:$L, \"=\" & 'TFU solution planning'!$C$5, 'External TFU-TDO'!$D:$D, \"=\" &'TFU solution planning'!$B14)","v":6}]
[]
[]
["(Frozen values)",null,"2017-03-01",null,null,"2017-04-01",null,null,"2017-05-01",null,null,"2017-06-01",null,null,"2017-07-01",null,null,"2017-08-01",null,null,"2017-09-01",null,null,"2017-10-01",null,null,"2017-11-01",null,null,"2017-12-01",null,null,"2018-01-01",null,null,"2018-02-01",null,null,"2018-03-01",null,null,"2018-04-01",null,null,"2018-05-01"]
[null,"Q1 2017",3,null,null,3]
[null,"Q2 2017",6,null,null,7]
[null,"Q3 2017",1,null,null,1]
[null,"Q4 2017",0,null,null,1]
[null,"Available",1,null,null,3]
[null,"Fix under development",6,null,null,6]

{"sheet":"Cabin Top 20 (TFU and 4box)","index":8,"n_rows":17,"n_cols":9,"rows_kept":17,"cut":false,"hidden":false,"merged":[]}
[{"$f":"TODAY()","v":"2017-07-04"},null,"Last available date:",null,null,{"$f":"MAX('External TFU-TDO'!A:A)","v":"2017-06-07"},{"$f":"MONTH($F$1)","v":6},null,{"$f":"YEAR($F$1)","v":2017}]
[null,null,null,null,null,{"$f":"F1-DAY(F1)+1","v":"2017-06-01"}]
["CABIN TOP 20"]
[]
[null,"External","TFU","P","No"]
[]
[null,null,"Current month","=",{"$f":"F2","v":"2017-06-01"}]
[null,null,"Q1 2017","Q2 2017","Q3 2017","Q4 2017","Available","Fix under development","Closed TFU"]
[null,"QTR (TFU)",{"$f":"COUNTIFS('External TFU-TDO'!$P:$P, \"=\"&$B$5, 'External TFU-TDO'!$C:$C, \">=3\", 'External TFU-TDO'!$Q:$Q, \"=\"&$D$5, 'External TFU-TDO'!$L:$L, \"=\"&$C$5, 'External TFU-TDO'!$D:$D,\"=\"&C$8)","v":0},{"$f":"COUNTIFS('External TFU-TDO'!$P:$P, \"=\"&$B$5, 'External TFU-TDO'!$C:$C, \">=3\", 'External TFU-TDO'!$Q:$Q, \"=\"&$D$5, 'External TFU-TDO'!$L:$L, \"=\"&$C$5, 'External TFU-TDO'!$D:$D,\"=\"&D$8)","v":2},{"$f":"COUNTIFS('External TFU-TDO'!$P:$P, \"=\"&$B$5, 'External TFU-TDO'!$C:$C, \">=3\", 'External TFU-TDO'!$Q:$Q, \"=\"&$D$5, 'External TFU-TDO'!$L:$L, \"=\"&$C$5, 'External TFU-TDO'!$D:$D,\"=\"&E$8)","v":0},{"$f":"COUNTIFS('External TFU-TDO'!$P:$P, \"=\"&$B$5, 'External TFU-TDO'!$C:$C, \">=3\", 'External TFU-TDO'!$Q:$Q, \"=\"&$D$5, 'External TFU-TDO'!$L:$L, \"=\"&$C$5, 'External TFU-TDO'!$D:$D,\"=\"&F$8)","v":0},{"$f":"COUNTIFS('External TFU-TDO'!$P:$P, \"=\"&$B$5, 'External TFU-TDO'!$C:$C, \">=3\", 'External TFU-TDO'!$Q:$Q, \"=\"&$D$5, 'External TFU-TDO'!$L:$L, \"=\"&$C$5, 'External TFU-TDO'!$D:$D,\"=\"&G$8)","v":0},{"$f":"COUNTIFS('External TFU-TDO'!$P:$P, \"=\"&$B$5, 'External TFU-TDO'!$C:$C, \">=3\", 'External TFU-TDO'!$Q:$Q, \"=\"&$D$5, 'External TFU-TDO'!$L:$L, \"=\"&$C$5, 'External TFU-TDO'!$D:$D,\"=\"&H$8)","v":2},{"$f":"-COUNTIFS('External TFU-TDO'!$P:$P, \"=\"&$B$5, 'External TFU-TDO'!$C:$C, \">=3\", 'External TFU-TDO'!$Q:$Q, \"=\"&$D$5, 'External TFU-TDO'!$L:$L, \"=\"&$C$5, 'External TFU-TDO'!$O:$O,\"=Closed\")","v":-1}]
[null,"QTR (no TFU)",{"$f":"COUNTIFS('External TFU-TDO'!$P:$P, \"=\"&$B$5, 'External TFU-TDO'!$C:$C, \">=3\", 'External TFU-TDO'!$Q:$Q, \"=\"&$D$5, 'External TFU-TDO'!$L:$L, \"=\"&$E$5, 'External TFU-TDO'!$D:$D,\"=\"&C$8)","v":0},{"$f":"COUNTIFS('External TFU-TDO'!$P:$P, \"=\"&$B$5, 'External TFU-TDO'!$C:$C, \">=3\", 'External TFU-TDO'!$Q:$Q, \"=\"&$D$5, 'External TFU-TDO'!$L:$L, \"=\"&$E$5, 'External TFU-TDO'!$D:$D,\"=\"&D$8)","v":0},{"$f":"COUNTIFS('External TFU-TDO'!$P:$P, \"=\"&$B$5, 'External TFU-TDO'!$C:$C, \">=3\", 'External TFU-TDO'!$Q:$Q, \"=\"&$D$5, 'External TFU-TDO'!$L:$L, \"=\"&$E$5, 'External TFU-TDO'!$D:$D,\"=\"&E$8)","v":0},{"$f":"COUNTIFS('External TFU-TDO'!$P:$P, \"=\"&$B$5, 'External TFU-TDO'!$C:$C, \">=3\", 'External TFU-TDO'!$Q:$Q, \"=\"&$D$5, 'External TFU-TDO'!$L:$L, \"=\"&$E$5, 'External TFU-TDO'!$D:$D,\"=\"&F$8)","v":0},{"$f":"COUNTIFS('External TFU-TDO'!$P:$P, \"=\"&$B$5, 'External TFU-TDO'!$C:$C, \">=3\", 'External TFU-TDO'!$Q:$Q, \"=\"&$D$5, 'External TFU-TDO'!$L:$L, \"=\"&$E$5, 'External TFU-TDO'!$D:$D,\"=\"&G$8)","v":0},{"$f":"COUNTIFS('External TFU-TDO'!$P:$P, \"=\"&$B$5, 'External TFU-TDO'!$C:$C, \">=3\", 'External TFU-TDO'!$Q:$Q, \"=\"&$D$5, 'External TFU-TDO'!$L:$L, \"=\"&$E$5, 'External TFU-TDO'!$D:$D,\"=\"&H$8)","v":0},"/"]
[null,"SIA (TFU)",{"$f":"COUNTIFS('External TFU-TDO'!$P:$P, \"=\"&$B$5, 'External TFU-TDO'!$C:$C, \">=3\", 'External TFU-TDO'!$U:$U, \"=\"&$D$5, 'External TFU-TDO'!$L:$L, \"=\"&$C$5, 'External TFU-TDO'!$D:$D,\"=\"&C$8)","v":0},{"$f":"COUNTIFS('External TFU-TDO'!$P:$P, \"=\"&$B$5, 'External TFU-TDO'!$C:$C, \">=3\", 'External TFU-TDO'!$U:$U, \"=\"&$D$5, 'External TFU-TDO'!$L:$L, \"=\"&$C$5, 'External TFU-TDO'!$D:$D,\"=\"&D$8)","v":3},{"$f":"COUNTIFS('External TFU-TDO'!$P:$P, \"=\"&$B$5, 'External TFU-TDO'!$C:$C, \">=3\", 'External TFU-TDO'!$U:$U, \"=\"&$D$5, 'External TFU-TDO'!$L:$L, \"=\"&$C$5, 'External TFU-TDO'!$D:$D,\"=\"&E$8)","v":0},{"$f":"COUNTIFS('External TFU-TDO'!$P:$P, \"=\"&$B$5, 'External TFU-TDO'!$C:$C, \">=3\", 'External TFU-TDO'!$U:$U, \"=\"&$D$5, 'External TFU-TDO'!$L:$L, \"=\"&$C$5, 'External TFU-TDO'!$D:$D,\"=\"&F$8)","v":0},{"$f":"COUNTIFS('External TFU-TDO'!$P:$P, \"=\"&$B$5, 'External TFU-TDO'!$C:$C, \">=3\", 'External TFU-TDO'!$U:$U, \"=\"&$D$5, 'External TFU-TDO'!$L:$L, \"=\"&$C$5, 'External TFU-TDO'!$D:$D,\"=\"&G$8)","v":0},{"$f":"COUNTIFS('External TFU-TDO'!$P:$P, \"=\"&$B$5, 'External TFU-TDO'!$C:$C, \">=3\", 'External TFU-TDO'!$U:$U, \"=\"&$D$5, 'External TFU-TDO'!$L:$L, \"=\"&$C$5, 'External TFU-TDO'!$D:$D,\"=\"&H$8)","v":1},{"$f":"-COUNTIFS('External TFU-TDO'!$P:$P, \"=\"&$B$5, 'External TFU-TDO'!$C:$C, \">=3\", 'External TFU-TDO'!$U:$U, \"=\"&$D$5, 'External TFU-TDO'!$L:$L, \"=\"&$C$5, 'External TFU-TDO'!$O:$O,\"=Closed\")","v":-1}]
[null,"SIA (no TFU)",{"$f":"COUNTIFS('External TFU-TDO'!$P:$P, \"=\"&$B$5, 'External TFU-TDO'!$C:$C, \">=3\", 'External TFU-TDO'!$U:$U, \"=\"&$D$5, 'External TFU-TDO'!$L:$L, \"=\"&$E$5, 'External TFU-TDO'!$D:$D,\"=\"&C$8)","v":0},{"$f":"COUNTIFS('External TFU-TDO'!$P:$P, \"=\"&$B$5, 'External TFU-TDO'!$C:$C, \">=3\", 'External TFU-TDO'!$U:$U, \"=\"&$D$5, 'External TFU-TDO'!$L:$L, \"=\"&$E$5, 'External TFU-TDO'!$D:$D,\"=\"&D$8)","v":0},{"$f":"COUNTIFS('External TFU-TDO'!$P:$P, \"=\"&$B$5, 'External TFU-TDO'!$C:$C, \">=3\", 'External TFU-TDO'!$U:$U, \"=\"&$D$5, 'External TFU-TDO'!$L:$L, \"=\"&$E$5, 'External TFU-TDO'!$D:$D,\"=\"&E$8)","v":0},{"$f":"COUNTIFS('External TFU-TDO'!$P:$P, \"=\"&$B$5, 'External TFU-TDO'!$C:$C, \">=3\", 'External TFU-TDO'!$U:$U, \"=\"&$D$5, 'External TFU-TDO'!$L:$L, \"=\"&$E$5, 'External TFU-TDO'!$D:$D,\"=\"&F$8)","v":0},{"$f":"COUNTIFS('External TFU-TDO'!$P:$P, \"=\"&$B$5, 'External TFU-TDO'!$C:$C, \">=3\", 'External TFU-TDO'!$U:$U, \"=\"&$D$5, 'External TFU-TDO'!$L:$L, \"=\"&$E$5, 'External TFU-TDO'!$D:$D,\"=\"&G$8)","v":0},{"$f":"COUNTIFS('External TFU-TDO'!$P:$P, \"=\"&$B$5, 'External TFU-TDO'!$C:$C, \">=3\", 'External TFU-TDO'!$U:$U, \"=\"&$D$5, 'External TFU-TDO'!$L:$L, \"=\"&$E$5, 'External TFU-TDO'!$D:$D,\"=\"&H$8)","v":0},"/"]
[null,"FIN (TFU)",{"$f":"COUNTIFS('External TFU-TDO'!$P:$P, \"=\"&$B$5, 'External TFU-TDO'!$C:$C, \">=3\", 'External TFU-TDO'!$S:$S, \"=\"&$D$5, 'External TFU-TDO'!$L:$L, \"=\"&$C$5, 'External TFU-TDO'!$D:$D,\"=\"&C$8)","v":0},{"$f":"COUNTIFS('External TFU-TDO'!$P:$P, \"=\"&$B$5, 'External TFU-TDO'!$C:$C, \">=3\", 'External TFU-TDO'!$S:$S, \"=\"&$D$5, 'External TFU-TDO'!$L:$L, \"=\"&$C$5, 'External TFU-TDO'!$D:$D,\"=\"&D$8)","v":2},{"$f":"COUNTIFS('External TFU-TDO'!$P:$P, \"=\"&$B$5, 'External TFU-TDO'!$C:$C, \">=3\", 'External TFU-TDO'!$S:$S, \"=\"&$D$5, 'External TFU-TDO'!$L:$L, \"=\"&$C$5, 'External TFU-TDO'!$D:$D,\"=\"&E$8)","v":0},{"$f":"COUNTIFS('External TFU-TDO'!$P:$P, \"=\"&$B$5, 'External TFU-TDO'!$C:$C, \">=3\", 'External TFU-TDO'!$S:$S, \"=\"&$D$5, 'External TFU-TDO'!$L:$L, \"=\"&$C$5, 'External TFU-TDO'!$D:$D,\"=\"&F$8)","v":0},{"$f":"COUNTIFS('External TFU-TDO'!$P:$P, \"=\"&$B$5, 'External TFU-TDO'!$C:$C, \">=3\", 'External TFU-TDO'!$S:$S, \"=\"&$D$5, 'External TFU-TDO'!$L:$L, \"=\"&$C$5, 'External TFU-TDO'!$D:$D,\"=\"&G$8)","v":0},{"$f":"COUNTIFS('External TFU-TDO'!$P:$P, \"=\"&$B$5, 'External TFU-TDO'!$C:$C, \">=3\", 'External TFU-TDO'!$S:$S, \"=\"&$D$5, 'External TFU-TDO'!$L:$L, \"=\"&$C$5, 'External TFU-TDO'!$D:$D,\"=\"&H$8)","v":2},{"$f":"-COUNTIFS('External TFU-TDO'!$P:$P, \"=\"&$B$5, 'External TFU-TDO'!$C:$C, \">=3\", 'External TFU-TDO'!$S:$S, \"=\"&$D$5, 'External TFU-TDO'!$L:$L, \"=\"&$C$5, 'External TFU-TDO'!$O:$O,\"=Closed\")","v":0}]
[null,"FIN (no TFU)",{"$f":"COUNTIFS('External TFU-TDO'!$P:$P, \"=\"&$B$5, 'External TFU-TDO'!$C:$C, \">=3\", 'External TFU-TDO'!$S:$S, \"=\"&$D$5, 'External TFU-TDO'!$L:$L, \"=\"&$E$5, 'External TFU-TDO'!$D:$D,\"=\"&C$8)","v":0},{"$f":"COUNTIFS('External TFU-TDO'!$P:$P, \"=\"&$B$5, 'External TFU-TDO'!$C:$C, \">=3\", 'External TFU-TDO'!$S:$S, \"=\"&$D$5, 'External TFU-TDO'!$L:$L, \"=\"&$E$5, 'External TFU-TDO'!$D:$D,\"=\"&D$8)","v":0},{"$f":"COUNTIFS('External TFU-TDO'!$P:$P, \"=\"&$B$5, 'External TFU-TDO'!$C:$C, \">=3\", 'External TFU-TDO'!$S:$S, \"=\"&$D$5, 'External TFU-TDO'!$L:$L, \"=\"&$E$5, 'External TFU-TDO'!$D:$D,\"=\"&E$8)","v":0},{"$f":"COUNTIFS('External TFU-TDO'!$P:$P, \"=\"&$B$5, 'External TFU-TDO'!$C:$C, \">=3\", 'External TFU-TDO'!$S:$S, \"=\"&$D$5, 'External TFU-TDO'!$L:$L, \"=\"&$E$5, 'External TFU-TDO'!$D:$D,\"=\"&F$8)","v":0},{"$f":"COUNTIFS('External TFU-TDO'!$P:$P, \"=\"&$B$5, 'External TFU-TDO'!$C:$C, \">=3\", 'External TFU-TDO'!$S:$S, \"=\"&$D$5, 'External TFU-TDO'!$L:$L, \"=\"&$E$5, 'External TFU-TDO'!$D:$D,\"=\"&G$8)","v":0},{"$f":"COUNTIFS('External TFU-TDO'!$P:$P, \"=\"&$B$5, 'External TFU-TDO'!$C:$C, \">=3\", 'External TFU-TDO'!$S:$S, \"=\"&$D$5, 'External TFU-TDO'!$L:$L, \"=\"&$E$5, 'External TFU-TDO'!$D:$D,\"=\"&H$8)","v":0},"/"]
[null,"CPA (TFU)",{"$f":"COUNTIFS('External TFU-TDO'!$P:$P, \"=\"&$B$5, 'External TFU-TDO'!$C:$C, \">=3\", 'External TFU-TDO'!$V:$V, \"=\"&$D$5, 'External TFU-TDO'!$L:$L, \"=\"&$C$5, 'External TFU-TDO'!$D:$D,\"=\"&C$8)","v":0},{"$f":"COUNTIFS('External TFU-TDO'!$P:$P, \"=\"&$B$5, 'External TFU-TDO'!$C:$C, \">=3\", 'External TFU-TDO'!$V:$V, \"=\"&$D$5, 'External TFU-TDO'!$L:$L, \"=\"&$C$5, 'External TFU-TDO'!$D:$D,\"=\"&D$8)","v":2},{"$f":"COUNTIFS('External TFU-TDO'!$P:$P, \"=\"&$B$5, 'External TFU-TDO'!$C:$C, \">=3\", 'External TFU-TDO'!$V:$V, \"=\"&$D$5, 'External TFU-TDO'!$L:$L, \"=\"&$C$5, 'External TFU-TDO'!$D:$D,\"=\"&E$8)","v":0},{"$f":"COUNTIFS('External TFU-TDO'!$P:$P, \"=\"&$B$5, 'External TFU-TDO'!$C:$C, \">=3\", 'External TFU-TDO'!$V:$V, \"=\"&$D$5, 'External TFU-TDO'!$L:$L, \"=\"&$C$5, 'External TFU-TDO'!$D:$D,\"=\"&F$8)","v":0},{"$f":"COUNTIFS('External TFU-TDO'!$P:$P, \"=\"&$B$5, 'External TFU-TDO'!$C:$C, \">=3\", 'External TFU-TDO'!$V:$V, \"=\"&$D$5, 'External TFU-TDO'!$L:$L, \"=\"&$C$5, 'External TFU-TDO'!$D:$D,\"=\"&G$8)","v":0},{"$f":"COUNTIFS('External TFU-TDO'!$P:$P, \"=\"&$B$5, 'External TFU-TDO'!$C:$C, \">=3\", 'External TFU-TDO'!$V:$V, \"=\"&$D$5, 'External TFU-TDO'!$L:$L, \"=\"&$C$5, 'External TFU-TDO'!$D:$D,\"=\"&H$8)","v":2},{"$f":"-COUNTIFS('External TFU-TDO'!$P:$P, \"=\"&$B$5, 'External TFU-TDO'!$C:$C, \">=3\", 'External TFU-TDO'!$V:$V, \"=\"&$D$5, 'External TFU-TDO'!$L:$L, \"=\"&$C$5, 'External TFU-TDO'!$O:$O,\"=Closed\")","v":-1}]
[null,"CPA (no TFU)",{"$f":"COUNTIFS('External TFU-TDO'!$P:$P, \"=\"&$B$5, 'External TFU-TDO'!$C:$C, \">=3\", 'External TFU-TDO'!$V:$V, \"=\"&$D$5, 'External TFU-TDO'!$L:$L, \"=\"&$E$5, 'External TFU-TDO'!$D:$D,\"=\"&C$8)","v":0},{"$f":"COUNTIFS('External TFU-TDO'!$P:$P, \"=\"&$B$5, 'External TFU-TDO'!$C:$C, \">=3\", 'External TFU-TDO'!$V:$V, \"=\"&$D$5, 'External TFU-TDO'!$L:$L, \"=\"&$E$5, 'External TFU-TDO'!$D:$D,\"=\"&D$8)","v":0},{"$f":"COUNTIFS('External TFU-TDO'!$P:$P, \"=\"&$B$5, 'External TFU-TDO'!$C:$C, \">=3\", 'External TFU-TDO'!$V:$V, \"=\"&$D$5, 'External TFU-TDO'!$L:$L, \"=\"&$E$5, 'External TFU-TDO'!$D:$D,\"=\"&E$8)","v":0},{"$f":"COUNTIFS('External TFU-TDO'!$P:$P, \"=\"&$B$5, 'External TFU-TDO'!$C:$C, \">=3\", 'External TFU-TDO'!$V:$V, \"=\"&$D$5, 'External TFU-TDO'!$L:$L, \"=\"&$E$5, 'External TFU-TDO'!$D:$D,\"=\"&F$8)","v":0},{"$f":"COUNTIFS('External TFU-TDO'!$P:$P, \"=\"&$B$5, 'External TFU-TDO'!$C:$C, \">=3\", 'External TFU-TDO'!$V:$V, \"=\"&$D$5, 'External TFU-TDO'!$L:$L, \"=\"&$E$5, 'External TFU-TDO'!$D:$D,\"=\"&G$8)","v":0},{"$f":"COUNTIFS('External TFU-TDO'!$P:$P, \"=\"&$B$5, 'External TFU-TDO'!$C:$C, \">=3\", 'External TFU-TDO'!$V:$V, \"=\"&$D$5, 'External TFU-TDO'!$L:$L, \"=\"&$E$5, 'External TFU-TDO'!$D:$D,\"=\"&H$8)","v":0},"/"]
[null,"A/L Top 20",{"$f":"COUNTIFS('External TFU-TDO'!$P:$P, \"=\"&$B$5, 'External TFU-TDO'!$C:$C, \">=3\", 'External TFU-TDO'!$L:$L, \"=\"&$C$5, 'External TFU-TDO'!$D:$D,\"=\"&C$8)","v":0},{"$f":"COUNTIFS('External TFU-TDO'!$P:$P, \"=\"&$B$5, 'External TFU-TDO'!$C:$C, \">=3\", 'External TFU-TDO'!$L:$L, \"=\"&$C$5, 'External TFU-TDO'!$D:$D,\"=\"&D$8)","v":4},{"$f":"COUNTIFS('External TFU-TDO'!$P:$P, \"=\"&$B$5, 'External TFU-TDO'!$C:$C, \">=3\", 'External TFU-TDO'!$L:$L, \"=\"&$C$5, 'External TFU-TDO'!$D:$D,\"=\"&E$8)","v":0},{"$f":"COUNTIFS('External TFU-TDO'!$P:$P, \"=\"&$B$5, 'External TFU-TDO'!$C:$C, \">=3\", 'External TFU-TDO'!$L:$L, \"=\"&$C$5, 'External TFU-TDO'!$D:$D,\"=\"&F$8)","v":0},{"$f":"COUNTIFS('External TFU-TDO'!$P:$P, \"=\"&$B$5, 'External TFU-TDO'!$C:$C, \">=3\", 'External TFU-TDO'!$L:$L, \"=\"&$C$5, 'External TFU-TDO'!$D:$D,\"=\"&G$8)","v":0},{"$f":"COUNTIFS('External TFU-TDO'!$P:$P, \"=\"&$B$5, 'External TFU-TDO'!$C:$C, \">=3\", 'External TFU-TDO'!$L:$L, \"=\"&$C$5, 'External TFU-TDO'!$D:$D,\"=\"&H$8)","v":3},{"$f":"-COUNTIFS('External TFU-TDO'!$P:$P, \"=\"&$B$5, 'External TFU-TDO'!$C:$C, \">=3\", 'External TFU-TDO'!$L:$L, \"=\"&$C$5, 'External TFU-TDO'!$D:$D,\"=\"&C$8)","v":0}]

{"sheet":"QTR","index":9,"n_rows":20,"n_cols":112,"rows_kept":20,"cut":false,"hidden":false,"merged":[]}
["ENGINEERING ISSUES:"]
[]
[null,"Water & Waste",null,null,null,null,null,null,"Smoke Detection",null,null,null,null,null,null,"Seats",null,null,null,null,null,null,"SCS",null,null,null,null,null,null,"Pax Door",null,null,null,null,null,null,"Oxygen",null,null,null,null,null,null,"Lights",null,null,null,null,null,null,"Lavatories",null,null,null,null,null,null,"IFE",null,null,null,null,null,null,"Heating",null,null,null,null,null,null,"Galley/gains",null,null,null,null,null,null,"Emergency Systems",null,null,null,null,null,null,"Cockpit",null,null,null,null,null,null,"CIDS",null,null,null,null,null,null,"Cargo",null,null,null,null,null,null,"Cabin & crew rest"]
[null,"Doc.","Title","Reference","PoE","Solution","Monitored retrofit",null,"Doc.","Title","Reference","PoE","Solution","Monitored retrofit",null,"Doc.","Title","Reference","PoE","Solution","Monitored retrofit",null,"Doc.","Title","Reference","PoE","Solution","Monitored retrofit",null,"Doc.","Title","Reference","PoE","Solution","Monitored retrofit",null,"Doc.","Title","Reference","PoE","Solution","Monitored retrofit",null,"Doc.","Title","Reference","PoE","Solution","Monitored retrofit",null,"Doc.","Title","Reference","PoE","Solution","Monitored retrofit",null,"Doc.","Title","Reference","PoE","Solution","Monitored retrofit",null,"Doc.","Title","Reference","PoE","Solution","Monitored retrofit",null,"Doc.","Title","Reference","PoE","Solution","Monitored retrofit",null,"Doc.","Title","Reference","PoE","Solution","Monitored retrofit",null,"Doc.","Title","Reference","PoE","Solution","Monitored retrofit",null,"Doc.","Title","Reference","PoE","Solution","Monitored retrofit",null,"Doc.","Title","Reference","PoE","Solution","Monitored retrofit",null,"Doc.","Title","Reference","PoE","Solution","Monitored retrofit"]
[null,"TFU","Potable water pump","38.12.00.010","MSN65",null,null,null,"TFU","SMOKE DETECTOR PRE-CONTAMINATION ALERT","26.10.00.020","MSN109","SB","Yes",null,"TFU","Cfgfggf sfdfdf rgggfgf/dhhghf issue ","25.11.00.029","MSN63 / 104","SB","No",null,"TFU","VCRU Compressor Winding Short fault","21.59.00.029",null,null,null,null,"TFU","DOOR INDICATION PANEL (DIP) - LED FAILURE","52.71.00.026","MSN19",null,null,null,"TFU","Passenger Oxygen Containers inadvertent opening during operation","35.20.00.020","TBD","TBD","No",null,"TFU","Illumination Device (ILD) loading & system configuration deviation","33.20.00.001",null,null,null,null,"TFU","Thermostat Unit Control device","25.40.00.047","MSN94","VSB",null,null,"TFU","Temperature Limitation at 0°C for Panasonic IFE Equipment","44.20.00.003","MSN18","VSB","No",null,"TFU","Heated Floor Panel (HFP) overheating","25.27.00.009",null,null,null,null,"TFU","Galley - Vent Valve Water Leakage","25.30.00.012","MSN24","VSB","No",null,"TFU","ENGINE FIRE DETECTION ISSUES","26.12.00.055",null,"VSB & SB",null,null,"TFU","No cggfdfd in cgfgfdg","52.51.00.015","TBD","TBD","TBD",null,"TFU","Entry Into Service CIDS Deviations","44.11.00.012","MSN26","SB","Yes",null,"TFU","PDU INOPERATIVE DUE TO MECHANICAL FAILURE","50.23.00.007","MSN 28","VSIL","No",null,"TFU","OverHead Stowage Compartment in conical area/ Plastic Ring Broken","25.24.00.017","MSN21","SB","Yes"]
[null,"TFU","Waste Tank indication not correct","38.30.00.012","MSN28",null,null,null,"TFU","gg hhh rerrs ","26.10.00.021","MSN64","SB","No",null,null,null,null,null,null,null,null,"TFU","RACA -00 Potentially Reduced Reliability","21.59.00.018",null,null,null,null,null,null,null,null,null,null,null,"TFU","Crew Oxygen Cylinder Regulator loose Filter Retainer","35.10.00.015","MSN109 TBC","VSB TBD","No",null,"TFU","LOSS OF LAVATORY ILLUMINATION (Lights \"OFF\")","33.20.00.004","MSN109","SB","Yes",null,"TFU","Toilet shrouds broken brackets","25.40.00.049","MSN44","VSB",null,null,"TFU","IFE POWER LOSS - AUTO RESET DURING FLIGHT","44.20.00.004",null,null,null,null,null,null,null,null,null,null,null,"TFU","Tri-mode refrigerator PN 600-6-02-00 issues","25.36.00.004","UNK","VSB","No",null,"TFU","Slide girt retainer flap detachment","25.62.00.041","MSN29",null,null,null,"TFU","DDD)","52.51.00.013","MSN 159","SB + VSB","Yes",null,"TFU","CIDS - IFE INTERFACE ISSUES","44.11.00.015","MSN26","SB","Yes",null,"TFU","fdghhhgg jhfgjjhhgf hfjh","50.23.00.006","MSN 124\n","SB","Yes",null,"TFU","CCRC         ","25.23.00.019","TBD","TBD","TBD"]
[null,"TFU","Waste valve actuation unit damaged","38.30.00.014","MSN50",null,null,null,"TFU","S/D PMC21_Series \"humidity out of range\" failure","26.10.00.026","MSN25","VSB","No",null,null,null,null,null,null,null,null,"TFU","CDM -00 Potentially Reduced Reliability","21.59.00.019",null,null,null,null,null,null,null,null,null,null,null,null,null,null,null,null,null,null,"TFU","EPSU SYSTEM CONFIGURATION REPORTING ISSUE","33.51.00.019","MSN109","SB","Yes",null,"TFU","Nonfunctioning LOS microswitch","25.40.00.058","MSN28","VSB",null,null,null,null,null,null,null,null,null,null,null,null,null,null,null,null,"TFU","Zodiac Trash Compactor issues","25.36.00.008","TBD","TBD","TBD",null,null,null,null,null,null,null,null,null,null,null,null,null,null,null,"TFU","CIDS OBRM DATA INTEGRITY","44.11.00.013","MSN109","SB","Yes",null,"TFU","Collapsible ceiling panels - Missing fasteners/washers","50.13.00.001",null,null,null,null,"TFU","OHSC Bushing Housing","25.24.00.023"]
[null,"TFU","Low waste vacuum on ground","38.31.00.038",null,null,null,null,"TFU","DUCT SMOKE DETECTOR - FAULTY LOW FLOW DETECTION","26.18.00.003","MSN42","SB","No",null,null,null,null,null,null,null,null,"TFU","FAP - SCS Page - 'Automatic Power Saving Active' wrongly displayed","21.59.00.031",null,null,null,null,null,null,null,null,null,null,null,null,null,null,null,null,null,null,"TFU","EMERGENCY EXIT SIGNS \"ON\" DURING FLIGHT","33.51.00.020",null,null,null,null,"TFU","Broken OCCUPIED/VACANT sign","25.40.00.060","MSN26","VSB",null,null,null,null,null,null,null,null,null,null,null,null,null,null,null,null,"TFU","SEAL BETWEEN THE CCRC AND THE AFT GALLEY","25.30.00.041","MSN046",null,"FOC-MON ALL",null,null,null,null,null,null,null,null,null,null,null,null,null,null,null,"TFU","fggf htytr","44.11.00.017",null,null,null,null,null,null,null,null,null,null,null,"TFU","Compartment gjhgj ","25.24.00.022","TBD","TBD","TBD"]
[null,"TFU","Overboard vent line waste traces","38.30.00.013",null,null,null,null,null,null,null,null,null,null,null,null,null,null,null,null,null,null,null,null,null,null,null,null,null,null,null,null,null,null,null,null,null,null,null,null,null,null,null,null,null,null,null,null,null,null,"TFU","Lavatory flush switch","25.40.00.059","MSN24","VSB",null,null,null,null,null,null,null,null,null,null,null,null,null,null,null,null,"TFU","B/E Aerospace GAINS CAN Bus disturbance","25.36.00.007","TBD","TBD","TBD",null,null,null,null,null,null,null,null,null,null,null,null,null,null,null,"TFU","FAP Set-up page: Loss of CF-Card mounted status","44.11.00.018",null,null,null,null,null,null,null,null,null,null,null,"TFU","DAMPER BRACKET SNATCHED FROM BIN SIDEWALL","25.24.00.024","MSN102","VSB","Yes"]
[null,"TFU","Residual Disinfectant in GAINS","38.10.00.016","N/A","AMM update","N/A",null,null,null,null,null,null,null,null,null,null,null,null,null,null,null,null,null,null,null,null,null,null,null,null,null,null,null,null,null,null,null,null,null,null,null,null,null,null,null,null,null,null,null,"TFU","Lavatory Mirror damaged","25.40.00.061","MSN61","VSB",null,null,null,null,null,null,null,null,null,null,null,null,null,null,null,null,"TFU","Espresso makers 4670-0001 series high removal rate","25.36.00.006","UNK","VSB","No",null,null,null,null,null,null,null,null,null,null,null,null,null,null,null,"TFU","CIDS AUTO-RESET EVENTS","44.11.00.019","MSN109","SB","Yes",null,null,null,null,null,null,null,null,"TFU","Stowages Floor Attachments","25.27.00.010","MSN21"]
[null,null,null,null,null,null,null,null,null,null,null,null,null,null,null,null,null,null,null,null,null,null,null,null,null,null,null,null,null,null,null,null,null,null,null,null,null,null,null,null,null,null,null,null,null,null,null,null,null,null,"TFU","Waste bin flap paint damage","25.40.00.063","TBD",null,null,null,null,null,null,null,null,null,null,null,null,null,null,null,null,null,"TFU","LEAKS FROM GLUED DRAINS IN GALLEYS","25.00.00.037","MSN24","VSB","Yes",null,null,null,null,null,null,null,null,null,null,null,null,null,null,null,"TFU","Failure 3 durin Systems dataloading","44.10.00.001",null,null,null,null,null,null,null,null,null,null,null,"TFU","Literature pocket premature damage","25.27.00.008"]
[null,null,null,null,null,null,null,null,null,null,null,null,null,null,null,null,null,null,null,null,null,null,null,null,null,null,null,null,null,null,null,null,null,null,null,null,null,null,null,null,null,null,null,null,null,null,null,null,null,null,"TFU","Lavatory countertop cracks","25.40.00.062","TBD","VSB",null,null,null,null,null,null,null,null,null,null,null,null,null,null,null,null,"TFU","ACU DRAINAGE PIPE ISSUE","25.30.00.029","TBD","TBD","TBD",null,null,null,null,null,null,null,null,null,null,null,null,null,null,null,null,null,null,null,null,null,null,null,null,null,null,null,null,null,"TFU","emergency hatch falling ","25.51.00.011","MSN 216","VSB and SB","Yes"]
[null,null,null,null,null,null,null,null,null,null,null,null,null,null,null,null,null,null,null,null,null,null,null,null,null,null,null,null,null,null,null,null,null,null,null,null,null,null,null,null,null,null,null,null,null,null,null,null,null,null,"TFU","Lights not working properly","25.40.00.064","MSN82","VSB",null,null,null,null,null,null,null,null,null,null,null,null,null,null,null,null,"TFU","Galley - Roller Blind Damages","25.30.00.013","MSN104","VSB","Yes",null,null,null,null,null,null,null,null,null,null,null,null,null,null,null,null,null,null,null,null,null,null,null,null,null,null,null,null,null,"TFU"," Door window shade blocked","25.23.00.021"]
[null,null,null,null,null,null,null,null,null,null,null,null,null,null,null,null,null,null,null,null,null,null,null,null,null,null,null,null,null,null,null,null,null,null,null,null,null,null,null,null,null,null,null,null,null,null,null,null,null,null,"TFU","Ash Tray dislodge easily","25.40.00.069","TBD","VSB",null,null,null,null,null,null,null,null,null,null,null,null,null,null,null,null,"TFU","GALLEY DOOR HINGE COVER SEALS DAMAGES","25.30.00.035","TBD","TBD","TBD",null,null,null,null,null,null,null,null,null,null,null,null,null,null,null,null,null,null,null,null,null,null,null,null,null,null,null,null,null,"TFU","Interference between trolley and door frame lining & door hinge arm cover","25.23.00.020"]
[null,null,null,null,null,null,null,null,null,null,null,null,null,null,null,null,null,null,null,null,null,null,null,null,null,null,null,null,null,null,null,null,null,null,null,null,null,null,null,null,null,null,null,null,null,null,null,null,null,null,"TFU","Pelmet and upper lateral fairing found dislodged","25.40.00.066","MSN52","VSB",null,null,null,null,null,null,null,null,null,null,null,null,null,null,null,null,"TFU","RETAINER COVER DETACHED WITH SCREW MISSING","25.30.00.037","N/A","CMM update","No",null,null,null,null,null,null,null,null,null,null,null,null,null,null,null,null,null,null,null,null,null,null,null,null,null,null,null,null,null,"TFU","CDSS data loading deviation","44.52.00.002"]
[null,null,null,null,null,null,null,null,null,null,null,null,null,null,null,null,null,null,null,null,null,null,null,null,null,null,null,null,null,null,null,null,null,null,null,null,null,null,null,null,null,null,null,null,null,null,null,null,null,null,"TFU","Toilet paper roll holder missing","25.40.00.070","MSN54","VSB",null,null,null,null,null,null,null,null,null,null,null,null,null,null,null,null,"TFU","Galley Standard Unit slide extractor damage","25.30.00.028","TBD","TBD","Yes"]
[null,null,null,null,null,null,null,null,null,null,null,null,null,null,null,null,null,null,null,null,null,null,null,null,null,null,null,null,null,null,null,null,null,null,null,null,null,null,null,null,null,null,null,null,null,null,null,null,null,null,"TFU","Toilet cover missing bumper","25.40.00.071","TBD","New Design",null,null,null,null,null,null,null,null,null,null,null,null,null,null,null,null,"TFU","GREY DEPOSIT OR SCRATCHES ON COUNTER TOP","25.30.00.038","N/A","N/A","N/A"]
[null,null,null,null,null,null,null,null,null,null,null,null,null,null,null,null,null,null,null,null,null,null,null,null,null,null,null,null,null,null,null,null,null,null,null,null,null,null,null,null,null,null,null,null,null,null,null,null,null,null,"TFU","Hinge Latch screws on bi-folding door found loosen/missing","25.40.00.068"]
[null,null,null,null,null,null,null,null,null,null,null,null,null,null,null,null,null,null,null,null,null,null,null,null,null,null,null,null,null,null,null,null,null,null,null,null,null,null,null,null,null,null,null,null,null,null,null,null,null,null,"TFU","Toilet shrouds issues: paint peeling, material cracks and brackets","25.40.00.046","MSN74","VSB"]
[null,null,null,null,null,null,null,null,null,null,null,null,null,null,null,null,null,null,null,null,null,null,null,null,null,null,null,null,null,null,null,null,null,null,null,null,null,null,null,null,null,null,null,null,null,null,null,null,null,null,"TFU","Water Drain Knob actuator found broken","25.40.00.045"]

{"sheet":"HVN","index":10,"n_rows":19,"n_cols":112,"rows_kept":19,"cut":false,"hidden":false,"merged":[]}
["ENGINEERING ISSUES:"]
[]
[null,"Water & Waste",null,null,null,null,null,null,"Smoke Detection",null,null,null,null,null,null,"Seats",null,null,null,null,null,null,"SCS",null,null,null,null,null,null,"Pax Door",null,null,null,null,null,null,"Oxygen",null,null,null,null,null,null,"Lights",null,null,null,null,null,null,"Lavatories",null,null,null,null,null,null,"IFE",null,null,null,null,null,null,"Heating",null,null,null,null,null,null,"Galley/gains",null,null,null,null,null,null,"Emergency Systems",null,null,null,null,null,null,"Cockpit",null,null,null,null,null,null,"CIDS",null,null,null,null,null,null,"Cargo",null,null,null,null,null,null,"Cabin & crew rest"]
[null,"Doc.","Title","Reference","PoE","Solution","Monitored retrofit",null,"Doc.","Title","Reference","PoE","Solution","Monitored retrofit",null,"Doc.","Title","Reference","PoE","Solution","Monitored retrofit",null,"Doc.","Title","Reference","PoE","Solution","Monitored retrofit",null,"Doc.","Title","Reference","PoE","Solution","Monitored retrofit",null,"Doc.","Title","Reference","PoE","Solution","Monitored retrofit",null,"Doc.","Title","Reference","PoE","Solution","Monitored retrofit",null,"Doc.","Title","Reference","PoE","Solution","Monitored retrofit",null,"Doc.","Title","Reference","PoE","Solution","Monitored retrofit",null,"Doc.","Title","Reference","PoE","Solution","Monitored retrofit",null,"Doc.","Title","Reference","PoE","Solution","Monitored retrofit",null,"Doc.","Title","Reference","PoE","Solution","Monitored retrofit",null,"Doc.","Title","Reference","PoE","Solution","Monitored retrofit",null,"Doc.","Title","Reference","PoE","Solution","Monitored retrofit",null,"Doc.","Title","Reference","PoE","Solution","Monitored retrofit",null,"Doc.","Title","Reference","PoE","Solution","Monitored retrofit"]
[null,"TFU","Potable water pump","38.12.00.010","MSN65",null,null,null,"TFU","SMOKE DETECTOR PRE-CONTAMINATION ALERT","26.10.00.020","MSN109","SB","Yes",null,"TFU","Cfgfggf sfdfdf rgggfgf/dhhghf issue ","25.11.00.029","MSN63 / 104","SB","No",null,"TFU","VCRU Compressor Winding Short fault","21.59.00.029",null,null,null,null,"TFU","DOOR INDICATION PANEL (DIP) - LED FAILURE","52.71.00.026","MSN19",null,null,null,"TFU","Passenger Oxygen Containers inadvertent opening during operation","35.20.00.020","TBD","TBD","No",null,"TFU","Illumination Device (ILD) loading & system configuration deviation","33.20.00.001",null,null,null,null,"TFU","Thermostat Unit Control device","25.40.00.047","MSN94","VSB",null,null,"TFU","Temperature Limitation at 0°C for Panasonic IFE Equipment","44.20.00.003","MSN18","VSB","No",null,null,null,null,null,null,null,null,"TFU","Galley - Vent Valve Water Leakage","25.30.00.012","MSN24","VSB","No",null,"TFU","ENGINE FIRE DETECTION ISSUES","26.12.00.055",null,"VSB & SB",null,null,"TFU","No cggfdfd in cgfgfdg","52.51.00.015","TBD","TBD","TBD",null,"TFU","Entry Into Service CIDS Deviations","44.11.00.012","MSN26","SB","Yes",null,"TFU","PDU INOPERATIVE DUE TO MECHANICAL FAILURE","50.23.00.007","MSN 28","VSIL","No",null,"TFU","OverHead Stowage Compartment in conical area/ Plastic Ring Broken","25.24.00.017","MSN21","SB","Yes"]
[null,"TFU","Waste Tank indication not correct","38.30.00.012","MSN28",null,null,null,"TFU","gg hhh rerrs ","26.10.00.021","MSN64","SB","No",null,null,null,null,null,null,null,null,"TFU","RACA -00 Potentially Reduced Reliability","21.59.00.018",null,null,null,null,null,null,null,null,null,null,null,"TFU","Crew Oxygen Cylinder Regulator loose Filter Retainer","35.10.00.015","MSN109 TBC","VSB TBD","No",null,"TFU","LOSS OF LAVATORY ILLUMINATION (Lights \"OFF\")","33.20.00.004","MSN109","SB","Yes",null,"TFU","Toilet shrouds broken brackets","25.40.00.049","MSN44","VSB",null,null,"TFU","IFE POWER LOSS - AUTO RESET DURING FLIGHT","44.20.00.004",null,null,null,null,null,null,null,null,null,null,null,"TFU","Steam Ovens PN X200100 issues","25.36.00.001","MSN94","SB","No",null,"TFU","Slide girt retainer flap detachment","25.62.00.041","MSN29",null,null,null,"TFU","DDD)","52.51.00.013","MSN 159","SB + VSB","Yes",null,"TFU","CIDS - IFE INTERFACE ISSUES","44.11.00.015","MSN26","SB","Yes",null,"TFU","fdghhhgg jhfgjjhhgf hfjh","50.23.00.006","MSN 124\n","SB","Yes",null,"TFU","CCRC         ","25.23.00.019","TBD","TBD","TBD"]
[null,"TFU","Waste valve actuation unit damaged","38.30.00.014","MSN50",null,null,null,"TFU","S/D PMC21_Series \"humidity out of range\" failure","26.10.00.026","MSN25","VSB","No",null,null,null,null,null,null,null,null,"TFU","CDM -00 Potentially Reduced Reliability","21.59.00.019",null,null,null,null,null,null,null,null,null,null,null,null,null,null,null,null,null,null,"TFU","EPSU SYSTEM CONFIGURATION REPORTING ISSUE","33.51.00.019","MSN109","SB","Yes",null,"TFU","Nonfunctioning LOS microswitch","25.40.00.058","MSN28","VSB",null,null,null,null,null,null,null,null,null,null,null,null,null,null,null,null,"TFU","SCS Chiller PN 688-2 issues","25.36.00.003","MSN74","VSB","No",null,null,null,null,null,null,null,null,null,null,null,null,null,null,null,"TFU","CIDS OBRM DATA INTEGRITY","44.11.00.013","MSN109","SB","Yes",null,"TFU","Collapsible ceiling panels - Missing fasteners/washers","50.13.00.001",null,null,null,null,"TFU","DAMPER BRACKET SNATCHED FROM BIN SIDEWALL","25.24.00.024","MSN102","VSB","Yes"]
[null,"TFU","Low waste vacuum on ground","38.31.00.038",null,null,null,null,null,null,null,null,null,null,null,null,null,null,null,null,null,null,"TFU","FAP - SCS Page - 'Automatic Power Saving Active' wrongly displayed","21.59.00.031",null,null,null,null,null,null,null,null,null,null,null,null,null,null,null,null,null,null,"TFU","EMERGENCY EXIT SIGNS \"ON\" DURING FLIGHT","33.51.00.020",null,null,null,null,"TFU","Broken OCCUPIED/VACANT sign","25.40.00.060","MSN26","VSB",null,null,null,null,null,null,null,null,null,null,null,null,null,null,null,null,"TFU","SEAL BETWEEN THE CCRC AND THE AFT GALLEY","25.30.00.041","MSN046",null,"FOC-MON ALL",null,null,null,null,null,null,null,null,null,null,null,null,null,null,null,"TFU","fggf htytr","44.11.00.017",null,null,null,null,null,null,null,null,null,null,null,"TFU","Stowages Floor Attachments","25.27.00.010","MSN21"]
[null,"TFU","Overboard vent line waste traces","38.30.00.013",null,null,null,null,null,null,null,null,null,null,null,null,null,null,null,null,null,null,null,null,null,null,null,null,null,null,null,null,null,null,null,null,null,null,null,null,null,null,null,null,null,null,null,null,null,null,"TFU","Lavatory flush switch","25.40.00.059","MSN24","VSB",null,null,null,null,null,null,null,null,null,null,null,null,null,null,null,null,"TFU","Espresso makers 4670-0001 series high removal rate","25.36.00.006","UNK","VSB","No",null,null,null,null,null,null,null,null,null,null,null,null,null,null,null,"TFU","FAP Set-up page: Loss of CF-Card mounted status","44.11.00.018",null,null,null,null,null,null,null,null,null,null,null,"TFU","Literature pocket premature damage","25.27.00.008"]
[null,"TFU","Residual Disinfectant in GAINS","38.10.00.016","N/A","AMM update","N/A",null,null,null,null,null,null,null,null,null,null,null,null,null,null,null,null,null,null,null,null,null,null,null,null,null,null,null,null,null,null,null,null,null,null,null,null,null,null,null,null,null,null,null,"TFU","Lavatory Mirror damaged","25.40.00.061","MSN61","VSB",null,null,null,null,null,null,null,null,null,null,null,null,null,null,null,null,"TFU","LEAKS FROM GLUED DRAINS IN GALLEYS","25.00.00.037","MSN24","VSB","Yes",null,null,null,null,null,null,null,null,null,null,null,null,null,null,null,"TFU","CIDS AUTO-RESET EVENTS","44.11.00.019","MSN109","SB","Yes",null,null,null,null,null,null,null,null,"TFU","emergency hatch falling ","25.51.00.011","MSN 216","VSB and SB","Yes"]
[null,null,null,null,null,null,null,null,null,null,null,null,null,null,null,null,null,null,null,null,null,null,null,null,null,null,null,null,null,null,null,null,null,null,null,null,null,null,null,null,null,null,null,null,null,null,null,null,null,null,"TFU","Waste bin flap paint damage","25.40.00.063","TBD",null,null,null,null,null,null,null,null,null,null,null,null,null,null,null,null,null,"TFU","ACU DRAINAGE PIPE ISSUE","25.30.00.029","TBD","TBD","TBD",null,null,null,null,null,null,null,null,null,null,null,null,null,null,null,"TFU","Failure 3 durin Systems dataloading","44.10.00.001",null,null,null,null,null,null,null,null,null,null,null,"TFU"," Door window shade blocked","25.23.00.021"]
[null,null,null,null,null,null,null,null,null,null,null,null,null,null,null,null,null,null,null,null,null,null,null,null,null,null,null,null,null,null,null,null,null,null,null,null,null,null,null,null,null,null,null,null,null,null,null,null,null,null,"TFU","Lavatory countertop cracks","25.40.00.062","TBD","VSB",null,null,null,null,null,null,null,null,null,null,null,null,null,null,null,null,"TFU","GALLEY DOOR HINGE COVER SEALS DAMAGES","25.30.00.035","TBD","TBD","TBD",null,null,null,null,null,null,null,null,null,null,null,null,null,null,null,null,null,null,null,null,null,null,null,null,null,null,null,null,null,"TFU","Interference between trolley and door frame lining & door hinge arm cover","25.23.00.020"]
[null,null,null,null,null,null,null,null,null,null,null,null,null,null,null,null,null,null,null,null,null,null,null,null,null,null,null,null,null,null,null,null,null,null,null,null,null,null,null,null,null,null,null,null,null,null,null,null,null,null,"TFU","Lights not working properly","25.40.00.064","MSN82","VSB",null,null,null,null,null,null,null,null,null,null,null,null,null,null,null,null,"TFU","RETAINER COVER DETACHED WITH SCREW MISSING","25.30.00.037","N/A","CMM update","No",null,null,null,null,null,null,null,null,null,null,null,null,null,null,null,null,null,null,null,null,null,null,null,null,null,null,null,null,null,"TFU","CDSS data loading deviation","44.52.00.002"]
[null,null,null,null,null,null,null,null,null,null,null,null,null,null,null,null,null,null,null,null,null,null,null,null,null,null,null,null,null,null,null,null,null,null,null,null,null,null,null,null,null,null,null,null,null,null,null,null,null,null,"TFU","Ash Tray dislodge easily","25.40.00.069","TBD","VSB",null,null,null,null,null,null,null,null,null,null,null,null,null,null,null,null,"TFU","Galley Standard Unit slide extractor damage","25.30.00.028","TBD","TBD","Yes"]
[null,null,null,null,null,null,null,null,null,null,null,null,null,null,null,null,null,null,null,null,null,null,null,null,null,null,null,null,null,null,null,null,null,null,null,null,null,null,null,null,null,null,null,null,null,null,null,null,null,null,"TFU","Pelmet and upper lateral fairing found dislodged","25.40.00.066","MSN52","VSB"]
[null,null,null,null,null,null,null,null,null,null,null,null,null,null,null,null,null,null,null,null,null,null,null,null,null,null,null,null,null,null,null,null,null,null,null,null,null,null,null,null,null,null,null,null,null,null,null,null,null,null,"TFU","Toilet paper roll holder missing","25.40.00.070","MSN54","VSB"]
[null,null,null,null,null,null,null,null,null,null,null,null,null,null,null,null,null,null,null,null,null,null,null,null,null,null,null,null,null,null,null,null,null,null,null,null,null,null,null,null,null,null,null,null,null,null,null,null,null,null,"TFU","Toilet cover missing bumper","25.40.00.071","TBD","New Design"]
[null,null,null,null,null,null,null,null,null,null,null,null,null,null,null,null,null,null,null,null,null,null,null,null,null,null,null,null,null,null,null,null,null,null,null,null,null,null,null,null,null,null,null,null,null,null,null,null,null,null,"TFU","Hinge Latch screws on bi-folding door found loosen/missing","25.40.00.068"]
[null,null,null,null,null,null,null,null,null,null,null,null,null,null,null,null,null,null,null,null,null,null,null,null,null,null,null,null,null,null,null,null,null,null,null,null,null,null,null,null,null,null,null,null,null,null,null,null,null,null,"TFU","Toilet shrouds issues: paint peeling, material cracks and brackets","25.40.00.046","MSN74","VSB"]

{"sheet":"FIN","index":11,"n_rows":20,"n_cols":112,"rows_kept":20,"cut":false,"hidden":false,"merged":[]}
["ENGINEERING ISSUES:"]
[]
[null,"Water & Waste",null,null,null,null,null,null,"Smoke Detection",null,null,null,null,null,null,"Seats",null,null,null,null,null,null,"SCS",null,null,null,null,null,null,"Pax Door",null,null,null,null,null,null,"Oxygen",null,null,null,null,null,null,"Lights",null,null,null,null,null,null,"Lavatories",null,null,null,null,null,null,"IFE",null,null,null,null,null,null,"Heating",null,null,null,null,null,null,"Galley/gains",null,null,null,null,null,null,"Emergency Systems",null,null,null,null,null,null,"Cockpit",null,null,null,null,null,null,"CIDS",null,null,null,null,null,null,"Cargo",null,null,null,null,null,null,"Cabin & crew rest"]
[null,"Doc.","Title","Reference","PoE","Solution","Monitored retrofit",null,"Doc.","Title","Reference","PoE","Solution","Monitored retrofit",null,"Doc.","Title","Reference","PoE","Solution","Monitored retrofit",null,"Doc.","Title","Reference","PoE","Solution","Monitored retrofit",null,"Doc.","Title","Reference","PoE","Solution","Monitored retrofit",null,"Doc.","Title","Reference","PoE","Solution","Monitored retrofit",null,"Doc.","Title","Reference","PoE","Solution","Monitored retrofit",null,"Doc.","Title","Reference","PoE","Solution","Monitored retrofit",null,"Doc.","Title","Reference","PoE","Solution","Monitored retrofit",null,"Doc.","Title","Reference","PoE","Solution","Monitored retrofit",null,"Doc.","Title","Reference","PoE","Solution","Monitored retrofit",null,"Doc.","Title","Reference","PoE","Solution","Monitored retrofit",null,"Doc.","Title","Reference","PoE","Solution","Monitored retrofit",null,"Doc.","Title","Reference","PoE","Solution","Monitored retrofit",null,"Doc.","Title","Reference","PoE","Solution","Monitored retrofit",null,"Doc.","Title","Reference","PoE","Solution","Monitored retrofit"]
[null,"TFU","Potable water pump","38.12.00.010","MSN65",null,null,null,"TFU","SMOKE DETECTOR PRE-CONTAMINATION ALERT","26.10.00.020","MSN109","SB","Yes",null,"TFU","Cfgfggf sfdfdf rgggfgf/dhhghf issue ","25.11.00.029","MSN63 / 104","SB","No",null,"TFU","VCRU -00 Refrigerant Leakage","21.59.00.023","MSN54",null,null,null,"TFU","DOOR INDICATION PANEL (DIP) - LED FAILURE","52.71.00.026","MSN19",null,null,null,"TFU","Passenger Oxygen Containers inadvertent opening during operation","35.20.00.020","TBD","TBD","No",null,"TFU","SPOTLIGHT (FIN 300WL3) CONNECTOR INTERFACE ISSUE","33.20.00.003","MSN18","VSB","No",null,"TFU","Thermostat Unit Control device","25.40.00.047","MSN94","VSB",null,null,"TFU","IFE POWER LOSS - AUTO RESET DURING FLIGHT","44.20.00.004",null,null,null,null,null,null,null,null,null,null,null,"TFU","Galley - Vent Valve Water Leakage","25.30.00.012","MSN24","VSB","No",null,"TFU","ENGINE FIRE DETECTION ISSUES","26.12.00.055",null,"VSB & SB",null,null,"TFU","No cggfdfd in cgfgfdg","52.51.00.015","TBD","TBD","TBD",null,"TFU","Entry Into Service CIDS Deviations","44.11.00.012","MSN26","SB","Yes",null,"TFU","PDU INOPERATIVE DUE TO MECHANICAL FAILURE","50.23.00.007","MSN 28","VSIL","No",null,"TFU","OverHead Stowage Compartment in conical area/ Plastic Ring Broken","25.24.00.017","MSN21","SB","Yes"]
[null,"TFU","Waste Tank indication not correct","38.30.00.012","MSN28",null,null,null,"TFU","gg hhh rerrs ","26.10.00.021","MSN64","SB","No",null,null,null,null,null,null,null,null,"TFU","VCRU Compressor Winding Short fault","21.59.00.029",null,null,null,null,null,null,null,null,null,null,null,"TFU","Decentralized Gaseous Oxygen System - Oxygen Control Board (OCB) Issue","35.20.00.022","MSN41","SB","Yes",null,"TFU","Illumination Device (ILD) loading & system configuration deviation","33.20.00.001",null,null,null,null,"TFU","Toilet shrouds broken brackets","25.40.00.049","MSN44","VSB",null,null,null,null,null,null,null,null,null,null,null,null,null,null,null,null,"TFU","GAINS Fault Code triggered due to CAM mismatch","25.36.00.002","MSN26","SB ","Yes",null,"TFU","Slide girt retainer flap detachment","25.62.00.041","MSN29",null,null,null,"TFU","DDD)","52.51.00.013","MSN 159","SB + VSB","Yes",null,"TFU","CIDS - IFE INTERFACE ISSUES","44.11.00.015","MSN26","SB","Yes",null,"TFU","fdghhhgg jhfgjjhhgf hfjh","50.23.00.006","MSN 124\n","SB","Yes",null,"TFU","CCRC         ","25.23.00.019","TBD","TBD","TBD"]
[null,"TFU","Waste valve actuation unit damaged","38.30.00.014","MSN50",null,null,null,"TFU","S/D PMC21_Series \"humidity out of range\" failure","26.10.00.026","MSN25","VSB","No",null,null,null,null,null,null,null,null,"TFU","RACA -00 Potentially Reduced Reliability","21.59.00.018",null,null,null,null,null,null,null,null,null,null,null,"TFU","Crew Oxygen Cylinder Regulator loose Filter Retainer","35.10.00.015","MSN109 TBC","VSB TBD","No",null,"TFU","LOSS OF LAVATORY ILLUMINATION (Lights \"OFF\")","33.20.00.004","MSN109","SB","Yes",null,"TFU","Nonfunctioning LOS microswitch","25.40.00.058","MSN28","VSB",null,null,null,null,null,null,null,null,null,null,null,null,null,null,null,null,"TFU","SCS Chiller PN 688-2 issues","25.36.00.003","MSN74","VSB","No",null,null,null,null,null,null,null,null,null,null,null,null,null,null,null,"TFU","CIDS OBRM DATA INTEGRITY","44.11.00.013","MSN109","SB","Yes",null,"TFU","Collapsible ceiling panels - Missing fasteners/washers","50.13.00.001",null,null,null,null,"TFU","OHSC Bushing Housing","25.24.00.023"]
[null,"TFU","Low waste vacuum on ground","38.31.00.038",null,null,null,null,null,null,null,null,null,null,null,null,null,null,null,null,null,null,"TFU","CDM -00 Potentially Reduced Reliability","21.59.00.019",null,null,null,null,null,null,null,null,null,null,null,null,null,null,null,null,null,null,"TFU","EPSU SYSTEM CONFIGURATION REPORTING ISSUE","33.51.00.019","MSN109","SB","Yes",null,"TFU","Broken OCCUPIED/VACANT sign","25.40.00.060","MSN26","VSB",null,null,null,null,null,null,null,null,null,null,null,null,null,null,null,null,"TFU","IGTC - Integrated Galley Trash Compactor issues","25.30.00.014","MSN77","SB","Yes",null,null,null,null,null,null,null,null,null,null,null,null,null,null,null,"TFU","fggf htytr","44.11.00.017",null,null,null,null,null,null,null,null,null,null,null,"TFU","Compartment gjhgj ","25.24.00.022","TBD","TBD","TBD"]
[null,"TFU","Overboard vent line waste traces","38.30.00.013",null,null,null,null,null,null,null,null,null,null,null,null,null,null,null,null,null,null,"TFU","FAP - SCS Page - 'Automatic Power Saving Active' wrongly displayed","21.59.00.031",null,null,null,null,null,null,null,null,null,null,null,null,null,null,null,null,null,null,"TFU","EMERGENCY EXIT SIGNS \"ON\" DURING FLIGHT","33.51.00.020",null,null,null,null,"TFU","Lavatory flush switch","25.40.00.059","MSN24","VSB",null,null,null,null,null,null,null,null,null,null,null,null,null,null,null,null,"TFU","IGTC - Inspection of the Compaction Chamber Assembly","25.36.00.005","MSN77","SB","Yes",null,null,null,null,null,null,null,null,null,null,null,null,null,null,null,"TFU","FAP Set-up page: Loss of CF-Card mounted status","44.11.00.018",null,null,null,null,null,null,null,null,null,null,null,"TFU","DAMPER BRACKET SNATCHED FROM BIN SIDEWALL","25.24.00.024","MSN102","VSB","Yes"]
[null,"TFU","Residual Disinfectant in GAINS","38.10.00.016","N/A","AMM update","N/A",null,null,null,null,null,null,null,null,null,null,null,null,null,null,null,null,null,null,null,null,null,null,null,null,null,null,null,null,null,null,null,null,null,null,null,null,null,null,null,null,null,null,null,"TFU","Lavatory Mirror damaged","25.40.00.061","MSN61","VSB",null,null,null,null,null,null,null,null,null,null,null,null,null,null,null,null,"TFU","SEAL BETWEEN THE CCRC AND THE AFT GALLEY","25.30.00.041","MSN046",null,"FOC-MON ALL",null,null,null,null,null,null,null,null,null,null,null,null,null,null,null,"TFU","CIDS AUTO-RESET EVENTS","44.11.00.019","MSN109","SB","Yes",null,null,null,null,null,null,null,null,"TFU","Stowages Floor Attachments","25.27.00.010","MSN21"]
[null,null,null,null,null,null,null,null,null,null,null,null,null,null,null,null,null,null,null,null,null,null,null,null,null,null,null,null,null,null,null,null,null,null,null,null,null,null,null,null,null,null,null,null,null,null,null,null,null,null,"TFU","Waste bin flap paint damage","25.40.00.063","TBD",null,null,null,null,null,null,null,null,null,null,null,null,null,null,null,null,null,"TFU","Espresso makers 4670-0001 series high removal rate","25.36.00.006","UNK","VSB","No",null,null,null,null,null,null,null,null,null,null,null,null,null,null,null,"TFU","Failure 3 durin Systems dataloading","44.10.00.001",null,null,null,null,null,null,null,null,null,null,null,"TFU","Literature pocket premature damage","25.27.00.008"]
[null,null,null,null,null,null,null,null,null,null,null,null,null,null,null,null,null,null,null,null,null,null,null,null,null,null,null,null,null,null,null,null,null,null,null,null,null,null,null,null,null,null,null,null,null,null,null,null,null,null,"TFU","Lavatory countertop cracks","25.40.00.062","TBD","VSB",null,null,null,null,null,null,null,null,null,null,null,null,null,null,null,null,"TFU","gdd ghfh ","25.30.00.030",null,null,null,null,null,null,null,null,null,null,null,null,null,null,null,null,null,null,null,null,null,null,null,null,null,null,null,null,null,null,null,null,"TFU","emergency hatch falling ","25.51.00.011","MSN 216","VSB and SB","Yes"]
[null,null,null,null,null,null,null,null,null,null,null,null,null,null,null,null,null,null,null,null,null,null,null,null,null,null,null,null,null,null,null,null,null,null,null,null,null,null,null,null,null,null,null,null,null,null,null,null,null,null,"TFU","Lights not working properly","25.40.00.064","MSN82","VSB",null,null,null,null,null,null,null,null,null,null,null,null,null,null,null,null,"TFU","LEAKS FROM GLUED DRAINS IN GALLEYS","25.00.00.037","MSN24","VSB","Yes",null,null,null,null,null,null,null,null,null,null,null,null,null,null,null,null,null,null,null,null,null,null,null,null,null,null,null,null,null,"TFU"," Door window shade blocked","25.23.00.021"]
[null,null,null,null,null,null,null,null,null,null,null,null,null,null,null,null,null,null,null,null,null,null,null,null,null,null,null,null,null,null,null,null,null,null,null,null,null,null,null,null,null,null,null,null,null,null,null,null,null,null,"TFU","Ash Tray dislodge easily","25.40.00.069","TBD","VSB",null,null,null,null,null,null,null,null,null,null,null,null,null,null,null,null,"TFU","ACU DRAINAGE PIPE ISSUE","25.30.00.029","TBD","TBD","TBD",null,null,null,null,null,null,null,null,null,null,null,null,null,null,null,null,null,null,null,null,null,null,null,null,null,null,null,null,null,"TFU","Interference between trolley and door frame lining & door hinge arm cover","25.23.00.020"]
[null,null,null,null,null,null,null,null,null,null,null,null,null,null,null,null,null,null,null,null,null,null,null,null,null,null,null,null,null,null,null,null,null,null,null,null,null,null,null,null,null,null,null,null,null,null,null,null,null,null,"TFU","Pelmet and upper lateral fairing found dislodged","25.40.00.066","MSN52","VSB",null,null,null,null,null,null,null,null,null,null,null,null,null,null,null,null,"TFU","Galley - Roller Blind Damages","25.30.00.013","MSN104","VSB","Yes",null,null,null,null,null,null,null,null,null,null,null,null,null,null,null,null,null,null,null,null,null,null,null,null,null,null,null,null,null,"TFU","CDSS data loading deviation","44.52.00.002"]
[null,null,null,null,null,null,null,null,null,null,null,null,null,null,null,null,null,null,null,null,null,null,null,null,null,null,null,null,null,null,null,null,null,null,null,null,null,null,null,null,null,null,null,null,null,null,null,null,null,null,"TFU","Toilet paper roll holder missing","25.40.00.070","MSN54","VSB",null,null,null,null,null,null,null,null,null,null,null,null,null,null,null,null,"TFU","GALLEY DOOR HINGE COVER SEALS DAMAGES","25.30.00.035","TBD","TBD","TBD"]
[null,null,null,null,null,null,null,null,null,null,null,null,null,null,null,null,null,null,null,null,null,null,null,null,null,null,null,null,null,null,null,null,null,null,null,null,null,null,null,null,null,null,null,null,null,null,null,null,null,null,"TFU","Toilet cover missing bumper","25.40.00.071","TBD","New Design",null,null,null,null,null,null,null,null,null,null,null,null,null,null,null,null,"TFU","RETAINER COVER DETACHED WITH SCREW MISSING","25.30.00.037","N/A","CMM update","No"]
[null,null,null,null,null,null,null,null,null,null,null,null,null,null,null,null,null,null,null,null,null,null,null,null,null,null,null,null,null,null,null,null,null,null,null,null,null,null,null,null,null,null,null,null,null,null,null,null,null,null,"TFU","Hinge Latch screws on bi-folding door found loosen/missing","25.40.00.068",null,null,null,null,null,null,null,null,null,null,null,null,null,null,null,null,null,null,"TFU","Galley Standard Unit slide extractor damage","25.30.00.028","TBD","TBD","Yes"]
[null,null,null,null,null,null,null,null,null,null,null,null,null,null,null,null,null,null,null,null,null,null,null,null,null,null,null,null,null,null,null,null,null,null,null,null,null,null,null,null,null,null,null,null,null,null,null,null,null,null,"TFU","Toilet shrouds issues: paint peeling, material cracks and brackets","25.40.00.046","MSN74","VSB"]
[null,null,null,null,null,null,null,null,null,null,null,null,null,null,null,null,null,null,null,null,null,null,null,null,null,null,null,null,null,null,null,null,null,null,null,null,null,null,null,null,null,null,null,null,null,null,null,null,null,null,"TFU","Lavatory door lock stiff in flight ","25.40.00.072"]

{"sheet":"TAM","index":12,"n_rows":18,"n_cols":112,"rows_kept":18,"cut":false,"hidden":false,"merged":[]}
["ENGINEERING ISSUES:"]
[]
[null,"Water & Waste",null,null,null,null,null,null,"Smoke Detection",null,null,null,null,null,null,"Seats",null,null,null,null,null,null,"SCS",null,null,null,null,null,null,"Pax Door",null,null,null,null,null,null,"Oxygen",null,null,null,null,null,null,"Lights",null,null,null,null,null,null,"Lavatories",null,null,null,null,null,null,"IFE",null,null,null,null,null,null,"Heating",null,null,null,null,null,null,"Galley/gains",null,null,null,null,null,null,"Emergency Systems",null,null,null,null,null,null,"Cockpit",null,null,null,null,null,null,"CIDS",null,null,null,null,null,null,"Cargo",null,null,null,null,null,null,"Cabin & crew rest"]
[null,"Doc.","Title","Reference","PoE","Solution","Monitored retrofit",null,"Doc.","Title","Reference","PoE","Solution","Monitored retrofit",null,"Doc.","Title","Reference","PoE","Solution","Monitored retrofit",null,"Doc.","Title","Reference","PoE","Solution","Monitored retrofit",null,"Doc.","Title","Reference","PoE","Solution","Monitored retrofit",null,"Doc.","Title","Reference","PoE","Solution","Monitored retrofit",null,"Doc.","Title","Reference","PoE","Solution","Monitored retrofit",null,"Doc.","Title","Reference","PoE","Solution","Monitored retrofit",null,"Doc.","Title","Reference","PoE","Solution","Monitored retrofit",null,"Doc.","Title","Reference","PoE","Solution","Monitored retrofit",null,"Doc.","Title","Reference","PoE","Solution","Monitored retrofit",null,"Doc.","Title","Reference","PoE","Solution","Monitored retrofit",null,"Doc.","Title","Reference","PoE","Solution","Monitored retrofit",null,"Doc.","Title","Reference","PoE","Solution","Monitored retrofit",null,"Doc.","Title","Reference","PoE","Solution","Monitored retrofit",null,"Doc.","Title","Reference","PoE","Solution","Monitored retrofit"]
[null,"TFU","Potable water pump","38.12.00.010","MSN65",null,null,null,"TFU","SMOKE DETECTOR PRE-CONTAMINATION ALERT","26.10.00.020","MSN109","SB","Yes",null,"TFU","Cfgfggf sfdfdf rgggfgf/dhhghf issue ","25.11.00.029","MSN63 / 104","SB","No",null,"TFU","VCRU -00 Refrigerant Leakage","21.59.00.023","MSN54",null,null,null,null,null,null,null,null,null,null,"TFU","Passenger Oxygen Containers inadvertent opening during operation","35.20.00.020","TBD","TBD","No",null,"TFU","Illumination Device (ILD) loading & system configuration deviation","33.20.00.001",null,null,null,null,"TFU","Thermostat Unit Control device","25.40.00.047","MSN94","VSB",null,null,"TFU","IFE POWER LOSS - AUTO RESET DURING FLIGHT","44.20.00.004",null,null,null,null,null,null,null,null,null,null,null,"TFU","Galley - Vent Valve Water Leakage","25.30.00.012","MSN24","VSB","No",null,"TFU","ENGINE FIRE DETECTION ISSUES","26.12.00.055",null,"VSB & SB",null,null,"TFU","No cggfdfd in cgfgfdg","52.51.00.015","TBD","TBD","TBD",null,"TFU","Entry Into Service CIDS Deviations","44.11.00.012","MSN26","SB","Yes",null,"TFU","PDU INOPERATIVE DUE TO MECHANICAL FAILURE","50.23.00.007","MSN 28","VSIL","No",null,"TFU","CCRC         ","25.23.00.019","TBD","TBD","TBD"]
[null,"TFU","Waste Tank indication not correct","38.30.00.012","MSN28",null,null,null,"TFU","gg hhh rerrs ","26.10.00.021","MSN64","SB","No",null,null,null,null,null,null,null,null,"TFU","VCRU Compressor Winding Short fault","21.59.00.029",null,null,null,null,null,null,null,null,null,null,null,"TFU","Crew Oxygen Cylinder Regulator loose Filter Retainer","35.10.00.015","MSN109 TBC","VSB TBD","No",null,"TFU","LOSS OF LAVATORY ILLUMINATION (Lights \"OFF\")","33.20.00.004","MSN109","SB","Yes",null,"TFU","Toilet shrouds broken brackets","25.40.00.049","MSN44","VSB",null,null,null,null,null,null,null,null,null,null,null,null,null,null,null,null,"TFU","Tri-mode refrigerator PN 600-6-02-00 issues","25.36.00.004","UNK","VSB","No",null,"TFU","Slide girt retainer flap detachment","25.62.00.041","MSN29",null,null,null,"TFU","DDD)","52.51.00.013","MSN 159","SB + VSB","Yes",null,"TFU","CIDS - IFE INTERFACE ISSUES","44.11.00.015","MSN26","SB","Yes",null,"TFU","fdghhhgg jhfgjjhhgf hfjh","50.23.00.006","MSN 124\n","SB","Yes",null,"TFU","DAMPER BRACKET SNATCHED FROM BIN SIDEWALL","25.24.00.024","MSN102","VSB","Yes"]
[null,"TFU","Waste valve actuation unit damaged","38.30.00.014","MSN50",null,null,null,"TFU","S/D PMC21_Series \"humidity out of range\" failure","26.10.00.026","MSN25","VSB","No",null,null,null,null,null,null,null,null,"TFU","RACA -00 Potentially Reduced Reliability","21.59.00.018",null,null,null,null,null,null,null,null,null,null,null,null,null,null,null,null,null,null,"TFU","EPSU SYSTEM CONFIGURATION REPORTING ISSUE","33.51.00.019","MSN109","SB","Yes",null,"TFU","Nonfunctioning LOS microswitch","25.40.00.058","MSN28","VSB",null,null,null,null,null,null,null,null,null,null,null,null,null,null,null,null,"TFU","Zodiac Trash Compactor issues","25.36.00.008","TBD","TBD","TBD",null,null,null,null,null,null,null,null,null,null,null,null,null,null,null,"TFU","CIDS OBRM DATA INTEGRITY","44.11.00.013","MSN109","SB","Yes",null,"TFU","Collapsible ceiling panels - Missing fasteners/washers","50.13.00.001",null,null,null,null,"TFU","Stowages Floor Attachments","25.27.00.010","MSN21"]
[null,"TFU","Low waste vacuum on ground","38.31.00.038",null,null,null,null,null,null,null,null,null,null,null,null,null,null,null,null,null,null,"TFU","CDM -00 Potentially Reduced Reliability","21.59.00.019",null,null,null,null,null,null,null,null,null,null,null,null,null,null,null,null,null,null,"TFU","EMERGENCY EXIT SIGNS \"ON\" DURING FLIGHT","33.51.00.020",null,null,null,null,"TFU","Broken OCCUPIED/VACANT sign","25.40.00.060","MSN26","VSB",null,null,null,null,null,null,null,null,null,null,null,null,null,null,null,null,"TFU","SEAL BETWEEN THE CCRC AND THE AFT GALLEY","25.30.00.041","MSN046",null,"FOC-MON ALL",null,null,null,null,null,null,null,null,null,null,null,null,null,null,null,"TFU","fggf htytr","44.11.00.017",null,null,null,null,null,null,null,null,null,null,null,"TFU","Literature pocket premature damage","25.27.00.008"]
[null,"TFU","Overboard vent line waste traces","38.30.00.013",null,null,null,null,null,null,null,null,null,null,null,null,null,null,null,null,null,null,"TFU","FAP - SCS Page - 'Automatic Power Saving Active' wrongly displayed","21.59.00.031",null,null,null,null,null,null,null,null,null,null,null,null,null,null,null,null,null,null,null,null,null,null,null,null,null,"TFU","Lavatory Mirror damaged","25.40.00.061","MSN61","VSB",null,null,null,null,null,null,null,null,null,null,null,null,null,null,null,null,"TFU","B/E Aerospace GAINS CAN Bus disturbance","25.36.00.007","TBD","TBD","TBD",null,null,null,null,null,null,null,null,null,null,null,null,null,null,null,"TFU","FAP Set-up page: Loss of CF-Card mounted status","44.11.00.018",null,null,null,null,null,null,null,null,null,null,null,"TFU","emergency hatch falling ","25.51.00.011","MSN 216","VSB and SB","Yes"]
[null,"TFU","Residual Disinfectant in GAINS","38.10.00.016","N/A","AMM update","N/A",null,null,null,null,null,null,null,null,null,null,null,null,null,null,null,null,null,null,null,null,null,null,null,null,null,null,null,null,null,null,null,null,null,null,null,null,null,null,null,null,null,null,null,"TFU","Waste bin flap paint damage","25.40.00.063","TBD",null,null,null,null,null,null,null,null,null,null,null,null,null,null,null,null,null,"TFU","Espresso makers 4670-0001 series high removal rate","25.36.00.006","UNK","VSB","No",null,null,null,null,null,null,null,null,null,null,null,null,null,null,null,"TFU","CIDS AUTO-RESET EVENTS","44.11.00.019","MSN109","SB","Yes",null,null,null,null,null,null,null,null,"TFU"," Door window shade blocked","25.23.00.021"]
[null,null,null,null,null,null,null,null,null,null,null,null,null,null,null,null,null,null,null,null,null,null,null,null,null,null,null,null,null,null,null,null,null,null,null,null,null,null,null,null,null,null,null,null,null,null,null,null,null,null,"TFU","Lavatory countertop cracks","25.40.00.062","TBD","VSB",null,null,null,null,null,null,null,null,null,null,null,null,null,null,null,null,"TFU","LEAKS FROM GLUED DRAINS IN GALLEYS","25.00.00.037","MSN24","VSB","Yes",null,null,null,null,null,null,null,null,null,null,null,null,null,null,null,"TFU","Failure 3 durin Systems dataloading","44.10.00.001",null,null,null,null,null,null,null,null,null,null,null,"TFU","Interference between trolley and door frame lining & door hinge arm cover","25.23.00.020"]
[null,null,null,null,null,null,null,null,null,null,null,null,null,null,null,null,null,null,null,null,null,null,null,null,null,null,null,null,null,null,null,null,null,null,null,null,null,null,null,null,null,null,null,null,null,null,null,null,null,null,"TFU","Lights not working properly","25.40.00.064","MSN82","VSB",null,null,null,null,null,null,null,null,null,null,null,null,null,null,null,null,"TFU","ACU DRAINAGE PIPE ISSUE","25.30.00.029","TBD","TBD","TBD",null,null,null,null,null,null,null,null,null,null,null,null,null,null,null,null,null,null,null,null,null,null,null,null,null,null,null,null,null,"TFU","CDSS data loading deviation","44.52.00.002"]
[null,null,null,null,null,null,null,null,null,null,null,null,null,null,null,null,null,null,null,null,null,null,null,null,null,null,null,null,null,null,null,null,null,null,null,null,null,null,null,null,null,null,null,null,null,null,null,null,null,null,"TFU","Ash Tray dislodge easily","25.40.00.069","TBD","VSB",null,null,null,null,null,null,null,null,null,null,null,null,null,null,null,null,"TFU","GALLEY DOOR HINGE COVER SEALS DAMAGES","25.30.00.035","TBD","TBD","TBD"]
[null,null,null,null,null,null,null,null,null,null,null,null,null,null,null,null,null,null,null,null,null,null,null,null,null,null,null,null,null,null,null,null,null,null,null,null,null,null,null,null,null,null,null,null,null,null,null,null,null,null,"TFU","Pelmet and upper lateral fairing found dislodged","25.40.00.066","MSN52","VSB",null,null,null,null,null,null,null,null,null,null,null,null,null,null,null,null,"TFU","RETAINER COVER DETACHED WITH SCREW MISSING","25.30.00.037","N/A","CMM update","No"]
[null,null,null,null,null,null,null,null,null,null,null,null,null,null,null,null,null,null,null,null,null,null,null,null,null,null,null,null,null,null,null,null,null,null,null,null,null,null,null,null,null,null,null,null,null,null,null,null,null,null,"TFU","Toilet paper roll holder missing","25.40.00.070","MSN54","VSB",null,null,null,null,null,null,null,null,null,null,null,null,null,null,null,null,"TFU","Galley Standard Unit slide extractor damage","25.30.00.028","TBD","TBD","Yes"]
[null,null,null,null,null,null,null,null,null,null,null,null,null,null,null,null,null,null,null,null,null,null,null,null,null,null,null,null,null,null,null,null,null,null,null,null,null,null,null,null,null,null,null,null,null,null,null,null,null,null,"TFU","Toilet cover missing bumper","25.40.00.071","TBD","New Design"]
[null,null,null,null,null,null,null,null,null,null,null,null,null,null,null,null,null,null,null,null,null,null,null,null,null,null,null,null,null,null,null,null,null,null,null,null,null,null,null,null,null,null,null,null,null,null,null,null,null,null,"TFU","Hinge Latch screws on bi-folding door found loosen/missing","25.40.00.068"]
[null,null,null,null,null,null,null,null,null,null,null,null,null,null,null,null,null,null,null,null,null,null,null,null,null,null,null,null,null,null,null,null,null,null,null,null,null,null,null,null,null,null,null,null,null,null,null,null,null,null,"TFU","Toilet shrouds issues: paint peeling, material cracks and brackets","25.40.00.046","MSN74","VSB"]

{"sheet":"SIA","index":13,"n_rows":22,"n_cols":112,"rows_kept":22,"cut":false,"hidden":false,"merged":[]}
["ENGINEERING ISSUES:"]
[]
[null,"Water & Waste",null,null,null,null,null,null,"Smoke Detection",null,null,null,null,null,null,"Seats",null,null,null,null,null,null,"SCS",null,null,null,null,null,null,"Pax Door",null,null,null,null,null,null,"Oxygen",null,null,null,null,null,null,"Lights",null,null,null,null,null,null,"Lavatories",null,null,null,null,null,null,"IFE",null,null,null,null,null,null,"Heating",null,null,null,null,null,null,"Galley/gains",null,null,null,null,null,null,"Emergency Systems",null,null,null,null,null,null,"Cockpit",null,null,null,null,null,null,"CIDS",null,null,null,null,null,null,"Cargo",null,null,null,null,null,null,"Cabin & crew rest"]
[null,"Doc.","Title","Reference","PoE","Solution","Monitored retrofit",null,"Doc.","Title","Reference","PoE","Solution","Monitored retrofit",null,"Doc.","Title","Reference","PoE","Solution","Monitored retrofit",null,"Doc.","Title","Reference","PoE","Solution","Monitored retrofit",null,"Doc.","Title","Reference","PoE","Solution","Monitored retrofit",null,"Doc.","Title","Reference","PoE","Solution","Monitored retrofit",null,"Doc.","Title","Reference","PoE","Solution","Monitored retrofit",null,"Doc.","Title","Reference","PoE","Solution","Monitored retrofit",null,"Doc.","Title","Reference","PoE","Solution","Monitored retrofit",null,"Doc.","Title","Reference","PoE","Solution","Monitored retrofit",null,"Doc.","Title","Reference","PoE","Solution","Monitored retrofit",null,"Doc.","Title","Reference","PoE","Solution","Monitored retrofit",null,"Doc.","Title","Reference","PoE","Solution","Monitored retrofit",null,"Doc.","Title","Reference","PoE","Solution","Monitored retrofit",null,"Doc.","Title","Reference","PoE","Solution","Monitored retrofit",null,"Doc.","Title","Reference","PoE","Solution","Monitored retrofit"]
[null,"TFU","Potable water pump","38.12.00.010","MSN65",null,null,null,"TFU","SMOKE DETECTOR PRE-CONTAMINATION ALERT","26.10.00.020","MSN109","SB","Yes",null,"TFU","Cfgfggf sfdfdf rgggfgf/dhhghf issue ","25.11.00.029","MSN63 / 104","SB","No",null,"TFU","VCRU -00 Refrigerant Leakage","21.59.00.023","MSN54",null,null,null,null,null,null,null,null,null,null,"TFU","Passenger Oxygen Containers inadvertent opening during operation","35.20.00.020","TBD","TBD","No",null,"TFU","Illumination Device (ILD) loading & system configuration deviation","33.20.00.001",null,null,null,null,"TFU","Thermostat Unit Control device","25.40.00.047","MSN94","VSB",null,null,"TFU","IFE POWER LOSS - AUTO RESET DURING FLIGHT","44.20.00.004",null,null,null,null,"TFU","ICE DET FAULT AFTER LANDING AND NAI BITE DEVIATION","30.21.00.019",null,null,null,null,"TFU","Tri-mode refrigerator PN 600-6-02-00 issues","25.36.00.004","UNK","VSB","No",null,"TFU","ENGINE FIRE DETECTION ISSUES","26.12.00.055",null,"VSB & SB",null,null,"TFU","No cggfdfd in cgfgfdg","52.51.00.015","TBD","TBD","TBD",null,"TFU","CIDS OBRM DATA INTEGRITY","44.11.00.013","MSN109","SB","Yes",null,"TFU","fdghhhgg jhfgjjhhgf hfjh","50.23.00.006","MSN 124\n","SB","Yes",null,"TFU","CCRC         ","25.23.00.019","TBD","TBD","TBD"]
[null,"TFU","Waste Tank indication not correct","38.30.00.012","MSN28",null,null,null,"TFU","gg hhh rerrs ","26.10.00.021","MSN64","SB","No",null,null,null,null,null,null,null,null,"TFU","VCRU Compressor Winding Short fault","21.59.00.029",null,null,null,null,null,null,null,null,null,null,null,"TFU","Decentralized Gaseous Oxygen System - Oxygen Control Board (OCB) Issue","35.20.00.022","MSN41","SB","Yes",null,"TFU","LOSS OF LAVATORY ILLUMINATION (Lights \"OFF\")","33.20.00.004","MSN109","SB","Yes",null,"TFU","Toilet shrouds broken brackets","25.40.00.049","MSN44","VSB",null,null,null,null,null,null,null,null,null,"TFU","SPURIOUS ORPHAN DISPATCH MESSAGE \"A-ICE NAI ENG1(2) NAI MON","30.80.00.001",null,null,null,null,"TFU","IGTC - Integrated Galley Trash Compactor issues","25.30.00.014","MSN77","SB","Yes",null,"TFU","Slide girt retainer flap detachment","25.62.00.041","MSN29",null,null,null,"TFU","DDD)","52.51.00.013","MSN 159","SB + VSB","Yes",null,"TFU","fggf htytr","44.11.00.017",null,null,null,null,"TFU","Collapsible ceiling panels - Missing fasteners/washers","50.13.00.001",null,null,null,null,"TFU","OHSC Bushing Housing","25.24.00.023"]
[null,"TFU","Waste valve actuation unit damaged","38.30.00.014","MSN50",null,null,null,null,null,null,null,null,null,null,null,null,null,null,null,null,null,"TFU","RACA -00 Potentially Reduced Reliability","21.59.00.018",null,null,null,null,null,null,null,null,null,null,null,"TFU","Crew Oxygen Cylinder Regulator loose Filter Retainer","35.10.00.015","MSN109 TBC","VSB TBD","No",null,"TFU","EPSU SYSTEM CONFIGURATION REPORTING ISSUE","33.51.00.019","MSN109","SB","Yes",null,"TFU","Nonfunctioning LOS microswitch","25.40.00.058","MSN28","VSB",null,null,null,null,null,null,null,null,null,null,null,null,null,null,null,null,"TFU","IGTC - Inspection of the Compaction Chamber Assembly","25.36.00.005","MSN77","SB","Yes",null,null,null,null,null,null,null,null,"TFU","CAPT sliding table blocked in deployed position","25.14.00.002",null,null,null,null,"TFU","FAP Set-up page: Loss of CF-Card mounted status","44.11.00.018",null,null,null,null,null,null,null,null,null,null,null,"TFU","Compartment gjhgj ","25.24.00.022","TBD","TBD","TBD"]
[null,"TFU","Low waste vacuum on ground","38.31.00.038",null,null,null,null,null,null,null,null,null,null,null,null,null,null,null,null,null,null,"TFU","CDM -00 Potentially Reduced Reliability","21.59.00.019",null,null,null,null,null,null,null,null,null,null,null,null,null,null,null,null,null,null,"TFU","EMERGENCY EXIT SIGNS \"ON\" DURING FLIGHT","33.51.00.020",null,null,null,null,"TFU","Broken OCCUPIED/VACANT sign","25.40.00.060","MSN26","VSB",null,null,null,null,null,null,null,null,null,null,null,null,null,null,null,null,"TFU","Zodiac Trash Compactor issues","25.36.00.008","TBD","TBD","TBD",null,null,null,null,null,null,null,null,null,null,null,null,null,null,null,"TFU","CIDS AUTO-RESET EVENTS","44.11.00.019","MSN109","SB","Yes",null,null,null,null,null,null,null,null,"TFU","DAMPER BRACKET SNATCHED FROM BIN SIDEWALL","25.24.00.024","MSN102","VSB","Yes"]
[null,"TFU","Overboard vent line waste traces","38.30.00.013",null,null,null,null,null,null,null,null,null,null,null,null,null,null,null,null,null,null,"TFU","FAP - SCS Page - 'Automatic Power Saving Active' wrongly displayed","21.59.00.031",null,null,null,null,null,null,null,null,null,null,null,null,null,null,null,null,null,null,null,null,null,null,null,null,null,"TFU","Lavatory Mirror damaged","25.40.00.061","MSN61","VSB",null,null,null,null,null,null,null,null,null,null,null,null,null,null,null,null,"TFU","SEAL BETWEEN THE CCRC AND THE AFT GALLEY","25.30.00.041","MSN046",null,"FOC-MON ALL",null,null,null,null,null,null,null,null,null,null,null,null,null,null,null,"TFU","Failure 3 durin Systems dataloading","44.10.00.001",null,null,null,null,null,null,null,null,null,null,null,"TFU","Literature pocket premature damage","25.27.00.008"]
[null,"TFU","Residual Disinfectant in GAINS","38.10.00.016","N/A","AMM update","N/A",null,null,null,null,null,null,null,null,null,null,null,null,null,null,null,null,null,null,null,null,null,null,null,null,null,null,null,null,null,null,null,null,null,null,null,null,null,null,null,null,null,null,null,"TFU","Waste bin flap paint damage","25.40.00.063","TBD",null,null,null,null,null,null,null,null,null,null,null,null,null,null,null,null,null,"TFU","B/E Aerospace GAINS CAN Bus disturbance","25.36.00.007","TBD","TBD","TBD",null,null,null,null,null,null,null,null,null,null,null,null,null,null,null,null,null,null,null,null,null,null,null,null,null,null,null,null,null,"TFU","emergency hatch falling ","25.51.00.011","MSN 216","VSB and SB","Yes"]
[null,null,null,null,null,null,null,null,null,null,null,null,null,null,null,null,null,null,null,null,null,null,null,null,null,null,null,null,null,null,null,null,null,null,null,null,null,null,null,null,null,null,null,null,null,null,null,null,null,null,"TFU","Lavatory countertop cracks","25.40.00.062","TBD","VSB",null,null,null,null,null,null,null,null,null,null,null,null,null,null,null,null,"TFU","Espresso makers 4670-0001 series high removal rate","25.36.00.006","UNK","VSB","No",null,null,null,null,null,null,null,null,null,null,null,null,null,null,null,null,null,null,null,null,null,null,null,null,null,null,null,null,null,"TFU"," Door window shade blocked","25.23.00.021"]
[null,null,null,null,null,null,null,null,null,null,null,null,null,null,null,null,null,null,null,null,null,null,null,null,null,null,null,null,null,null,null,null,null,null,null,null,null,null,null,null,null,null,null,null,null,null,null,null,null,null,"TFU","Lights not working properly","25.40.00.064","MSN82","VSB",null,null,null,null,null,null,null,null,null,null,null,null,null,null,null,null,"TFU","CHILLING COMPT WALL DELAMINATED","25.36.00.009",null,null,null,null,null,null,null,null,null,null,null,null,null,null,null,null,null,null,null,null,null,null,null,null,null,null,null,null,null,null,null,null,"TFU","Interference between trolley and door frame lining & door hinge arm cover","25.23.00.020"]
[null,null,null,null,null,null,null,null,null,null,null,null,null,null,null,null,null,null,null,null,null,null,null,null,null,null,null,null,null,null,null,null,null,null,null,null,null,null,null,null,null,null,null,null,null,null,null,null,null,null,"TFU","Ash Tray dislodge easily","25.40.00.069","TBD","VSB",null,null,null,null,null,null,null,null,null,null,null,null,null,null,null,null,"TFU","CHILLING COMPARTMENTS UNABLE TO LATCH SECURELY","25.30.00.040",null,null,null,null,null,null,null,null,null,null,null,null,null,null,null,null,null,null,null,null,null,null,null,null,null,null,null,null,null,null,null,null,"TFU","CDSS data loading deviation","44.52.00.002"]
[null,null,null,null,null,null,null,null,null,null,null,null,null,null,null,null,null,null,null,null,null,null,null,null,null,null,null,null,null,null,null,null,null,null,null,null,null,null,null,null,null,null,null,null,null,null,null,null,null,null,"TFU","Pelmet and upper lateral fairing found dislodged","25.40.00.066","MSN52","VSB",null,null,null,null,null,null,null,null,null,null,null,null,null,null,null,null,"TFU","ACU DRAINAGE PIPE ISSUE","25.30.00.029","TBD","TBD","TBD"]
[null,null,null,null,null,null,null,null,null,null,null,null,null,null,null,null,null,null,null,null,null,null,null,null,null,null,null,null,null,null,null,null,null,null,null,null,null,null,null,null,null,null,null,null,null,null,null,null,null,null,"TFU","Toilet paper roll holder missing","25.40.00.070","MSN54","VSB",null,null,null,null,null,null,null,null,null,null,null,null,null,null,null,null,"TFU","Galley - Integrated Wine Bottle Opener","25.30.00.027","MSN77","VSB","No"]
[null,null,null,null,null,null,null,null,null,null,null,null,null,null,null,null,null,null,null,null,null,null,null,null,null,null,null,null,null,null,null,null,null,null,null,null,null,null,null,null,null,null,null,null,null,null,null,null,null,null,"TFU","Toilet cover missing bumper","25.40.00.071","TBD","New Design",null,null,null,null,null,null,null,null,null,null,null,null,null,null,null,null,"TFU","INCORRECT GALLEY COMPT 516/517 T DIVIDER IN G2A","25.30.00.032"]
[null,null,null,null,null,null,null,null,null,null,null,null,null,null,null,null,null,null,null,null,null,null,null,null,null,null,null,null,null,null,null,null,null,null,null,null,null,null,null,null,null,null,null,null,null,null,null,null,null,null,"TFU","Hinge Latch screws on bi-folding door found loosen/missing","25.40.00.068",null,null,null,null,null,null,null,null,null,null,null,null,null,null,null,null,null,null,"TFU","GALLEY DOOR HINGE COVER SEALS DAMAGES","25.30.00.035","TBD","TBD","TBD"]
[null,null,null,null,null,null,null,null,null,null,null,null,null,null,null,null,null,null,null,null,null,null,null,null,null,null,null,null,null,null,null,null,null,null,null,null,null,null,null,null,null,null,null,null,null,null,null,null,null,null,"TFU","Toilet shrouds issues: paint peeling, material cracks and brackets","25.40.00.046","MSN74","VSB",null,null,null,null,null,null,null,null,null,null,null,null,null,null,null,null,"TFU","MISSING BUMPERS IN GALLEY","25.30.00.036","N/A","VSB TBC","No"]
[null,null,null,null,null,null,null,null,null,null,null,null,null,null,null,null,null,null,null,null,null,null,null,null,null,null,null,null,null,null,null,null,null,null,null,null,null,null,null,null,null,null,null,null,null,null,null,null,null,null,null,null,null,null,null,null,null,null,null,null,null,null,null,null,null,null,null,null,null,null,null,"TFU","RETAINER COVER DETACHED WITH SCREW MISSING","25.30.00.037","N/A","CMM update","No"]
[null,null,null,null,null,null,null,null,null,null,null,null,null,null,null,null,null,null,null,null,null,null,null,null,null,null,null,null,null,null,null,null,null,null,null,null,null,null,null,null,null,null,null,null,null,null,null,null,null,null,null,null,null,null,null,null,null,null,null,null,null,null,null,null,null,null,null,null,null,null,null,"TFU","Galley Standard Unit slide extractor damage","25.30.00.028","TBD","TBD","Yes"]
[null,null,null,null,null,null,null,null,null,null,null,null,null,null,null,null,null,null,null,null,null,null,null,null,null,null,null,null,null,null,null,null,null,null,null,null,null,null,null,null,null,null,null,null,null,null,null,null,null,null,null,null,null,null,null,null,null,null,null,null,null,null,null,null,null,null,null,null,null,null,null,"TFU","GREY DEPOSIT OR SCRATCHES ON COUNTER TOP","25.30.00.038","N/A","N/A","N/A"]
[null,null,null,null,null,null,null,null,null,null,null,null,null,null,null,null,null,null,null,null,null,null,null,null,null,null,null,null,null,null,null,null,null,null,null,null,null,null,null,null,null,null,null,null,null,null,null,null,null,null,null,null,null,null,null,null,null,null,null,null,null,null,null,null,null,null,null,null,null,null,null,"TFU","COMPARTMENT DOOR STOPPER STUCK IN BETWEEN HINGE AND TRIM","25.30.00.039","TBD","TBD","No"]

{"sheet":"CPA","index":14,"n_rows":17,"n_cols":112,"rows_kept":17,"cut":false,"hidden":false,"merged":[]}
["ENGINEERING ISSUES:"]
[]
[null,"Water & Waste",null,null,null,null,null,null,"Smoke Detection",null,null,null,null,null,null,"Seats",null,null,null,null,null,null,"SCS",null,null,null,null,null,null,"Pax Door",null,null,null,null,null,null,"Oxygen",null,null,null,null,null,null,"Lights",null,null,null,null,null,null,"Lavatories",null,null,null,null,null,null,"IFE",null,null,null,null,null,null,"Heating",null,null,null,null,null,null,"Galley/gains",null,null,null,null,null,null,"Emergency Systems",null,null,null,null,null,null,"Cockpit",null,null,null,null,null,null,"CIDS",null,null,null,null,null,null,"Cargo",null,null,null,null,null,null,"Cabin & crew rest"]
[null,"Doc.","Title","Reference","PoE","Solution","Monitored retrofit",null,"Doc.","Title","Reference","PoE","Solution","Monitored retrofit",null,"Doc.","Title","Reference","PoE","Solution","Monitored retrofit",null,"Doc.","Title","Reference","PoE","Solution","Monitored retrofit",null,"Doc.","Title","Reference","PoE","Solution","Monitored retrofit",null,"Doc.","Title","Reference","PoE","Solution","Monitored retrofit",null,"Doc.","Title","Reference","PoE","Solution","Monitored retrofit",null,"Doc.","Title","Reference","PoE","Solution","Monitored retrofit",null,"Doc.","Title","Reference","PoE","Solution","Monitored retrofit",null,"Doc.","Title","Reference","PoE","Solution","Monitored retrofit",null,"Doc.","Title","Reference","PoE","Solution","Monitored retrofit",null,"Doc.","Title","Reference","PoE","Solution","Monitored retrofit",null,"Doc.","Title","Reference","PoE","Solution","Monitored retrofit",null,"Doc.","Title","Reference","PoE","Solution","Monitored retrofit",null,"Doc.","Title","Reference","PoE","Solution","Monitored retrofit",null,"Doc.","Title","Reference","PoE","Solution","Monitored retrofit"]
[null,"TFU","Potable water pump","38.12.00.010","MSN65",null,null,null,"TFU","SMOKE DETECTOR PRE-CONTAMINATION ALERT","26.10.00.020","MSN109","SB","Yes",null,"TFU","Cfgfggf sfdfdf rgggfgf/dhhghf issue ","25.11.00.029","MSN63 / 104","SB","No",null,"TFU","VCRU -00 Refrigerant Leakage","21.59.00.023","MSN54",null,null,null,null,null,null,null,null,null,null,"TFU","Passenger Oxygen Containers inadvertent opening during operation","35.20.00.020","TBD","TBD","No",null,"TFU","Illumination Device (ILD) loading & system configuration deviation","33.20.00.001",null,null,null,null,"TFU","Thermostat Unit Control device","25.40.00.047","MSN94","VSB",null,null,"TFU","IFE POWER LOSS - AUTO RESET DURING FLIGHT","44.20.00.004",null,null,null,null,"TFU","ICE DET FAULT AFTER LANDING AND NAI BITE DEVIATION","30.21.00.019",null,null,null,null,"TFU","IGTC - Integrated Galley Trash Compactor issues","25.30.00.014","MSN77","SB","Yes",null,"TFU","ENGINE FIRE DETECTION ISSUES","26.12.00.055",null,"VSB & SB",null,null,"TFU","No cggfdfd in cgfgfdg","52.51.00.015","TBD","TBD","TBD",null,"TFU","CIDS OBRM DATA INTEGRITY","44.11.00.013","MSN109","SB","Yes",null,"TFU","fdghhhgg jhfgjjhhgf hfjh","50.23.00.006","MSN 124\n","SB","Yes",null,"TFU","CCRC         ","25.23.00.019","TBD","TBD","TBD"]
[null,"TFU","Waste valve actuation unit damaged","38.30.00.014","MSN50",null,null,null,"TFU","gg hhh rerrs ","26.10.00.021","MSN64","SB","No",null,null,null,null,null,null,null,null,"TFU","VCRU Compressor Winding Short fault","21.59.00.029",null,null,null,null,null,null,null,null,null,null,null,"TFU","Decentralized Gaseous Oxygen System - Oxygen Control Board (OCB) Issue","35.20.00.022","MSN41","SB","Yes",null,"TFU","LOSS OF LAVATORY ILLUMINATION (Lights \"OFF\")","33.20.00.004","MSN109","SB","Yes",null,"TFU","Toilet shrouds broken brackets","25.40.00.049","MSN44","VSB",null,null,null,null,null,null,null,null,null,"TFU","SPURIOUS ORPHAN DISPATCH MESSAGE \"A-ICE NAI ENG1(2) NAI MON","30.80.00.001",null,null,null,null,"TFU","IGTC - Inspection of the Compaction Chamber Assembly","25.36.00.005","MSN77","SB","Yes",null,null,null,null,null,null,null,null,"TFU","DDD)","52.51.00.013","MSN 159","SB + VSB","Yes",null,"TFU","fggf htytr","44.11.00.017",null,null,null,null,"TFU","Collapsible ceiling panels - Missing fasteners/washers","50.13.00.001",null,null,null,null,"TFU","OHSC Bushing Housing","25.24.00.023"]
[null,"TFU","Low waste vacuum on ground","38.31.00.038",null,null,null,null,null,null,null,null,null,null,null,null,null,null,null,null,null,null,"TFU","RACA -00 Potentially Reduced Reliability","21.59.00.018",null,null,null,null,null,null,null,null,null,null,null,"TFU","Crew Oxygen Cylinder Regulator loose Filter Retainer","35.10.00.015","MSN109 TBC","VSB TBD","No",null,"TFU","EPSU SYSTEM CONFIGURATION REPORTING ISSUE","33.51.00.019","MSN109","SB","Yes",null,"TFU","Lavatory Mirror damaged","25.40.00.061","MSN61","VSB",null,null,null,null,null,null,null,null,null,null,null,null,null,null,null,null,"TFU","Zodiac Trash Compactor issues","25.36.00.008","TBD","TBD","TBD",null,null,null,null,null,null,null,null,"TFU","CAPT sliding table blocked in deployed position","25.14.00.002",null,null,null,null,"TFU","FAP Set-up page: Loss of CF-Card mounted status","44.11.00.018",null,null,null,null,null,null,null,null,null,null,null,"TFU","Compartment gjhgj ","25.24.00.022","TBD","TBD","TBD"]
[null,"TFU","Overboard vent line waste traces","38.30.00.013",null,null,null,null,null,null,null,null,null,null,null,null,null,null,null,null,null,null,"TFU","CDM -00 Potentially Reduced Reliability","21.59.00.019",null,null,null,null,null,null,null,null,null,null,null,null,null,null,null,null,null,null,"TFU","EMERGENCY EXIT SIGNS \"ON\" DURING FLIGHT","33.51.00.020",null,null,null,null,"TFU","Waste bin flap paint damage","25.40.00.063","TBD",null,null,null,null,null,null,null,null,null,null,null,null,null,null,null,null,null,"TFU","SEAL BETWEEN THE CCRC AND THE AFT GALLEY","25.30.00.041","MSN046",null,"FOC-MON ALL",null,null,null,null,null,null,null,null,null,null,null,null,null,null,null,"TFU","CIDS AUTO-RESET EVENTS","44.11.00.019","MSN109","SB","Yes",null,null,null,null,null,null,null,null,"TFU","DAMPER BRACKET SNATCHED FROM BIN SIDEWALL","25.24.00.024","MSN102","VSB","Yes"]
[null,"TFU","Residual Disinfectant in GAINS","38.10.00.016","N/A","AMM update","N/A",null,null,null,null,null,null,null,null,null,null,null,null,null,null,null,"TFU","FAP - SCS Page - 'Automatic Power Saving Active' wrongly displayed","21.59.00.031",null,null,null,null,null,null,null,null,null,null,null,null,null,null,null,null,null,null,null,null,null,null,null,null,null,"TFU","Lavatory countertop cracks","25.40.00.062","TBD","VSB",null,null,null,null,null,null,null,null,null,null,null,null,null,null,null,null,"TFU","Espresso makers 4670-0001 series high removal rate","25.36.00.006","UNK","VSB","No",null,null,null,null,null,null,null,null,null,null,null,null,null,null,null,"TFU","Failure 3 durin Systems dataloading","44.10.00.001",null,null,null,null,null,null,null,null,null,null,null,"TFU","Literature pocket premature damage","25.27.00.008"]
[null,null,null,null,null,null,null,null,null,null,null,null,null,null,null,null,null,null,null,null,null,null,null,null,null,null,null,null,null,null,null,null,null,null,null,null,null,null,null,null,null,null,null,null,null,null,null,null,null,null,"TFU","Lights not working properly","25.40.00.064","MSN82","VSB",null,null,null,null,null,null,null,null,null,null,null,null,null,null,null,null,"TFU","ACU DRAINAGE PIPE ISSUE","25.30.00.029","TBD","TBD","TBD",null,null,null,null,null,null,null,null,null,null,null,null,null,null,null,null,null,null,null,null,null,null,null,null,null,null,null,null,null,"TFU","emergency hatch falling ","25.51.00.011","MSN 216","VSB and SB","Yes"]
[null,null,null,null,null,null,null,null,null,null,null,null,null,null,null,null,null,null,null,null,null,null,null,null,null,null,null,null,null,null,null,null,null,null,null,null,null,null,null,null,null,null,null,null,null,null,null,null,null,null,"TFU","Ash Tray dislodge easily","25.40.00.069","TBD","VSB",null,null,null,null,null,null,null,null,null,null,null,null,null,null,null,null,"TFU","Galley - Roller Blind Damages","25.30.00.013","MSN104","VSB","Yes",null,null,null,null,null,null,null,null,null,null,null,null,null,null,null,null,null,null,null,null,null,null,null,null,null,null,null,null,null,"TFU"," Door window shade blocked","25.23.00.021"]
[null,null,null,null,null,null,null,null,null,null,null,null,null,null,null,null,null,null,null,null,null,null,null,null,null,null,null,null,null,null,null,null,null,null,null,null,null,null,null,null,null,null,null,null,null,null,null,null,null,null,"TFU","Pelmet and upper lateral fairing found dislodged","25.40.00.066","MSN52","VSB",null,null,null,null,null,null,null,null,null,null,null,null,null,null,null,null,"TFU","GALLEY DOOR HINGE COVER SEALS DAMAGES","25.30.00.035","TBD","TBD","TBD",null,null,null,null,null,null,null,null,null,null,null,null,null,null,null,null,null,null,null,null,null,null,null,null,null,null,null,null,null,"TFU","Interference between trolley and door frame lining & door hinge arm cover","25.23.00.020"]
[null,null,null,null,null,null,null,null,null,null,null,null,null,null,null,null,null,null,null,null,null,null,null,null,null,null,null,null,null,null,null,null,null,null,null,null,null,null,null,null,null,null,null,null,null,null,null,null,null,null,"TFU","Toilet paper roll holder missing","25.40.00.070","MSN54","VSB",null,null,null,null,null,null,null,null,null,null,null,null,null,null,null,null,"TFU","RETAINER COVER DETACHED WITH SCREW MISSING","25.30.00.037","N/A","CMM update","No",null,null,null,null,null,null,null,null,null,null,null,null,null,null,null,null,null,null,null,null,null,null,null,null,null,null,null,null,null,"TFU","CDSS data loading deviation","44.52.00.002"]
[null,null,null,null,null,null,null,null,null,null,null,null,null,null,null,null,null,null,null,null,null,null,null,null,null,null,null,null,null,null,null,null,null,null,null,null,null,null,null,null,null,null,null,null,null,null,null,null,null,null,"TFU","Toilet cover missing bumper","25.40.00.071","TBD","New Design",null,null,null,null,null,null,null,null,null,null,null,null,null,null,null,null,"TFU","Galley Standard Unit slide extractor damage","25.30.00.028","TBD","TBD","Yes"]
[null,null,null,null,null,null,null,null,null,null,null,null,null,null,null,null,null,null,null,null,null,null,null,null,null,null,null,null,null,null,null,null,null,null,null,null,null,null,null,null,null,null,null,null,null,null,null,null,null,null,"TFU","Hinge Latch screws on bi-folding door found loosen/missing","25.40.00.068"]
[null,null,null,null,null,null,null,null,null,null,null,null,null,null,null,null,null,null,null,null,null,null,null,null,null,null,null,null,null,null,null,null,null,null,null,null,null,null,null,null,null,null,null,null,null,null,null,null,null,null,"TFU","Toilet shrouds issues: paint peeling, material cracks and brackets","25.40.00.046","MSN74","VSB"]
[null,null,null,null,null,null,null,null,null,null,null,null,null,null,null,null,null,null,null,null,null,null,null,null,null,null,null,null,null,null,null,null,null,null,null,null,null,null,null,null,null,null,null,null,null,null,null,null,null,null,"TFU","Water Drain Knob actuator found broken","25.40.00.045"]

{"sheet":"ETH (MSN040)","index":15,"n_rows":51,"n_cols":112,"rows_kept":51,"cut":false,"hidden":false,"merged":[]}
["ENGINEERING ISSUES:"]
[]
[null,"Water & Waste",null,null,null,null,null,null,"Smoke Detection",null,null,null,null,null,null,"Seats",null,null,null,null,null,null,"SCS",null,null,null,null,null,null,"Pax Door",null,null,null,null,null,null,"Oxygen",null,null,null,null,null,null,"Lights",null,null,null,null,null,null,"Lavatories",null,null,null,null,null,null,"IFE",null,null,null,null,null,null,"Heating",null,null,null,null,null,null,"Galley/gains",null,null,null,null,null,null,"Emergency Systems",null,null,null,null,null,null,"Cockpit",null,null,null,null,null,null,"CIDS",null,null,null,null,null,null,"Cargo",null,null,null,null,null,null,"Cabin & crew rest"]
[null,"Doc.","Title","Reference","PoE","Solution","Monitored retrofit",null,"Doc.","Title","Reference","PoE","Solution","Monitored retrofit",null,"Doc.","Title","Reference","PoE","Solution","Monitored retrofit",null,"Doc.","Title","Reference","PoE","Solution","Monitored retrofit",null,"Doc.","Title","Reference","PoE","Solution","Monitored retrofit",null,"Doc.","Title","Reference","PoE","Solution","Monitored retrofit",null,"Doc.","Title","Reference","PoE","Solution","Monitored retrofit",null,"Doc.","Title","Reference","PoE","Solution","Monitored retrofit",null,"Doc.","Title","Reference","PoE","Solution","Monitored retrofit",null,"Doc.","Title","Reference","PoE","Solution","Monitored retrofit",null,"Doc.","Title","Reference","PoE","Solution","Monitored retrofit",null,"Doc.","Title","Reference","PoE","Solution","Monitored retrofit",null,"Doc.","Title","Reference","PoE","Solution","Monitored retrofit",null,"Doc.","Title","Reference","PoE","Solution","Monitored retrofit",null,"Doc.","Title","Reference","PoE","Solution","Monitored retrofit",null,"Doc.","Title","Reference","PoE","Solution","Monitored retrofit"]
[]
[]
[]
[]
[]
[]
[]
[]
[]
[]
[]
[]
[]
[]
[]
[]
[]
[]
[]
[]
[]
[]
[]
[]
[]
[]
[]
[]
[]
[]
[]
[]
[]
[]
[]
[]
[]
[]
[]
[]
[]
[]
[]
["MANUFACTURING ISSUES:","VONT PEUT-ETRE ETRE ANNULES, DONC CE FILTRE VA SAUTER"]
[]
[null,"Water & Waste",null,null,null,null,null,null,"Smoke Detection",null,null,null,null,null,null,"Seats",null,null,null,null,null,null,"SCS",null,null,null,null,null,null,"Pax Door",null,null,null,null,null,null,"Oxygen",null,null,null,null,null,null,"Lights",null,null,null,null,null,null,"Lavatories",null,null,null,null,null,null,"IFE",null,null,null,null,null,null,"Heating",null,null,null,null,null,null,"Galley/gains",null,null,null,null,null,null,"Emergency Systems",null,null,null,null,null,null,"Cockpit",null,null,null,null,null,null,"CIDS",null,null,null,null,null,null,"Cargo",null,null,null,null,null,null,"Cabin & crew rest"]
[null,"Title","PoE",null,null,null,null,null,"Title","PoE",null,null,null,null,null,"Title","PoE",null,null,null,null,null,"Title","PoE",null,null,null,null,null,"Title","PoE",null,null,null,null,null,"Title","PoE",null,null,null,null,null,"Title","PoE",null,null,null,null,null,"Title","PoE",null,null,null,null,null,"Title","PoE",null,null,null,null,null,"Title","PoE",null,null,null,null,null,"Title","PoE",null,null,null,null,null,"Title","PoE",null,null,null,null,null,"Title","PoE",null,null,null,null,null,"Title","PoE",null,null,null,null,null,"Title","PoE",null,null,null,null,null,"Title","PoE"]

{"sheet":"THA","index":16,"n_rows":61,"n_cols":112,"rows_kept":61,"cut":false,"hidden":false,"merged":[]}
["ENGINEERING ISSUES:"]
[]
[null,"Water & Waste",null,null,null,null,null,null,"Smoke Detection",null,null,null,null,null,null,"Seats",null,null,null,null,null,null,"SCS",null,null,null,null,null,null,"Pax Door",null,null,null,null,null,null,"Oxygen",null,null,null,null,null,null,"Lights",null,null,null,null,null,null,"Lavatories",null,null,null,null,null,null,"IFE",null,null,null,null,null,null,"Heating",null,null,null,null,null,null,"Galley/gains",null,null,null,null,null,null,"Emergency Systems",null,null,null,null,null,null,"Cockpit",null,null,null,null,null,null,"CIDS",null,null,null,null,null,null,"Cargo",null,null,null,null,null,null,"Cabin & crew rest"]
[null,"Doc.","Title","Reference","PoE","Solution","Monitored retrofit",null,"Doc.","Title","Reference","PoE","Solution","Monitored retrofit",null,"Doc.","Title","Reference","PoE","Solution","Monitored retrofit",null,"Doc.","Title","Reference","PoE","Solution","Monitored retrofit",null,"Doc.","Title","Reference","PoE","Solution","Monitored retrofit",null,"Doc.","Title","Reference","PoE","Solution","Monitored retrofit",null,"Doc.","Title","Reference","PoE","Solution","Monitored retrofit",null,"Doc.","Title","Reference","PoE","Solution","Monitored retrofit",null,"Doc.","Title","Reference","PoE","Solution","Monitored retrofit",null,"Doc.","Title","Reference","PoE","Solution","Monitored retrofit",null,"Doc.","Title","Reference","PoE","Solution","Monitored retrofit",null,"Doc.","Title","Reference","PoE","Solution","Monitored retrofit",null,"Doc.","Title","Reference","PoE","Solution","Monitored retrofit",null,"Doc.","Title","Reference","PoE","Solution","Monitored retrofit",null,"Doc.","Title","Reference","PoE","Solution","Monitored retrofit",null,"Doc.","Title","Reference","PoE","Solution","Monitored retrofit"]
[]
[]
[]
[]
[]
[]
[]
[]
[]
[]
[]
[]
[]
[]
[]
[]
[]
[]
[]
[]
[]
[]
[]
[]
[]
[]
[]
[]
[]
[]
[]
[]
[]
[]
[]
[]
[]
[]
[]
[]
[]
[]
[]
[]
[]
[]
[]
[]
[]
[]
[]
[]
[]
["MANUFACTURING ISSUES:","VONT PEUT-ETRE ETRE ANNULES, DONC CE FILTRE VA SAUTER"]
[]
[null,"Water & Waste",null,null,null,null,null,null,"Smoke Detection",null,null,null,null,null,null,"Seats",null,null,null,null,null,null,"SCS",null,null,null,null,null,null,"Pax Door",null,null,null,null,null,null,"Oxygen",null,null,null,null,null,null,"Lights",null,null,null,null,null,null,"Lavatories",null,null,null,null,null,null,"IFE",null,null,null,null,null,null,"Heating",null,null,null,null,null,null,"Galley/gains",null,null,null,null,null,null,"Emergency Systems",null,null,null,null,null,null,"Cockpit",null,null,null,null,null,null,"CIDS",null,null,null,null,null,null,"Cargo",null,null,null,null,null,null,"Cabin & crew rest"]
[null,"Title","PoE",null,null,null,null,null,"Title","PoE",null,null,null,null,null,"Title","PoE",null,null,null,null,null,"Title","PoE",null,null,null,null,null,"Title","PoE",null,null,null,null,null,"Title","PoE",null,null,null,null,null,"Title","PoE",null,null,null,null,null,"Title","PoE",null,null,null,null,null,"Title","PoE",null,null,null,null,null,"Title","PoE",null,null,null,null,null,"Title","PoE",null,null,null,null,null,"Title","PoE",null,null,null,null,null,"Title","PoE",null,null,null,null,null,"Title","PoE",null,null,null,null,null,"Title","PoE",null,null,null,null,null,"Title","PoE"]

{"sheet":"CAL","index":17,"n_rows":61,"n_cols":112,"rows_kept":61,"cut":false,"hidden":false,"merged":[]}
["ENGINEERING ISSUES:"]
[]
[null,"Water & Waste",null,null,null,null,null,null,"Smoke Detection",null,null,null,null,null,null,"Seats",null,null,null,null,null,null,"SCS",null,null,null,null,null,null,"Pax Door",null,null,null,null,null,null,"Oxygen",null,null,null,null,null,null,"Lights",null,null,null,null,null,null,"Lavatories",null,null,null,null,null,null,"IFE",null,null,null,null,null,null,"Heating",null,null,null,null,null,null,"Galley/gains",null,null,null,null,null,null,"Emergency Systems",null,null,null,null,null,null,"Cockpit",null,null,null,null,null,null,"CIDS",null,null,null,null,null,null,"Cargo",null,null,null,null,null,null,"Cabin & crew rest"]
[null,"Doc.","Title","Reference","PoE","Solution","Monitored retrofit",null,"Doc.","Title","Reference","PoE","Solution","Monitored retrofit",null,"Doc.","Title","Reference","PoE","Solution","Monitored retrofit",null,"Doc.","Title","Reference","PoE","Solution","Monitored retrofit",null,"Doc.","Title","Reference","PoE","Solution","Monitored retrofit",null,"Doc.","Title","Reference","PoE","Solution","Monitored retrofit",null,"Doc.","Title","Reference","PoE","Solution","Monitored retrofit",null,"Doc.","Title","Reference","PoE","Solution","Monitored retrofit",null,"Doc.","Title","Reference","PoE","Solution","Monitored retrofit",null,"Doc.","Title","Reference","PoE","Solution","Monitored retrofit",null,"Doc.","Title","Reference","PoE","Solution","Monitored retrofit",null,"Doc.","Title","Reference","PoE","Solution","Monitored retrofit",null,"Doc.","Title","Reference","PoE","Solution","Monitored retrofit",null,"Doc.","Title","Reference","PoE","Solution","Monitored retrofit",null,"Doc.","Title","Reference","PoE","Solution","Monitored retrofit",null,"Doc.","Title","Reference","PoE","Solution","Monitored retrofit"]
[]
[]
[]
[]
[]
[]
[]
[]
[]
[]
[]
[]
[]
[]
[]
[]
[]
[]
[]
[]
[]
[]
[]
[]
[]
[]
[]
[]
[]
[]
[]
[]
[]
[]
[]
[]
[]
[]
[]
[]
[]
[]
[]
[]
[]
[]
[]
[]
[]
[]
[]
[]
[]
["MANUFACTURING ISSUES:","VONT PEUT-ETRE ETRE ANNULES, DONC CE FILTRE VA SAUTER"]
[]
[null,"Water & Waste",null,null,null,null,null,null,"Smoke Detection",null,null,null,null,null,null,"Seats",null,null,null,null,null,null,"SCS",null,null,null,null,null,null,"Pax Door",null,null,null,null,null,null,"Oxygen",null,null,null,null,null,null,"Lights",null,null,null,null,null,null,"Lavatories",null,null,null,null,null,null,"IFE",null,null,null,null,null,null,"Heating",null,null,null,null,null,null,"Galley/gains",null,null,null,null,null,null,"Emergency Systems",null,null,null,null,null,null,"Cockpit",null,null,null,null,null,null,"CIDS",null,null,null,null,null,null,"Cargo",null,null,null,null,null,null,"Cabin & crew rest"]
[null,"Title","PoE",null,null,null,null,null,"Title","PoE",null,null,null,null,null,"Title","PoE",null,null,null,null,null,"Title","PoE",null,null,null,null,null,"Title","PoE",null,null,null,null,null,"Title","PoE",null,null,null,null,null,"Title","PoE",null,null,null,null,null,"Title","PoE",null,null,null,null,null,"Title","PoE",null,null,null,null,null,"Title","PoE",null,null,null,null,null,"Title","PoE",null,null,null,null,null,"Title","PoE",null,null,null,null,null,"Title","PoE",null,null,null,null,null,"Title","PoE",null,null,null,null,null,"Title","PoE",null,null,null,null,null,"Title","PoE"]

{"sheet":"DLH","index":18,"n_rows":61,"n_cols":112,"rows_kept":61,"cut":false,"hidden":false,"merged":[]}
["ENGINEERING ISSUES:"]
[]
[null,"Water & Waste",null,null,null,null,null,null,"Smoke Detection",null,null,null,null,null,null,"Seats",null,null,null,null,null,null,"SCS",null,null,null,null,null,null,"Pax Door",null,null,null,null,null,null,"Oxygen",null,null,null,null,null,null,"Lights",null,null,null,null,null,null,"Lavatories",null,null,null,null,null,null,"IFE",null,null,null,null,null,null,"Heating",null,null,null,null,null,null,"Galley/gains",null,null,null,null,null,null,"Emergency Systems",null,null,null,null,null,null,"Cockpit",null,null,null,null,null,null,"CIDS",null,null,null,null,null,null,"Cargo",null,null,null,null,null,null,"Cabin & crew rest"]
[null,"Doc.","Title","Reference","PoE","Solution","Monitored retrofit",null,"Doc.","Title","Reference","PoE","Solution","Monitored retrofit",null,"Doc.","Title","Reference","PoE","Solution","Monitored retrofit",null,"Doc.","Title","Reference","PoE","Solution","Monitored retrofit",null,"Doc.","Title","Reference","PoE","Solution","Monitored retrofit",null,"Doc.","Title","Reference","PoE","Solution","Monitored retrofit",null,"Doc.","Title","Reference","PoE","Solution","Monitored retrofit",null,"Doc.","Title","Reference","PoE","Solution","Monitored retrofit",null,"Doc.","Title","Reference","PoE","Solution","Monitored retrofit",null,"Doc.","Title","Reference","PoE","Solution","Monitored retrofit",null,"Doc.","Title","Reference","PoE","Solution","Monitored retrofit",null,"Doc.","Title","Reference","PoE","Solution","Monitored retrofit",null,"Doc.","Title","Reference","PoE","Solution","Monitored retrofit",null,"Doc.","Title","Reference","PoE","Solution","Monitored retrofit",null,"Doc.","Title","Reference","PoE","Solution","Monitored retrofit",null,"Doc.","Title","Reference","PoE","Solution","Monitored retrofit"]
[]
[]
[]
[]
[]
[]
[]
[]
[]
[]
[]
[]
[]
[]
[]
[]
[]
[]
[]
[]
[]
[]
[]
[]
[]
[]
[]
[]
[]
[]
[]
[]
[]
[]
[]
[]
[]
[]
[]
[]
[]
[]
[]
[]
[]
[]
[]
[]
[]
[]
[]
[]
[]
["MANUFACTURING ISSUES:","VONT PEUT-ETRE ETRE ANNULES, DONC CE FILTRE VA SAUTER"]
[]
[null,"Water & Waste",null,null,null,null,null,null,"Smoke Detection",null,null,null,null,null,null,"Seats",null,null,null,null,null,null,"SCS",null,null,null,null,null,null,"Pax Door",null,null,null,null,null,null,"Oxygen",null,null,null,null,null,null,"Lights",null,null,null,null,null,null,"Lavatories",null,null,null,null,null,null,"IFE",null,null,null,null,null,null,"Heating",null,null,null,null,null,null,"Galley/gains",null,null,null,null,null,null,"Emergency Systems",null,null,null,null,null,null,"Cockpit",null,null,null,null,null,null,"CIDS",null,null,null,null,null,null,"Cargo",null,null,null,null,null,null,"Cabin & crew rest"]
[null,"Title","PoE",null,null,null,null,null,"Title","PoE",null,null,null,null,null,"Title","PoE",null,null,null,null,null,"Title","PoE",null,null,null,null,null,"Title","PoE",null,null,null,null,null,"Title","PoE",null,null,null,null,null,"Title","PoE",null,null,null,null,null,"Title","PoE",null,null,null,null,null,"Title","PoE",null,null,null,null,null,"Title","PoE",null,null,null,null,null,"Title","PoE",null,null,null,null,null,"Title","PoE",null,null,null,null,null,"Title","PoE",null,null,null,null,null,"Title","PoE",null,null,null,null,null,"Title","PoE",null,null,null,null,null,"Title","PoE"]

{"sheet":"FWI MSN82","index":19,"n_rows":61,"n_cols":112,"rows_kept":61,"cut":false,"hidden":false,"merged":[]}
["ENGINEERING ISSUES:"]
[]
[null,"Water & Waste",null,null,null,null,null,null,"Smoke Detection",null,null,null,null,null,null,"Seats",null,null,null,null,null,null,"SCS",null,null,null,null,null,null,"Pax Door",null,null,null,null,null,null,"Oxygen",null,null,null,null,null,null,"Lights",null,null,null,null,null,null,"Lavatories",null,null,null,null,null,null,"IFE",null,null,null,null,null,null,"Heating",null,null,null,null,null,null,"Galley/gains",null,null,null,null,null,null,"Emergency Systems",null,null,null,null,null,null,"Cockpit",null,null,null,null,null,null,"CIDS",null,null,null,null,null,null,"Cargo",null,null,null,null,null,null,"Cabin & crew rest"]
[null,"Doc.","Title","Reference","PoE","Solution","Monitored retrofit",null,"Doc.","Title","Reference","PoE","Solution","Monitored retrofit",null,"Doc.","Title","Reference","PoE","Solution","Monitored retrofit",null,"Doc.","Title","Reference","PoE","Solution","Monitored retrofit",null,"Doc.","Title","Reference","PoE","Solution","Monitored retrofit",null,"Doc.","Title","Reference","PoE","Solution","Monitored retrofit",null,"Doc.","Title","Reference","PoE","Solution","Monitored retrofit",null,"Doc.","Title","Reference","PoE","Solution","Monitored retrofit",null,"Doc.","Title","Reference","PoE","Solution","Monitored retrofit",null,"Doc.","Title","Reference","PoE","Solution","Monitored retrofit",null,"Doc.","Title","Reference","PoE","Solution","Monitored retrofit",null,"Doc.","Title","Reference","PoE","Solution","Monitored retrofit",null,"Doc.","Title","Reference","PoE","Solution","Monitored retrofit",null,"Doc.","Title","Reference","PoE","Solution","Monitored retrofit",null,"Doc.","Title","Reference","PoE","Solution","Monitored retrofit",null,"Doc.","Title","Reference","PoE","Solution","Monitored retrofit"]
[]
[]
[]
[]
[]
[]
[]
[]
[]
[]
[]
[]
[]
[]
[]
[]
[]
[]
[]
[]
[]
[]
[]
[]
[]
[]
[]
[]
[]
[]
[]
[]
[]
[]
[]
[]
[]
[]
[]
[]
[]
[]
[]
[]
[]
[]
[]
[]
[]
[]
[]
[]
[]
["MANUFACTURING ISSUES:","VONT PEUT-ETRE ETRE ANNULES, DONC CE FILTRE VA SAUTER"]
[]
[null,"Water & Waste",null,null,null,null,null,null,"Smoke Detection",null,null,null,null,null,null,"Seats",null,null,null,null,null,null,"SCS",null,null,null,null,null,null,"Pax Door",null,null,null,null,null,null,"Oxygen",null,null,null,null,null,null,"Lights",null,null,null,null,null,null,"Lavatories",null,null,null,null,null,null,"IFE",null,null,null,null,null,null,"Heating",null,null,null,null,null,null,"Galley/gains",null,null,null,null,null,null,"Emergency Systems",null,null,null,null,null,null,"Cockpit",null,null,null,null,null,null,"CIDS",null,null,null,null,null,null,"Cargo",null,null,null,null,null,null,"Cabin & crew rest"]
[null,"Title","PoE",null,null,null,null,null,"Title","PoE",null,null,null,null,null,"Title","PoE",null,null,null,null,null,"Title","PoE",null,null,null,null,null,"Title","PoE",null,null,null,null,null,"Title","PoE",null,null,null,null,null,"Title","PoE",null,null,null,null,null,"Title","PoE",null,null,null,null,null,"Title","PoE",null,null,null,null,null,"Title","PoE",null,null,null,null,null,"Title","PoE",null,null,null,null,null,"Title","PoE",null,null,null,null,null,"Title","PoE",null,null,null,null,null,"Title","PoE",null,null,null,null,null,"Title","PoE",null,null,null,null,null,"Title","PoE"]

{"sheet":"AAR MSN94","index":20,"n_rows":61,"n_cols":112,"rows_kept":61,"cut":false,"hidden":false,"merged":[]}
["ENGINEERING ISSUES:"]
[]
[null,"Water & Waste",null,null,null,null,null,null,"Smoke Detection",null,null,null,null,null,null,"Seats",null,null,null,null,null,null,"SCS",null,null,null,null,null,null,"Pax Door",null,null,null,null,null,null,"Oxygen",null,null,null,null,null,null,"Lights",null,null,null,null,null,null,"Lavatories",null,null,null,null,null,null,"IFE",null,null,null,null,null,null,"Heating",null,null,null,null,null,null,"Galley/gains",null,null,null,null,null,null,"Emergency Systems",null,null,null,null,null,null,"Cockpit",null,null,null,null,null,null,"CIDS",null,null,null,null,null,null,"Cargo",null,null,null,null,null,null,"Cabin & crew rest"]
[null,"Doc.","Title","Reference","PoE","Solution","Monitored retrofit",null,"Doc.","Title","Reference","PoE","Solution","Monitored retrofit",null,"Doc.","Title","Reference","PoE","Solution","Monitored retrofit",null,"Doc.","Title","Reference","PoE","Solution","Monitored retrofit",null,"Doc.","Title","Reference","PoE","Solution","Monitored retrofit",null,"Doc.","Title","Reference","PoE","Solution","Monitored retrofit",null,"Doc.","Title","Reference","PoE","Solution","Monitored retrofit",null,"Doc.","Title","Reference","PoE","Solution","Monitored retrofit",null,"Doc.","Title","Reference","PoE","Solution","Monitored retrofit",null,"Doc.","Title","Reference","PoE","Solution","Monitored retrofit",null,"Doc.","Title","Reference","PoE","Solution","Monitored retrofit",null,"Doc.","Title","Reference","PoE","Solution","Monitored retrofit",null,"Doc.","Title","Reference","PoE","Solution","Monitored retrofit",null,"Doc.","Title","Reference","PoE","Solution","Monitored retrofit",null,"Doc.","Title","Reference","PoE","Solution","Monitored retrofit",null,"Doc.","Title","Reference","PoE","Solution","Monitored retrofit"]
[]
[]
[]
[]
[]
[]
[]
[]
[]
[]
[]
[]
[]
[]
[]
[]
[]
[]
[]
[]
[]
[]
[]
[]
[]
[]
[]
[]
[]
[]
[]
[]
[]
[]
[]
[]
[]
[]
[]
[]
[]
[]
[]
[]
[]
[]
[]
[]
[]
[]
[]
[]
[]
["MANUFACTURING ISSUES:","VONT PEUT-ETRE ETRE ANNULES, DONC CE FILTRE VA SAUTER"]
[]
[null,"Water & Waste",null,null,null,null,null,null,"Smoke Detection",null,null,null,null,null,null,"Seats",null,null,null,null,null,null,"SCS",null,null,null,null,null,null,"Pax Door",null,null,null,null,null,null,"Oxygen",null,null,null,null,null,null,"Lights",null,null,null,null,null,null,"Lavatories",null,null,null,null,null,null,"IFE",null,null,null,null,null,null,"Heating",null,null,null,null,null,null,"Galley/gains",null,null,null,null,null,null,"Emergency Systems",null,null,null,null,null,null,"Cockpit",null,null,null,null,null,null,"CIDS",null,null,null,null,null,null,"Cargo",null,null,null,null,null,null,"Cabin & crew rest"]
[null,"Title","PoE",null,null,null,null,null,"Title","PoE",null,null,null,null,null,"Title","PoE",null,null,null,null,null,"Title","PoE",null,null,null,null,null,"Title","PoE",null,null,null,null,null,"Title","PoE",null,null,null,null,null,"Title","PoE",null,null,null,null,null,"Title","PoE",null,null,null,null,null,"Title","PoE",null,null,null,null,null,"Title","PoE",null,null,null,null,null,"Title","PoE",null,null,null,null,null,"Title","PoE",null,null,null,null,null,"Title","PoE",null,null,null,null,null,"Title","PoE",null,null,null,null,null,"Title","PoE",null,null,null,null,null,"Title","PoE"]

{"sheet":"MAU MSN145","index":21,"n_rows":61,"n_cols":112,"rows_kept":61,"cut":false,"hidden":false,"merged":[]}
["ENGINEERING ISSUES:"]
[]
[null,"Water & Waste",null,null,null,null,null,null,"Smoke Detection",null,null,null,null,null,null,"Seats",null,null,null,null,null,null,"SCS",null,null,null,null,null,null,"Pax Door",null,null,null,null,null,null,"Oxygen",null,null,null,null,null,null,"Lights",null,null,null,null,null,null,"Lavatories",null,null,null,null,null,null,"IFE",null,null,null,null,null,null,"Heating",null,null,null,null,null,null,"Galley/gains",null,null,null,null,null,null,"Emergency Systems",null,null,null,null,null,null,"Cockpit",null,null,null,null,null,null,"CIDS",null,null,null,null,null,null,"Cargo",null,null,null,null,null,null,"Cabin & crew rest"]
[null,"Doc.","Title","Reference","PoE","Solution","Monitored retrofit",null,"Doc.","Title","Reference","PoE","Solution","Monitored retrofit",null,"Doc.","Title","Reference","PoE","Solution","Monitored retrofit",null,"Doc.","Title","Reference","PoE","Solution","Monitored retrofit",null,"Doc.","Title","Reference","PoE","Solution","Monitored retrofit",null,"Doc.","Title","Reference","PoE","Solution","Monitored retrofit",null,"Doc.","Title","Reference","PoE","Solution","Monitored retrofit",null,"Doc.","Title","Reference","PoE","Solution","Monitored retrofit",null,"Doc.","Title","Reference","PoE","Solution","Monitored retrofit",null,"Doc.","Title","Reference","PoE","Solution","Monitored retrofit",null,"Doc.","Title","Reference","PoE","Solution","Monitored retrofit",null,"Doc.","Title","Reference","PoE","Solution","Monitored retrofit",null,"Doc.","Title","Reference","PoE","Solution","Monitored retrofit",null,"Doc.","Title","Reference","PoE","Solution","Monitored retrofit",null,"Doc.","Title","Reference","PoE","Solution","Monitored retrofit",null,"Doc.","Title","Reference","PoE","Solution","Monitored retrofit"]
[]
[]
[]
[]
[]
[]
[]
[]
[]
[]
[]
[]
[]
[]
[]
[]
[]
[]
[]
[]
[]
[]
[]
[]
[]
[]
[]
[]
[]
[]
[]
[]
[]
[]
[]
[]
[]
[]
[]
[]
[]
[]
[]
[]
[]
[]
[]
[]
[]
[]
[]
[]
[]
["MANUFACTURING ISSUES:","VONT PEUT-ETRE ETRE ANNULES, DONC CE FILTRE VA SAUTER"]
[]
[null,"Water & Waste",null,null,null,null,null,null,"Smoke Detection",null,null,null,null,null,null,"Seats",null,null,null,null,null,null,"SCS",null,null,null,null,null,null,"Pax Door",null,null,null,null,null,null,"Oxygen",null,null,null,null,null,null,"Lights",null,null,null,null,null,null,"Lavatories",null,null,null,null,null,null,"IFE",null,null,null,null,null,null,"Heating",null,null,null,null,null,null,"Galley/gains",null,null,null,null,null,null,"Emergency Systems",null,null,null,null,null,null,"Cockpit",null,null,null,null,null,null,"CIDS",null,null,null,null,null,null,"Cargo",null,null,null,null,null,null,"Cabin & crew rest"]
[null,"Title","PoE",null,null,null,null,null,"Title","PoE",null,null,null,null,null,"Title","PoE",null,null,null,null,null,"Title","PoE",null,null,null,null,null,"Title","PoE",null,null,null,null,null,"Title","PoE",null,null,null,null,null,"Title","PoE",null,null,null,null,null,"Title","PoE",null,null,null,null,null,"Title","PoE",null,null,null,null,null,"Title","PoE",null,null,null,null,null,"Title","PoE",null,null,null,null,null,"Title","PoE",null,null,null,null,null,"Title","PoE",null,null,null,null,null,"Title","PoE",null,null,null,null,null,"Title","PoE",null,null,null,null,null,"Title","PoE"]

{"sheet":"DAL MSN115","index":22,"n_rows":61,"n_cols":112,"rows_kept":61,"cut":false,"hidden":false,"merged":[]}
["ENGINEERING ISSUES:"]
[]
[null,"Water & Waste",null,null,null,null,null,null,"Smoke Detection",null,null,null,null,null,null,"Seats",null,null,null,null,null,null,"SCS",null,null,null,null,null,null,"Pax Door",null,null,null,null,null,null,"Oxygen",null,null,null,null,null,null,"Lights",null,null,null,null,null,null,"Lavatories",null,null,null,null,null,null,"IFE",null,null,null,null,null,null,"Heating",null,null,null,null,null,null,"Galley/gains",null,null,null,null,null,null,"Emergency Systems",null,null,null,null,null,null,"Cockpit",null,null,null,null,null,null,"CIDS",null,null,null,null,null,null,"Cargo",null,null,null,null,null,null,"Cabin & crew rest"]
[null,"Doc.","Title","Reference","PoE","Solution","Monitored retrofit",null,"Doc.","Title","Reference","PoE","Solution","Monitored retrofit",null,"Doc.","Title","Reference","PoE","Solution","Monitored retrofit",null,"Doc.","Title","Reference","PoE","Solution","Monitored retrofit",null,"Doc.","Title","Reference","PoE","Solution","Monitored retrofit",null,"Doc.","Title","Reference","PoE","Solution","Monitored retrofit",null,"Doc.","Title","Reference","PoE","Solution","Monitored retrofit",null,"Doc.","Title","Reference","PoE","Solution","Monitored retrofit",null,"Doc.","Title","Reference","PoE","Solution","Monitored retrofit",null,"Doc.","Title","Reference","PoE","Solution","Monitored retrofit",null,"Doc.","Title","Reference","PoE","Solution","Monitored retrofit",null,"Doc.","Title","Reference","PoE","Solution","Monitored retrofit",null,"Doc.","Title","Reference","PoE","Solution","Monitored retrofit",null,"Doc.","Title","Reference","PoE","Solution","Monitored retrofit",null,"Doc.","Title","Reference","PoE","Solution","Monitored retrofit",null,"Doc.","Title","Reference","PoE","Solution","Monitored retrofit"]
[]
[]
[]
[]
[]
[]
[]
[]
[]
[]
[]
[]
[]
[]
[]
[]
[]
[]
[]
[]
[]
[]
[]
[]
[]
[]
[]
[]
[]
[]
[]
[]
[]
[]
[]
[]
[]
[]
[]
[]
[]
[]
[]
[]
[]
[]
[]
[]
[]
[]
[]
[]
[]
["MANUFACTURING ISSUES:","VONT PEUT-ETRE ETRE ANNULES, DONC CE FILTRE VA SAUTER"]
[]
[null,"Water & Waste",null,null,null,null,null,null,"Smoke Detection",null,null,null,null,null,null,"Seats",null,null,null,null,null,null,"SCS",null,null,null,null,null,null,"Pax Door",null,null,null,null,null,null,"Oxygen",null,null,null,null,null,null,"Lights",null,null,null,null,null,null,"Lavatories",null,null,null,null,null,null,"IFE",null,null,null,null,null,null,"Heating",null,null,null,null,null,null,"Galley/gains",null,null,null,null,null,null,"Emergency Systems",null,null,null,null,null,null,"Cockpit",null,null,null,null,null,null,"CIDS",null,null,null,null,null,null,"Cargo",null,null,null,null,null,null,"Cabin & crew rest"]
[null,"Title","PoE",null,null,null,null,null,"Title","PoE",null,null,null,null,null,"Title","PoE",null,null,null,null,null,"Title","PoE",null,null,null,null,null,"Title","PoE",null,null,null,null,null,"Title","PoE",null,null,null,null,null,"Title","PoE",null,null,null,null,null,"Title","PoE",null,null,null,null,null,"Title","PoE",null,null,null,null,null,"Title","PoE",null,null,null,null,null,"Title","PoE",null,null,null,null,null,"Title","PoE",null,null,null,null,null,"Title","PoE",null,null,null,null,null,"Title","PoE",null,null,null,null,null,"Title","PoE",null,null,null,null,null,"Title","PoE"]

{"sheet":"CRK MSN124","index":23,"n_rows":61,"n_cols":112,"rows_kept":61,"cut":false,"hidden":false,"merged":[]}
["ENGINEERING ISSUES:"]
[]
[null,"Water & Waste",null,null,null,null,null,null,"Smoke Detection",null,null,null,null,null,null,"Seats",null,null,null,null,null,null,"SCS",null,null,null,null,null,null,"Pax Door",null,null,null,null,null,null,"Oxygen",null,null,null,null,null,null,"Lights",null,null,null,null,null,null,"Lavatories",null,null,null,null,null,null,"IFE",null,null,null,null,null,null,"Heating",null,null,null,null,null,null,"Galley/gains",null,null,null,null,null,null,"Emergency Systems",null,null,null,null,null,null,"Cockpit",null,null,null,null,null,null,"CIDS",null,null,null,null,null,null,"Cargo",null,null,null,null,null,null,"Cabin & crew rest"]
[null,"Doc.","Title","Reference","PoE","Solution","Monitored retrofit",null,"Doc.","Title","Reference","PoE","Solution","Monitored retrofit",null,"Doc.","Title","Reference","PoE","Solution","Monitored retrofit",null,"Doc.","Title","Reference","PoE","Solution","Monitored retrofit",null,"Doc.","Title","Reference","PoE","Solution","Monitored retrofit",null,"Doc.","Title","Reference","PoE","Solution","Monitored retrofit",null,"Doc.","Title","Reference","PoE","Solution","Monitored retrofit",null,"Doc.","Title","Reference","PoE","Solution","Monitored retrofit",null,"Doc.","Title","Reference","PoE","Solution","Monitored retrofit",null,"Doc.","Title","Reference","PoE","Solution","Monitored retrofit",null,"Doc.","Title","Reference","PoE","Solution","Monitored retrofit",null,"Doc.","Title","Reference","PoE","Solution","Monitored retrofit",null,"Doc.","Title","Reference","PoE","Solution","Monitored retrofit",null,"Doc.","Title","Reference","PoE","Solution","Monitored retrofit",null,"Doc.","Title","Reference","PoE","Solution","Monitored retrofit",null,"Doc.","Title","Reference","PoE","Solution","Monitored retrofit"]
[]
[]
[]
[]
[]
[]
[]
[]
[]
[]
[]
[]
[]
[]
[]
[]
[]
[]
[]
[]
[]
[]
[]
[]
[]
[]
[]
[]
[]
[]
[]
[]
[]
[]
[]
[]
[]
[]
[]
[]
[]
[]
[]
[]
[]
[]
[]
[]
[]
[]
[]
[]
[]
["MANUFACTURING ISSUES:","VONT PEUT-ETRE ETRE ANNULES, DONC CE FILTRE VA SAUTER"]
[]
[null,"Water & Waste",null,null,null,null,null,null,"Smoke Detection",null,null,null,null,null,null,"Seats",null,null,null,null,null,null,"SCS",null,null,null,null,null,null,"Pax Door",null,null,null,null,null,null,"Oxygen",null,null,null,null,null,null,"Lights",null,null,null,null,null,null,"Lavatories",null,null,null,null,null,null,"IFE",null,null,null,null,null,null,"Heating",null,null,null,null,null,null,"Galley/gains",null,null,null,null,null,null,"Emergency Systems",null,null,null,null,null,null,"Cockpit",null,null,null,null,null,null,"CIDS",null,null,null,null,null,null,"Cargo",null,null,null,null,null,null,"Cabin & crew rest"]
[null,"Title","PoE",null,null,null,null,null,"Title","PoE",null,null,null,null,null,"Title","PoE",null,null,null,null,null,"Title","PoE",null,null,null,null,null,"Title","PoE",null,null,null,null,null,"Title","PoE",null,null,null,null,null,"Title","PoE",null,null,null,null,null,"Title","PoE",null,null,null,null,null,"Title","PoE",null,null,null,null,null,"Title","PoE",null,null,null,null,null,"Title","PoE",null,null,null,null,null,"Title","PoE",null,null,null,null,null,"Title","PoE",null,null,null,null,null,"Title","PoE",null,null,null,null,null,"Title","PoE",null,null,null,null,null,"Title","PoE"]

{"sheet":"WARNING","index":24,"n_rows":1,"n_cols":1,"rows_kept":1,"cut":false,"hidden":false,"merged":[[0,0,5,8]]}
["Please enable macros in this file, as not doing so might lead to accidentally making some changes in the file which might ruin it. Thank you."]

{"sheet":"Feuil1","index":25,"n_rows":7,"n_cols":6,"rows_kept":7,"cut":false,"hidden":true,"merged":[]}
["Doc.","Title","Reference","PoE","Solution","Monitored retrofit"]
["TFU","Potable water pump","38.12.00.010","MSN65"]
["TFU","Waste Tank indication not correct","38.30.00.012","MSN28"]
["TFU","Waste valve actuation unit damaged","38.30.00.014","MSN50"]
["TFU","Low waste vacuum on ground","38.31.00.038"]
["TFU","Overboard vent line waste traces","38.30.00.013"]
["TFU","Residual Disinfectant in GAINS","38.10.00.016","N/A","AMM update","N/A"]